Workbook

Sheet Admin
B4: Process Year
B5: 2019 | C5: I1
B7: First True Up Month
B8: =B5*100+1 -> 201901 | C8: I2 | D8: I3
B10: Second True Up Month
B11: =B8+1 -> 201902 | C11: I4 | D11: I5
B13: Third True Up Month
B14: =B11+1 -> 201903 | C14: I6 | D14: I7
B16: Fourth True Up Month
B17: =B14+1 -> 201904 | C17: I8 | D17: I9
B19: Fifth True Up Month
B20: =B17+1 -> 201905 | C20: I10 | D20: I11
B22: Sixth True Up Month
B23: =B20+1 -> 201906 | C23: I12 | D23: I13
B25: Seventh True Up Month
B26: =B23+1 -> 201907 | C26: I14 | D26: I15
B28: Eighth True Up Month
B29: =B26+1 -> 201908 | C29: I16 | D29: I17
B31: Ninth True Up Month
B32: =B29+1 -> 201909 | C32: I18 | D32: I19
B34: Tenth True Up Month
B35: =B32+1 -> 201910 | C35: I20 | D35: I21
B37: Eleventh True Up Month
B38: =B35+1 -> 201911 | C38: I22 | D38: I23
B40: Twelveth True Up Month
B41: =B38+1 -> 201912 | C41: I24 | D41: I25

Sheet I1 Reconciliation
C2: =Admin!$B$8 -> 201901 | D2: =Admin!$B$8 -> 201901 | E2: =C2+1 -> 201902 | F2: =D2+1 -> 201902 | G2: =E2+1 -> 201903 | H2: 201903 | I2: 201904 | J2: 201904 | K2: 201905 | L2: 201905 | M2: 201906 | N2: 201906 | O2: 201907 | P2: 201907 | Q2: 201908 | R2: 201908 | S2: 201909 | T2: 201909 | U2: 201910 | V2: 201910 | W2: 201911 | X2: 201911 | Y2: 201912 | Z2: 201912 | AA2: =Admin!B5 -> 2019
C3: =A4 & "Input "& C2 & " Trueup Sett" -> Input 201901 Trueup Sett | D3: =D4 & " Input Rev " & D2 & " Init" -> I3 Input Rev 201901 Init | E3: =C4 & "Input "& E2 & " Trueup Sett" -> I2Input 201902 Trueup Sett | F3: =F4 & " Input Rev " & F2 & " Init" -> I5 Input Rev 201902 Init | G3: =E4 & "Input "& G2 & " Trueup Sett" -> I4Input 201903 Trueup Sett | H3: =H4 & " Input Rev " & H2 & " Init" -> I7 Input Rev 201903 Init | I3: =G4 & "Input "& I2 & " Trueup Sett" -> I6Input 201904 Trueup Sett | J3: =J4 & " Input Rev " & J2 & " Init" -> I9 Input Rev 201904 Init | K3: =I4 & "Input "& K2 & " Trueup Sett" -> I8Input 201905 Trueup Sett | L3: =L4 & " Input Rev " & L2 & " Init" -> I11 Input Rev 201905 Init | M3: =K4 & "Input "& M2 & " Trueup Sett" -> I10Input 201906 Trueup Sett | N3: =N4 & " Input Rev " & N2 & " Init" -> I13 Input Rev 201906 Init | O3: =M4 & "Input "& O2 & " Trueup Sett" -> I12Input 201907 Trueup Sett | P3: =P4 & " Input Rev " & P2 & " Init" -> I15 Input Rev 201907 Init | Q3: =O4 & "Input "& Q2 & " Trueup Sett" -> I14Input 201908 Trueup Sett | R3: =R4 & " Input Rev " & R2 & " Init" -> I17 Input Rev 201908 Init | S3: =Q4 & "Input "& S2 & " Trueup Sett" -> I16Input 201909 Trueup Sett | T3: =T4 & " Input Rev " & T2 & " Init" -> I19 Input Rev 201909 Init | U3: =S4 & "Input "& U2 & " Trueup Sett" -> I18Input 201910 Trueup Sett | V3: =V4 & " Input Rev " & V2 & " Init" -> I21 Input Rev 201910 Init | W3: =U4 & "Input "& W2 & " Trueup Sett" -> I20Input 201911 Trueup Sett | X3: =X4 & " Input Rev " & X2 & " Init" -> I23 Input Rev 201911 Init | Y3: =W4 & "Input "& Y2 & " Trueup Sett" -> I22Input 201912 Trueup Sett | Z3: =Z4 & " Input Rev " & Z2 & " Init" -> I25 Input Rev 201912 Init | AA3: Total IESO Settlement
C4: I2 | D4: I3 | E4: I4 | F4: I5 | G4: I6 | H4: I7 | I4: I8 | J4: I9 | K4: I10 | L4: I11 | M4: I12 | N4: I13 | O4: I14 | P4: I15 | Q4: I16 | R4: I17 | S4: I18 | T4: I19 | U4: I20 | V4: I21 | W4: I22 | X4: I23 | Y4: I24 | Z4: I25
B5: RPP Revenue Prices
B6: RPPT1 | C6: ='I2 Input 01 Trueup Sett '!Z6 -> -21903.00437 | D6: ='I3 Input Rev 01 Init'!C7 -> 19864.94 | E6: ='I4 Input 02 Trueup Sett'!Z6 -> -25313.23135 | F6: ='I5 Input Rev 02 Init'!C7 -> 20937.48 | G6: ='I6 Input 03 Trueup Sett'!Z6 -> -20395.66578 | H6: ='I7 Input Rev 03 Init'!C7 -> 25614.73 | I6: ='I8 Input 04 Trueup Sett'!Z6 -> -36728.12743 | J6: ='I9 Input Rev 04 Init'!C7 -> 20294.06 | K6: ='I10 Input 05 Trueup Sett'!Z6 -> -28691.91765 | L6: ='I11 Input Rev 05 Init'!C7 -> 36080.16 | M6: ='I12 Input 06 Trueup Sett'!Z6 -> -30718.19565 | N6: ='I13 Input Rev 06 Init'!C7 -> 28486.52 | O6: ='I14 Input 07 Trueup Sett'!Z6 -> -22050.62611 | P6: ='I15 Input Rev 07 Init'!C7 -> 27477.74 | Q6: ='I16 Input 08 Trueup Sett'!Z6 -> -34311.78361 | R6: ='I17 Input Rev 08 Init'!C7 -> 24910.05 | S6: ='I18 Input 09 Trueup Sett'!Z6 -> -27303.34882 | T6: ='I19 Input Rev 09 Init'!C7 -> 32055.68 | U6: ='I20 Input 10 Trueup Sett'!Z6 -> -33132.06344 | V6: ='I21 Input Rev 10 Init'!C7 -> 28203.49 | W6: ='I22 Input 11 Trueup Sett'!Z6 -> -2206.52608 | X6: ='I23 Input Rev 11 Init'!C7 -> 18220.53 | Y6: ='I24 Input 12 Trueup Sett'!Z6 -> 2639.374479 | Z6: ='I25 Input Rev 12 Init'!C7 -> 3722.38 | AA6: =SUM(C6:Z6) -> 5752.644203
B7: RPPT2 | C7: ='I2 Input 01 Trueup Sett '!Z7 -> -11732.34647 | D7: ='I3 Input Rev 01 Init'!C8 -> 7913.01 | E7: ='I4 Input 02 Trueup Sett'!Z7 -> -14364.1164 | F7: ='I5 Input Rev 02 Init'!C8 -> 10246.3 | G7: ='I6 Input 03 Trueup Sett'!Z7 -> -6754.072495 | H7: ='I7 Input Rev 03 Init'!C8 -> 16356.67 | I7: ='I8 Input 04 Trueup Sett'!Z7 -> -10172.27947 | J7: ='I9 Input Rev 04 Init'!C8 -> 6793.19 | K7: ='I10 Input 05 Trueup Sett'!Z7 -> -9379.134761 | L7: ='I11 Input Rev 05 Init'!C8 -> 9697.62 | M7: ='I12 Input 06 Trueup Sett'!Z7 -> -10348.15228 | N7: ='I13 Input Rev 06 Init'!C8 -> 9919.67 | O7: ='I14 Input 07 Trueup Sett'!Z7 -> -8298.115751 | P7: ='I15 Input Rev 07 Init'!C8 -> 8649.67 | Q7: ='I16 Input 08 Trueup Sett'!Z7 -> -11280.53776 | R7: ='I17 Input Rev 08 Init'!C8 -> 10135.05 | S7: ='I18 Input 09 Trueup Sett'!Z7 -> -4847.251679 | T7: ='I19 Input Rev 09 Init'!C8 -> 10792.4 | U7: ='I20 Input 10 Trueup Sett'!Z7 -> -8512.395067 | V7: ='I21 Input Rev 10 Init'!C8 -> 4601.43 | W7: ='I22 Input 11 Trueup Sett'!Z7 -> 3352.509089 | X7: ='I23 Input Rev 11 Init'!C8 -> 1955.71 | Y7: ='I24 Input 12 Trueup Sett'!Z7 -> 8410.265959 | Z7: ='I25 Input Rev 12 Init'!C8 -> -2566.91 | AA7: =SUM(C7:Z7) -> 10568.18291
B8: RPPTOUMID | C8: ='I2 Input 01 Trueup Sett '!Z8 -> -29356.16781 | D8: ='I3 Input Rev 01 Init'!C9 -> 25630.45 | E8: ='I4 Input 02 Trueup Sett'!Z8 -> -39099.2785 | F8: ='I5 Input Rev 02 Init'!C9 -> 21108.69 | G8: ='I6 Input 03 Trueup Sett'!Z8 -> -22984.60996 | H8: ='I7 Input Rev 03 Init'!C9 -> 39031.58 | I8: ='I8 Input 04 Trueup Sett'!Z8 -> -66454.83658 | J8: ='I9 Input Rev 04 Init'!C9 -> 30388.78 | K8: ='I10 Input 05 Trueup Sett'!Z8 -> -54019.25035 | L8: ='I11 Input Rev 05 Init'!C9 -> 57433.69 | M8: ='I12 Input 06 Trueup Sett'!Z8 -> -71783.48299 | N8: ='I13 Input Rev 06 Init'!C9 -> 54201.4 | O8: ='I14 Input 07 Trueup Sett'!Z8 -> -40286.62384 | P8: ='I15 Input Rev 07 Init'!C9 -> 58100.39 | Q8: ='I16 Input 08 Trueup Sett'!Z8 -> -84101.29361 | R8: ='I17 Input Rev 08 Init'!C9 -> 56120.14 | S8: ='I18 Input 09 Trueup Sett'!Z8 -> -59847.08659 | T8: ='I19 Input Rev 09 Init'!C9 -> 75240.98 | U8: ='I20 Input 10 Trueup Sett'!Z8 -> -63888.65086 | V8: ='I21 Input Rev 10 Init'!C9 -> 62398.04 | W8: ='I22 Input 11 Trueup Sett'!Z8 -> 27581.50468 | X8: ='I23 Input Rev 11 Init'!C9 -> 42086.92 | Y8: ='I24 Input 12 Trueup Sett'!Z8 -> 54406.87791 | Z8: ='I25 Input Rev 12 Init'!C9 -> -14549.53 | AA8: 57358.6315
B9: RPPTOUOFF | C9: ='I2 Input 01 Trueup Sett '!Z9 -> -300336.6737 | D9: ='I3 Input Rev 01 Init'!C10 -> 272301.68 | E9: ='I4 Input 02 Trueup Sett'!Z9 -> -313658.0698 | F9: ='I5 Input Rev 02 Init'!C10 -> 261711.09 | G9: ='I6 Input 03 Trueup Sett'!Z9 -> -248333.2424 | H9: ='I7 Input Rev 03 Init'!C10 -> 333636.8 | I9: ='I8 Input 04 Trueup Sett'!Z9 -> -371408.0312 | J9: ='I9 Input Rev 04 Init'!C10 -> 272037.47 | K9: ='I10 Input 05 Trueup Sett'!Z9 -> -316451.0952 | L9: ='I11 Input Rev 05 Init'!C10 -> 344154.03 | M9: ='I12 Input 06 Trueup Sett'!Z9 -> -364848.4565 | N9: ='I13 Input Rev 06 Init'!C10 -> 321905.2 | O9: ='I14 Input 07 Trueup Sett'!Z9 -> -305792.9671 | P9: ='I15 Input Rev 07 Init'!C10 -> 312587.64 | Q9: ='I16 Input 08 Trueup Sett'!Z9 -> -444140.0411 | R9: ='I17 Input Rev 08 Init'!C10 -> 353084.75 | S9: ='I18 Input 09 Trueup Sett'!Z9 -> -317074.3719 | T9: ='I19 Input Rev 09 Init'!C10 -> 416269.69 | U9: ='I20 Input 10 Trueup Sett'!Z9 -> -353808.8816 | V9: ='I21 Input Rev 10 Init'!C10 -> 321630.98 | W9: ='I22 Input 11 Trueup Sett'!Z9 -> -130330.8242 | X9: ='I23 Input Rev 11 Init'!C10 -> 272840.72 | Y9: ='I24 Input 12 Trueup Sett'!Z9 -> -80417.64383 | Z9: ='I25 Input Rev 12 Init'!C10 -> 161076.88 | AA9: 96636.63154
B10: RPPTOUON | C10: ='I2 Input 01 Trueup Sett '!Z10 -> 46436.03307 | D10: ='I3 Input Rev 01 Init'!C11 -> -42154.87 | E10: ='I4 Input 02 Trueup Sett'!Z10 -> 25434.51856 | F10: ='I5 Input Rev 02 Init'!C11 -> -49516.92 | G10: ='I6 Input 03 Trueup Sett'!Z10 -> 45502.3899 | H10: ='I7 Input Rev 03 Init'!C11 -> -32613.51 | I10: ='I8 Input 04 Trueup Sett'!Z10 -> -11300.10466 | J10: ='I9 Input Rev 04 Init'!C11 -> -36488.52 | K10: ='I10 Input 05 Trueup Sett'!Z10 -> 843.0802103 | L10: ='I11 Input Rev 05 Init'!C11 -> -581.96 | M10: ='I12 Input 06 Trueup Sett'!Z10 -> -16275.01119 | N10: ='I13 Input Rev 06 Init'!C11 -> 677.73 | O10: ='I14 Input 07 Trueup Sett'!Z10 -> 35159.32346 | P10: ='I15 Input Rev 07 Init'!C11 -> 3785.13 | Q10: ='I16 Input 08 Trueup Sett'!Z10 -> -18912.6758 | R10: ='I17 Input Rev 08 Init'!C11 -> -16312.34 | S10: ='I18 Input 09 Trueup Sett'!Z10 -> -3746.892108 | T10: ='I19 Input Rev 09 Init'!C11 -> 11667.93 | U10: ='I20 Input 10 Trueup Sett'!Z10 -> -1835.54473 | V10: ='I21 Input Rev 10 Init'!C11 -> 3282.44 | W10: ='I22 Input 11 Trueup Sett'!Z10 -> 135540.5961 | X10: ='I23 Input Rev 11 Init'!C11 -> -10115.88 | Y10: ='I24 Input 12 Trueup Sett'!Z10 -> 172892.1532 | Z10: ='I25 Input Rev 12 Init'!C11 -> -116472.44 | AA10: 124894.656
B11: RPPULOMID
B12: RPPULOOFF
B13: RPPULOON
B14: RPPULOOVN
B15: Total RPP For Settlement | C15: =SUM(C6:C14) -> -316892.1593 | D15: =SUM(D6:D14) -> 283555.21 | E15: -367000.1775 | F15: 264486.64 | G15: -252965.2007 | H15: 382026.27 | I15: -496063.3793 | J15: 293024.98 | K15: -407698.3177 | L15: 446783.54 | M15: -493973.2986 | N15: 415190.52 | O15: -341269.0093 | P15: 410600.57 | Q15: -592746.3319 | R15: 427937.65 | S15: -412818.9511 | T15: 546026.68 | U15: -461177.5357 | V15: 420116.38 | W15: 33937.25954 | X15: 324988 | Y15: 157931.0277 | Z15: 31210.38 | AA15: 295210.7461
D16: =C15+D15 -> -33336.94927 | F16: =E15+F15 -> -102513.5375 | H16: =G15+H15 -> 129061.0693 | J16: =I15+J15 -> -203038.3993 | L16: =K15+L15 -> 39085.22227 | N16: =M15+N15 -> -78782.77859 | P16: =O15+P15 -> 69331.56067 | R16: =Q15+R15 -> -164808.6819 | T16: =S15+T15 -> 133207.7289 | V16: =U15+V15 -> -41061.15574 | X16: =W15+X15 -> 358925.2595 | Z16: =Y15+Z15 -> 189141.4077
B18: Total RPP kWh For Settlement Reported
B19: Tier 1 | C19: ='I2 Input 01 Trueup Sett '!V6 -> 715443.5689 | D19: =-'I3 Input Rev 01 Init'!B7 -> -687341.15 | E19: ='I4 Input 02 Trueup Sett'!V6 -> 642539.2833 | F19: =-'I5 Input Rev 02 Init'!B7 -> -701965.43 | G19: ='I6 Input 03 Trueup Sett'!V6 -> 654006.4949 | H19: =-'I7 Input Rev 03 Init'!B7 -> -668784.53 | I19: ='I8 Input 04 Trueup Sett'!V6 -> 589767.0946 | J19: =-'I9 Input Rev 04 Init'!B7 -> -604186.13 | K19: ='I10 Input 05 Trueup Sett'!V6 -> 504276.1966 | L19: =-'I11 Input Rev 05 Init'!B7 -> -622630.47 | M19: ='I12 Input 06 Trueup Sett'!V6 -> 461622.0902 | N19: =-'I13 Input Rev 06 Init'!B7 -> -499686.2 | O19: ='I14 Input 07 Trueup Sett'!V6 -> 539972.4173 | P19: =-'I15 Input Rev 07 Init'!B7 -> -433098.76 | Q19: ='I16 Input 08 Trueup Sett'!V6 -> 516405.6344 | R19: =-'I17 Input Rev 08 Init'!B7 -> -543857 | S19: ='I18 Input 09 Trueup Sett'!V6 -> 457081.7851 | T19: =-'I19 Input Rev 09 Init'!B7 -> -496394.58 | U19: ='I20 Input 10 Trueup Sett'!V6 -> 508635.5811 | V19: =-'I21 Input Rev 10 Init'!B7 -> -465252.07 | W19: ='I22 Input 11 Trueup Sett'!V6 -> 629110.6755 | X19: =-'I23 Input Rev 11 Init'!B7 -> -494914.17 | Y19: ='I24 Input 12 Trueup Sett'!V6 -> 690565.5503 | Z19: =-'I25 Input Rev 12 Init'!B7 -> -620577.41 | AA19: =SUM(C19:Z19) -> 70738.47215
B20: Tier 2 | C20: ='I2 Input 01 Trueup Sett '!V7 -> 630282.9545 | D20: =-'I3 Input Rev 01 Init'!B8 -> -468197.39 | E20: ='I4 Input 02 Trueup Sett'!V7 -> 524325.6654 | F20: =-'I5 Input Rev 02 Init'!B8 -> -574763.95 | G20: ='I6 Input 03 Trueup Sett'!V7 -> 352037.6171 | H20: =-'I7 Input Rev 03 Init'!B8 -> -621925.46 | I20: ='I8 Input 04 Trueup Sett'!V7 -> 202332.4652 | J20: =-'I9 Input Rev 04 Init'!B8 -> -312157.74 | K20: ='I10 Input 05 Trueup Sett'!V7 -> 208902.4674 | L20: =-'I11 Input Rev 05 Init'!B8 -> -211140.56 | M20: ='I12 Input 06 Trueup Sett'!V7 -> 189722.7763 | N20: =-'I13 Input Rev 06 Init'!B8 -> -220393.57 | O20: ='I14 Input 07 Trueup Sett'!V7 -> 287766.5069 | P20: =-'I15 Input Rev 07 Init'!B8 -> -168138.27 | Q20: ='I16 Input 08 Trueup Sett'!V7 -> 207197.3755 | R20: =-'I17 Input Rev 08 Init'!B8 -> -299841.43 | S20: ='I18 Input 09 Trueup Sett'!V7 -> 101548.8205 | T20: =-'I19 Input Rev 09 Init'!B8 -> -205263.98 | U20: ='I20 Input 10 Trueup Sett'!V7 -> 165812.0499 | V20: =-'I21 Input Rev 10 Init'!B8 -> -94656.3 | W20: ='I22 Input 11 Trueup Sett'!V7 -> 241853.4159 | X20: =-'I23 Input Rev 11 Init'!B8 -> -166852.28 | Y20: ='I24 Input 12 Trueup Sett'!V7 -> 353094.7694 | Z20: =-'I25 Input Rev 12 Init'!B8 -> -236471.75 | AA20: =SUM(C20:Z20) -> -114925.796
B21: TOU Off-peak | C21: ='I2 Input 01 Trueup Sett '!V8 -> 1945587.664 | D21: =-'I3 Input Rev 01 Init'!B9 -> -1733437.87 | E21: ='I4 Input 02 Trueup Sett'!V8 -> 1666320.932 | F21: =-'I5 Input Rev 02 Init'!B9 -> -1808437.2 | G21: ='I6 Input 03 Trueup Sett'!V8 -> 1746272.364 | H21: =-'I7 Input Rev 03 Init'!B9 -> -1845900.22 | I21: ='I8 Input 04 Trueup Sett'!V8 -> 1448642.892 | J21: =-'I9 Input Rev 04 Init'!B9 -> -1713421.71 | K21: ='I10 Input 05 Trueup Sett'!V8 -> 1383923.071 | L21: =-'I11 Input Rev 05 Init'!B9 -> -1521878.96 | M21: ='I12 Input 06 Trueup Sett'!V8 -> 1404308.176 | N21: =-'I13 Input Rev 06 Init'!B9 -> -1351651.54 | O21: ='I14 Input 07 Trueup Sett'!V8 -> 1789040.516 | P21: =-'I15 Input Rev 07 Init'!B9 -> -1359586.15 | Q21: ='I16 Input 08 Trueup Sett'!V8 -> 1678845.025 | R21: =-'I17 Input Rev 08 Init'!B9 -> -1765605.59 | S21: ='I18 Input 09 Trueup Sett'!V8 -> 1406413.675 | T21: =-'I19 Input Rev 09 Init'!B9 -> -1622439.19 | U21: ='I20 Input 10 Trueup Sett'!V8 -> 1406716.641 | V21: =-'I21 Input Rev 10 Init'!B9 -> -1477025.29 | W21: ='I22 Input 11 Trueup Sett'!V8 -> 1679403.163 | X21: =-'I23 Input Rev 11 Init'!B9 -> -1386524.37 | Y21: ='I24 Input 12 Trueup Sett'!V8 -> 1767515.357 | Z21: =-'I25 Input Rev 12 Init'!B9 -> -1640019.72 | AA21: 97061.6666
B22: TOU Mid-peak | C22: ='I2 Input 01 Trueup Sett '!V9 -> 6812100.793 | D22: =-'I3 Input Rev 01 Init'!B10 -> -6221785.22 | E22: ='I4 Input 02 Trueup Sett'!V9 -> 5978478.496 | F22: =-'I5 Input Rev 02 Init'!B10 -> -6434679.18 | G22: ='I6 Input 03 Trueup Sett'!V9 -> 5889955.288 | H22: =-'I7 Input Rev 03 Init'!B10 -> -6653857.74 | I22: ='I8 Input 04 Trueup Sett'!V9 -> 4960405.46 | J22: =-'I9 Input Rev 04 Init'!B10 -> -5818149.84 | K22: ='I10 Input 05 Trueup Sett'!V9 -> 4651360.654 | L22: =-'I11 Input Rev 05 Init'!B10 -> -5156716.68 | M22: ='I12 Input 06 Trueup Sett'!V9 -> 4553954.916 | N22: =-'I13 Input Rev 06 Init'!B10 -> -4658160.52 | O22: ='I14 Input 07 Trueup Sett'!V9 -> 5935584.357 | P22: =-'I15 Input Rev 07 Init'!B10 -> -4359907.51 | Q22: ='I16 Input 08 Trueup Sett'!V9 -> 5599374.527 | R22: =-'I17 Input Rev 08 Init'!B10 -> -5809521.08 | S22: ='I18 Input 09 Trueup Sett'!V9 -> 4430273.326 | T22: =-'I19 Input Rev 09 Init'!B10 -> -5524454.82 | U22: ='I20 Input 10 Trueup Sett'!V9 -> 4712003.079 | V22: =-'I21 Input Rev 10 Init'!B10 -> -4529522.43 | W22: ='I22 Input 11 Trueup Sett'!V9 -> 5447852.987 | X22: =-'I23 Input Rev 11 Init'!B10 -> -4701558.77 | Y22: ='I24 Input 12 Trueup Sett'!V9 -> 6582339.458 | Z22: =-'I25 Input Rev 12 Init'!B10 -> -5315335.4 | AA22: 370034.1516
B23: TOU On-peak | C23: ='I2 Input 01 Trueup Sett '!V10 -> 2026714.623 | D23: =-'I3 Input Rev 01 Init'!B11 -> -1815454.34 | E23: ='I4 Input 02 Trueup Sett'!V10 -> 1749855.783 | F23: =-'I5 Input Rev 02 Init'!B11 -> -1880710.84 | G23: ='I6 Input 03 Trueup Sett'!V10 -> 1831969.137 | H23: =-'I7 Input Rev 03 Init'!B11 -> -1934770.85 | I23: ='I8 Input 04 Trueup Sett'!V10 -> 1491233.838 | J23: =-'I9 Input Rev 04 Init'!B11 -> -1800547.28 | K23: ='I10 Input 05 Trueup Sett'!V10 -> 1366635.251 | L23: =-'I11 Input Rev 05 Init'!B11 -> -1579984.78 | M23: ='I12 Input 06 Trueup Sett'!V10 -> 1464000.63 | N23: =-'I13 Input Rev 06 Init'!B11 -> -1341141.55 | O23: ='I14 Input 07 Trueup Sett'!V10 -> 2011220.499 | P23: =-'I15 Input Rev 07 Init'!B11 -> -1378783.5 | Q23: ='I16 Input 08 Trueup Sett'!V10 -> 1873449.681 | R23: =-'I17 Input Rev 08 Init'!B11 -> -1978219.6 | S23: ='I18 Input 09 Trueup Sett'!V10 -> 1467807.942 | T23: =-'I19 Input Rev 09 Init'!B11 -> -1831751.05 | U23: ='I20 Input 10 Trueup Sett'!V10 -> 1397983.133 | V23: =-'I21 Input Rev 10 Init'!B11 -> -1562390.06 | W23: ='I22 Input 11 Trueup Sett'!V10 -> 1736491.887 | X23: =-'I23 Input Rev 11 Init'!B11 -> -1375917.04 | Y23: ='I24 Input 12 Trueup Sett'!V10 -> 1824128.266 | Z23: =-'I25 Input Rev 12 Init'!B11 -> -1674696.45 | AA23: 87123.33003
W24: ='I22 Input 11 Trueup Sett'!V11 -> 0 | Y24: ='I24 Input 12 Trueup Sett'!V11 -> 0 | AA24: 0
W25: ='I22 Input 11 Trueup Sett'!V12 -> 0 | Y25: ='I24 Input 12 Trueup Sett'!V12 -> 0 | AA25: 0
W26: ='I22 Input 11 Trueup Sett'!V13 -> 0 | Y26: ='I24 Input 12 Trueup Sett'!V13 -> 0 | AA26: 0
W27: ='I22 Input 11 Trueup Sett'!V14 -> 0 | Y27: ='I24 Input 12 Trueup Sett'!V14 -> 0 | AA27: 0
B28: Total RPP For Settlement | C28: =SUM(C19:C27) -> 12130129.6 | D28: -10926215.97 | E28: 10561520.16 | F28: -11400556.6 | G28: 10474240.9 | H28: -11725238.8 | I28: 8692381.749 | J28: -10248462.7 | K28: 8115097.64 | L28: -9092351.45 | M28: 8073608.59 | N28: -8071033.38 | O28: 10563584.3 | P28: -7699514.19 | Q28: 9875272.242 | R28: -10397044.7 | S28: 7863125.548 | T28: -9680303.62 | U28: 8191150.484 | V28: -8128846.15 | W28: =SUM(W19:W27) -> 9734712.128 | X28: =SUM(X19:X27) -> -8125766.63 | Y28: =SUM(Y19:Y27) -> 11217643.4 | Z28: =SUM(Z19:Z27) -> -9487100.73 | AA28: =SUM(AA19:AA27) -> 510031.8244
D29: =C28+D28 -> 1203913.634 | F29: =E28+F28 -> -839036.4403 | H29: =G28+H28 -> -1250997.898 | J29: =I28+J28 -> -1556080.951 | L29: =K28+L28 -> -977253.8103 | N29: =M28+N28 -> 2575.209845 | P29: =O28+P28 -> 2864070.106 | R29: =Q28+R28 -> -521772.4577 | T29: =S28+T28 -> -1817178.072 | V29: =U28+V28 -> 62304.33442 | X29: =W28+X28 -> 1608945.498 | Z29: =Y28+Z28 -> 1730542.672

Sheet I1a ER Summary
AR3: MAB
B4: kWh Volumes | C4: $ RPP Revenue | D4: $ RPP Energy | E4: $ GA | F4: $ RPP Settlement | G4: Rev RPP Settlement | H4: Net RPP Sett | J4: IESO Energy kWh | K4: IESO Energy Cost | L4: FIT/mFIT kWh | M4: FIT/mFIT kWh | N4: Total Energy kWh | O4: Total Energy Cost | Q4: CT 148 | S4: Wholesale kWh | T4: Retail kWh | U4: Diff kWh | V4: Diff % | X4: RPP kWh | Y4: COP kWh | Z4: Diff kWh | AA4: Diff % | AC4: RPP/WHSL | AE4: Energy Purchases | AF4: Energy Revenue | AG4: RPP Revenue | AH4: Non RPP Revenue | AJ4: RPP kWh | AK4: Non RPP kWh | AL4: Total kWh | AN4: Class A kWh | AP4: Non RPP Class B | AR4: Class B | AS4: Diff
A5: =Admin!B8 -> 201901 | B5: ='I2 Input 01 Trueup Sett '!V15 -> 12130129.6 | C5: ='I2 Input 01 Trueup Sett '!W15 -> 1004383.566 | D5: ='I2 Input 01 Trueup Sett '!X15 -> 339948.2223 | E5: ='I2 Input 01 Trueup Sett '!Y15 -> 981327.5034 | F5: ='I2 Input 01 Trueup Sett '!Z15 -> -316892.1593 | G5: ='I3 Input Rev 01 Init'!C12 -> 283555.21 | H5: =F5+G5 -> -33336.94927 | J5: ='I2 Input 01 Trueup Sett '!C10 -> 24419266.42 | K5: ='I2 Input 01 Trueup Sett '!D10 -> 689467.01 | L5: =N5-J5 -> 219026.49 | M5: =O5-K5 -> 5913.52 | N5: ='I2 Input 01 Trueup Sett '!C11 -> 24638292.91 | O5: ='I2 Input 01 Trueup Sett '!D11 -> 695380.53 | Q5: ='I2 Input 01 Trueup Sett '!B65 -> 1468102.5 | S5: ='I2 Input 01 Trueup Sett '!$C$11 -> 24638292.91 | T5: ='I2 Input 01 Trueup Sett '!$C$30 -> 23975296.69 | U5: =S5-T5 -> 662996.2205 | V5: =T5/S5-1 -> -0.02690917845 | X5: =SUM('I2 Input 01 Trueup Sett '!C20:C25) -> 11686813.52 | Y5: ='I2 Input 01 Trueup Sett '!C41 -> 11711354.47 | Z5: =X5-Y5 -> -24540.94939 | AA5: =Y5/X5-1 -> 0.002099883715 | AC5: =X5/S5 -> 0.4743353592 | AE5: ='I2 Input 01 Trueup Sett '!D11 -> 695380.53 | AF5: ='I2 Input 01 Trueup Sett '!D30 -> 1305435.564 | AG5: =C5 -> 1004383.566 | AH5: =AF5-AG5 -> 301051.9972 | AJ5: =X5 -> 11686813.52 | AK5: =T5-X5 -> 12288483.17 | AL5: =SUM(AJ5:AK5) -> 23975296.69 | AN5: ='I2 Input 01 Trueup Sett '!B57 -> 6497218.58 | AP5: =AK5-AN5 -> 5791264.593 | AR5: 5788804.667 | AS5: =AP5-AR5 -> 2459.92594 | AU5: =X5 -> 11686813.52 | AV5: ='I2 Input 01 Trueup Sett '!V15 -> 12130129.6 | AW5: =AV5/AU5-1 -> 0.03793301623
A6: =A5+1 -> 201902 | B6: ='I4 Input 02 Trueup Sett'!V15 -> 10561520.16 | C6: ='I4 Input 02 Trueup Sett'!W15 -> 872357.5951 | D6: ='I4 Input 02 Trueup Sett'!X15 -> 308887.8022 | E6: ='I4 Input 02 Trueup Sett'!Y15 -> 930469.9704 | F6: ='I4 Input 02 Trueup Sett'!Z15 -> -367000.1775 | G6: ='I5 Input Rev 02 Init'!C12 -> 264486.64 | H6: =F6+G6 -> -102513.5375 | J6: ='I4 Input 02 Trueup Sett'!C10 -> 21639058.86 | K6: ='I4 Input 02 Trueup Sett'!D10 -> 605959.35 | L6: =N6-J6 -> 255325.44 | M6: =O6-K6 -> 6566.73 | N6: ='I4 Input 02 Trueup Sett'!C11 -> 21894384.3 | O6: ='I4 Input 02 Trueup Sett'!D11 -> 612526.08 | Q6: ='I4 Input 02 Trueup Sett'!B77 -> 1393777.06 | S6: ='I4 Input 02 Trueup Sett'!C11 -> 21894384.3 | T6: ='I4 Input 02 Trueup Sett'!C30 -> 22075381.64 | U6: =S6-T6 -> -180997.3378 | V6: =T6/S6-1 -> 0.008266838444 | X6: =SUM('I4 Input 02 Trueup Sett'!C20:C25) -> 10682400.47 | Y6: ='I4 Input 02 Trueup Sett'!C44 -> 10651627.67 | Z6: =X6-Y6 -> 30772.79885 | AA6: =Y6/X6-1 -> -0.002880700732 | AC6: =X6/S6 -> 0.4879059544 | AE6: ='I4 Input 02 Trueup Sett'!D11 -> 612526.08 | AF6: ='I4 Input 02 Trueup Sett'!D30 -> 1198868.129 | AG6: 872357.5951 | AH6: =AF6-AG6 -> 326510.5338 | AJ6: =X6 -> 10682400.47 | AK6: =T6-X6 -> 11392981.17 | AL6: =SUM(AJ6:AK6) -> 22075381.64 | AN6: ='I4 Input 02 Trueup Sett'!B64 -> 6080336.12 | AP6: =AK6-AN6 -> 5312645.049 | AR6: 5283249.597 | AS6: 29395.45167 | AU6: =X6 -> 10682400.47 | AV6: ='I4 Input 02 Trueup Sett'!V15 -> 10561520.16 | AW6: =AV6/AU6-1 -> -0.01131583762
A7: =A6+1 -> 201903 | B7: ='I6 Input 03 Trueup Sett'!V15 -> 10474240.9 | C7: ='I6 Input 03 Trueup Sett'!W15 -> 870507.9725 | D7: ='I6 Input 03 Trueup Sett'!X15 -> 281344.2087 | E7: ='I6 Input 03 Trueup Sett'!Y15 -> 842128.9645 | F7: ='I6 Input 03 Trueup Sett'!Z15 -> -252965.2007 | G7: ='I7 Input Rev 03 Init'!C12 -> 382026.27 | H7: =F7+G7 -> 129061.0693 | J7: ='I6 Input 03 Trueup Sett'!C10 -> 22609798.08 | K7: ='I6 Input 03 Trueup Sett'!D10 -> 618474.36 | L7: 431533.61 | M7: 10958.97 | N7: ='I6 Input 03 Trueup Sett'!C11 -> 23041331.69 | O7: ='I6 Input 03 Trueup Sett'!D11 -> 629433.33 | Q7: ='I6 Input 03 Trueup Sett'!B78 -> 1308789.3 | S7: ='I6 Input 03 Trueup Sett'!C11 -> 23041331.69 | T7: ='I6 Input 03 Trueup Sett'!C30 -> 23071268.43 | U7: -29936.73978 | V7: 0.001299262568 | X7: =SUM('I6 Input 03 Trueup Sett'!C20:C25) -> 10493515.48 | Y7: ='I6 Input 03 Trueup Sett'!C44 -> 10489191.33 | Z7: 4324.146381 | AA7: -0.0004120779532 | AC7: 0.4554213976 | AE7: ='I6 Input 03 Trueup Sett'!D11 -> 629433.33 | AF7: ='I6 Input 03 Trueup Sett'!D30 -> 1213467.93 | AG7: 870507.9725 | AH7: 342959.9571 | AJ7: 10493515.48 | AK7: 12577752.95 | AL7: 23071268.43 | AN7: ='I6 Input 03 Trueup Sett'!B64 -> 6773032.54 | AP7: 5804720.409 | AR7: 6645410.418 | AS7: -840690.0089 | AU7: 10493515.48 | AV7: ='I6 Input 03 Trueup Sett'!V15 -> 10474240.9 | AW7: =AV7/AU7-1 -> -0.001836808596
A8: 201904 | B8: ='I8 Input 04 Trueup Sett'!V15 -> 8692381.749 | C8: ='I8 Input 04 Trueup Sett'!W15 -> 719306.6171 | D8: ='I8 Input 04 Trueup Sett'!X15 -> 143599.3333 | E8: ='I8 Input 04 Trueup Sett'!Y15 -> 1071770.663 | F8: ='I8 Input 04 Trueup Sett'!Z15 -> -496063.3793 | G8: ='I9 Input Rev 04 Init'!C12 -> 293024.98 | H8: -203038.3993 | J8: ='I8 Input 04 Trueup Sett'!C10 -> 19763774.23 | K8: ='I8 Input 04 Trueup Sett'!D10 -> 308331.97 | L8: 508088.96 | M8: 7183.05 | N8: ='I8 Input 04 Trueup Sett'!C11 -> 20271863.19 | O8: ='I8 Input 04 Trueup Sett'!D11 -> 315515.02 | Q8: ='I8 Input 04 Trueup Sett'!B76 -> 1706152.85 | S8: ='I8 Input 04 Trueup Sett'!C11 -> 20271863.19 | T8: ='I8 Input 04 Trueup Sett'!C30 -> 20282091.91 | U8: -10228.71995 | V8: 0.0005045771989 | X8: =SUM('I8 Input 04 Trueup Sett'!C20:C25) -> 8698814.319 | Y8: ='I8 Input 04 Trueup Sett'!C44 -> 8694334.157 | Z8: 4480.161833 | AA8: -0.0005150313213 | AC8: 0.4291077854 | AE8: ='I8 Input 04 Trueup Sett'!D11 -> 315515.02 | AF8: ='I8 Input 04 Trueup Sett'!D30 -> 901409.147 | AG8: 719306.6171 | AH8: 182102.53 | AJ8: 8698814.319 | AK8: 11583277.59 | AL8: 20282091.91 | AN8: ='I8 Input 04 Trueup Sett'!B64 -> 6449713.49 | AP8: 5133564.101 | AR8: 4274243.034 | AS8: 859321.0672 | AU8: 8698814.319 | AV8: ='I8 Input 04 Trueup Sett'!V15 -> 8692381.749 | AW8: =AV8/AU8-1 -> -0.0007394765842
A9: 201905 | B9: ='I10 Input 05 Trueup Sett'!V15 -> 8115097.64 | C9: ='I10 Input 05 Trueup Sett'!W15 -> 672502.1962 | D9: ='I10 Input 05 Trueup Sett'!X15 -> 57698.18032 | E9: ='I10 Input 05 Trueup Sett'!Y15 -> 1022502.334 | F9: ='I10 Input 05 Trueup Sett'!Z15 -> -407698.3177 | G9: ='I11 Input Rev 05 Init'!C12 -> 446783.54 | H9: 39085.22227 | J9: ='I10 Input 05 Trueup Sett'!C10 -> 19117222.05 | K9: ='I10 Input 05 Trueup Sett'!D10 -> 146944.6 | L9: 623563.74 | M9: 3567.33 | N9: ='I10 Input 05 Trueup Sett'!C11 -> 19740785.79 | O9: ='I10 Input 05 Trueup Sett'!D11 -> 150511.93 | Q9: ='I10 Input 05 Trueup Sett'!B76 -> 1662020.36 | S9: ='I10 Input 05 Trueup Sett'!C11 -> 19740785.79 | T9: ='I10 Input 05 Trueup Sett'!C30 -> 19732609.24 | U9: 8176.551996 | V9: -0.0004141958726 | X9: =SUM('I10 Input 05 Trueup Sett'!C20:C25) -> 8110065.502 | Y9: ='I10 Input 05 Trueup Sett'!C44 -> 8103776.438 | Z9: 6289.064087 | AA9: -0.0007754640311 | AC9: 0.4108278966 | AE9: ='I10 Input 05 Trueup Sett'!D11 -> 150511.93 | AF9: ='I10 Input 05 Trueup Sett'!D30 -> 759513.1676 | AG9: 672502.1962 | AH9: 87010.97145 | AJ9: 8110065.502 | AK9: 11622543.74 | AL9: 19732609.24 | AN9: ='I10 Input 05 Trueup Sett'!B64 -> 6554834.45 | AP9: 5067709.286 | AR9: 5048885.569 | AS9: 18823.71692 | AU9: 8110065.502 | AV9: ='I10 Input 05 Trueup Sett'!V15 -> 8115097.64 | AW9: 0.0006204804778
A10: 201906 | B10: ='I12 Input 06 Trueup Sett'!V15 -> 8073608.59 | C10: ='I12 Input 06 Trueup Sett'!W15 -> 676619.0316 | D10: ='I12 Input 06 Trueup Sett'!X15 -> 62085.90771 | E10: ='I12 Input 06 Trueup Sett'!Y15 -> 1108506.422 | F10: ='I12 Input 06 Trueup Sett'!Z15 -> -493973.2986 | G10: ='I13 Input Rev 06 Init'!C12 -> 415190.52 | H10: -78782.77859 | J10: ='I12 Input 06 Trueup Sett'!C10 -> 18873505.47 | K10: ='I12 Input 06 Trueup Sett'!D10 -> 88254.29 | L10: 779635.73 | M10: 3743.36 | N10: ='I12 Input 06 Trueup Sett'!C11 -> 19653141.2 | O10: ='I12 Input 06 Trueup Sett'!D11 -> 91997.65 | Q10: ='I12 Input 06 Trueup Sett'!B76 -> 1783403.07 | S10: ='I12 Input 06 Trueup Sett'!C11 -> 19653141.2 | T10: ='I12 Input 06 Trueup Sett'!C30 -> 19981554.19 | U10: -328412.9878 | V10: 0.01671045786 | X10: =SUM('I12 Input 06 Trueup Sett'!C20:C25) -> 8277696.69 | Y10: ='I12 Input 06 Trueup Sett'!C44 -> 8272587.308 | Z10: 5109.382737 | AA10: -0.000617246914 | AC10: 0.4211894987 | AE10: ='I12 Input 06 Trueup Sett'!D11 -> 91997.65 | AF10: ='I12 Input 06 Trueup Sett'!D30 -> 749819.6743 | AG10: 676619.0316 | AH10: 73200.64277 | AJ10: 8277696.69 | AK10: 11703857.5 | AL10: 19981554.19 | AN10: ='I12 Input 06 Trueup Sett'!B64 -> 6661311.14 | AP10: 5042546.357 | AR10: 5020639.759 | AS10: 21906.59817 | AU10: 8277696.69 | AV10: ='I12 Input 06 Trueup Sett'!V15 -> 8073608.59 | AW10: -0.02465517984
A11: 201907 | B11: ='I14 Input 07 Trueup Sett'!V15 -> 10563584.3 | C11: ='I14 Input 07 Trueup Sett'!W15 -> 890676.562 | D11: ='I14 Input 07 Trueup Sett'!X15 -> 212559.7271 | E11: ='I14 Input 07 Trueup Sett'!Y15 -> 1019385.844 | F11: ='I14 Input 07 Trueup Sett'!Z15 -> -341269.0093 | G11: ='I15 Input Rev 07 Init'!C12 -> 410600.57 | H11: 69331.56067 | J11: ='I14 Input 07 Trueup Sett'!C10 -> 22578956.49 | K11: ='I14 Input 07 Trueup Sett'!D10 -> 496366.06 | L11: 845911.82 | M11: 20611.65 | N11: ='I14 Input 07 Trueup Sett'!C11 -> 23424868.31 | O11: ='I14 Input 07 Trueup Sett'!D11 -> 516977.71 | Q11: ='I14 Input 07 Trueup Sett'!B76 -> 1651655.76 | S11: ='I14 Input 07 Trueup Sett'!C11 -> 23424868.31 | T11: ='I14 Input 07 Trueup Sett'!C30 -> 22936339.8 | U11: 488528.5136 | V11: -0.02085512316 | X11: =SUM('I14 Input 07 Trueup Sett'!C20:C25) -> 10262195.8 | Y11: ='I14 Input 07 Trueup Sett'!C44 -> 10255328.34 | Z11: 6867.456911 | AA11: -0.0006691995598 | AC11: 0.4380897968 | AE11: ='I14 Input 07 Trueup Sett'!D11 -> 516977.71 | AF11: ='I14 Input 07 Trueup Sett'!D30 -> 1132401 | AG11: 890676.562 | AH11: 241724.4377 | AJ11: 10262195.8 | AK11: 12674144 | AL11: 22936339.8 | AN11: ='I14 Input 07 Trueup Sett'!B64 -> 6302077.7 | AP11: 6372066.298 | AR11: 6341327.913 | AS11: 30738.38514 | AU11: 10262195.8 | AV11: ='I14 Input 07 Trueup Sett'!V15 -> 10563584.3 | AW11: 0.02936881184
A12: 201908 | B12: ='I16 Input 08 Trueup Sett'!V15 -> 9875272.242 | C12: ='I16 Input 08 Trueup Sett'!W15 -> 829760.1899 | D12: ='I16 Input 08 Trueup Sett'!X15 -> 177234.726 | E12: ='I16 Input 08 Trueup Sett'!Y15 -> 1245271.796 | F12: ='I16 Input 08 Trueup Sett'!Z15 -> -592746.3319 | G12: ='I17 Input Rev 08 Init'!C12 -> 427937.65 | H12: -164808.6819 | J12: ='I16 Input 08 Trueup Sett'!C10 -> 21027087.72 | K12: ='I16 Input 08 Trueup Sett'!D10 -> 338550.64 | L12: 826795.18 | M12: 14844.08 | N12: ='I16 Input 08 Trueup Sett'!C11 -> 21853882.9 | O12: ='I16 Input 08 Trueup Sett'!D11 -> 353394.72 | Q12: ='I16 Input 08 Trueup Sett'!B76 -> 1991149.31 | S12: ='I16 Input 08 Trueup Sett'!C11 -> 21853882.9 | T12: ='I16 Input 08 Trueup Sett'!C30 -> 21406886.08 | U12: 446996.8168 | V12: -0.02045388542 | X12: =SUM('I16 Input 08 Trueup Sett'!C20:C25) -> 9595790.427 | Y12: ='I16 Input 08 Trueup Sett'!C44 -> 9573565.79 | Z12: 22224.63636 | AA12: -0.002316081883 | AC12: 0.4390885808 | AE12: ='I16 Input 08 Trueup Sett'!D11 -> 353394.72 | AF12: ='I16 Input 08 Trueup Sett'!D30 -> 996810.9655 | AG12: 829760.1899 | AH12: 167050.7755 | AJ12: 9595790.427 | AK12: 11811095.66 | AL12: 21406886.08 | AN12: ='I16 Input 08 Trueup Sett'!B64 -> 6059598.58 | AP12: 5751497.076 | AR12: 5706459.451 | AS12: 45037.6254 | AU12: 9595790.427 | AV12: ='I16 Input 08 Trueup Sett'!V15 -> 9875272.242 | AW12: 0.02912546055
A13: 201909 | B13: ='I18 Input 09 Trueup Sett'!V15 -> 7863125.548 | C13: ='I18 Input 09 Trueup Sett'!W15 -> 661024.6363 | D13: ='I18 Input 09 Trueup Sett'!X15 -> 109824.3772 | E13: ='I18 Input 09 Trueup Sett'!Y15 -> 964019.2102 | F13: ='I18 Input 09 Trueup Sett'!Z15 -> -412818.9511 | G13: ='I19 Input Rev 09 Init'!C12 -> 546026.68 | H13: 133207.7289 | J13: ='I18 Input 09 Trueup Sett'!C10 -> 19179693.88 | K13: ='I18 Input 09 Trueup Sett'!D10 -> 275050.65 | L13: 626226.18 | M13: 10061.43 | N13: ='I18 Input 09 Trueup Sett'!C11 -> 19805920.06 | O13: ='I18 Input 09 Trueup Sett'!D11 -> 285112.08 | Q13: ='I18 Input 09 Trueup Sett'!B76 -> 1653291.85 | S13: ='I18 Input 09 Trueup Sett'!C11 -> 19805920.06 | T13: ='I18 Input 09 Trueup Sett'!C30 -> 19949829.75 | U13: -143909.6897 | V13: 0.007265993667 | X13: =SUM('I18 Input 09 Trueup Sett'!C20:C25) -> 7947053.84 | Y13: ='I18 Input 09 Trueup Sett'!C44 -> 7939732.693 | Z13: 7321.147168 | AA13: -0.0009212404138 | AC13: 0.4012463857 | AE13: ='I18 Input 09 Trueup Sett'!D11 -> 285112.08 | AF13: ='I18 Input 09 Trueup Sett'!D30 -> 835969.0758 | AG13: 661024.6363 | AH13: 174944.4396 | AJ13: 7947053.84 | AK13: 12002775.91 | AL13: 19949829.75 | AN13: ='I18 Input 09 Trueup Sett'!B64 -> 6323220.31 | AP13: 5679555.6 | AR13: 5661086.053 | AS13: 18469.54671 | AU13: 7947053.84 | AV13: ='I18 Input 09 Trueup Sett'!V15 -> 7863125.548 | AW13: -0.01056093156
A14: 201910 | B14: ='I20 Input 10 Trueup Sett'!V15 -> 8191150.484 | C14: ='I20 Input 10 Trueup Sett'!W15 -> 736809.452 | D14: ='I20 Input 10 Trueup Sett'!X15 -> 77437.57645 | E14: ='I20 Input 10 Trueup Sett'!Y15 -> 1120549.411 | F14: ='I20 Input 10 Trueup Sett'!Z15 -> -461177.5357 | G14: ='I21 Input Rev 10 Init'!C12 -> 420116.38 | H14: -41061.15574 | J14: ='I20 Input 10 Trueup Sett'!C10 -> 19223290.15 | K14: ='I20 Input 10 Trueup Sett'!D10 -> 140800.23 | L14: 492957.78 | M14: 3331.93 | N14: ='I20 Input 10 Trueup Sett'!C11 -> 19716247.93 | O14: ='I20 Input 10 Trueup Sett'!D11 -> 144132.16 | Q14: ='I20 Input 10 Trueup Sett'!B76 -> 1903586.39 | S14: ='I20 Input 10 Trueup Sett'!C11 -> 19716247.93 | T14: ='I20 Input 10 Trueup Sett'!C30 -> 19878413.66 | U14: -162165.7339 | V14: 0.008224979442 | X14: =SUM('I20 Input 10 Trueup Sett'!C20:C25) -> 8286603.952 | Y14: ='I20 Input 10 Trueup Sett'!C44 -> 8280720.291 | Z14: 5883.661285 | AA14: -0.0007100208142 | AC14: 0.4202931502 | AE14: ='I20 Input 10 Trueup Sett'!D11 -> 144132.16 | AF14: ='I20 Input 10 Trueup Sett'!D30 -> 832466.1456 | AG14: 736809.452 | AH14: 95656.69365 | AJ14: 8286603.952 | AK14: 11591809.71 | AL14: 19878413.66 | AN14: ='I20 Input 10 Trueup Sett'!B64 -> 5800316.3 | AP14: 5791493.412 | AR14: 5755851.547 | AS14: 35641.86444 | AU14: 8286603.952 | AV14: ='I20 Input 10 Trueup Sett'!V15 -> 8191150.484 | AW14: -0.01151900926
A15: 201911 | B15: ='I22 Input 11 Trueup Sett'!V15 -> 9734712.128 | C15: ='I22 Input 11 Trueup Sett'!W15 -> 1210137.373 | D15: ='I22 Input 11 Trueup Sett'!X15 -> 207596.2748 | E15: ='I22 Input 11 Trueup Sett'!Y15 -> 968603.8382 | F15: ='I22 Input 11 Trueup Sett'!Z15 -> 33937.25954 | G15: ='I23 Input Rev 11 Init'!C12 -> 324988 | H15: 358925.2595 | J15: ='I22 Input 11 Trueup Sett'!C10 -> 21470220.13 | K15: ='I22 Input 11 Trueup Sett'!D10 -> 445779.2 | L15: 184012.66 | M15: 2936.52 | N15: ='I22 Input 11 Trueup Sett'!C11 -> 21654232.79 | O15: ='I22 Input 11 Trueup Sett'!D11 -> 448715.72 | Q15: ='I22 Input 11 Trueup Sett'!B76 -> 1566638.06 | S15: ='I22 Input 11 Trueup Sett'!C11 -> 21654232.79 | T15: ='I22 Input 11 Trueup Sett'!C31 -> 21578381.88 | U15: 75850.90542 | V15: -0.003502821188 | X15: =SUM('I22 Input 11 Trueup Sett'!C20:C25) -> 7959674.956 | Y15: ='I22 Input 11 Trueup Sett'!C44 -> 8821056.877 | Z15: -861381.921 | AA15: 0.1082182282 | AC15: 0.3675805573 | AE15: ='I22 Input 11 Trueup Sett'!D11 -> 448715.72 | AF15: ='I22 Input 11 Trueup Sett'!D31 -> 1448578.115 | AG15: 1210137.373 | AH15: 238440.7429 | AJ15: 7959674.956 | AK15: 13618706.93 | AL15: 21578381.88 | AN15: ='I22 Input 11 Trueup Sett'!B64 -> 5915025.01 | AP15: 7703681.919 | AR15: 5976285.496 | AS15: 1727396.423 | AU15: 7959674.956 | AV15: ='I22 Input 11 Trueup Sett'!V15 -> 9734712.128 | AW15: 0.2230037259
A16: 201912 | B16: ='I24 Input 12 Trueup Sett'!V15 -> 11217643.4 | C16: ='I24 Input 12 Trueup Sett'!W15 -> 1429987.668 | D16: ='I24 Input 12 Trueup Sett'!X15 -> 226572.3097 | E16: ='I24 Input 12 Trueup Sett'!Y15 -> 1045484.331 | F16: ='I24 Input 12 Trueup Sett'!Z15 -> 157931.0277 | G16: ='I25 Input Rev 12 Init'!C12 -> 31210.38 | H16: 189141.4077 | J16: ='I24 Input 12 Trueup Sett'!C10 -> 21761942.42 | K16: ='I24 Input 12 Trueup Sett'!D10 -> 486011.15 | L16: 146115.41 | M16: 2751.6 | N16: ='I24 Input 12 Trueup Sett'!C11 -> 21908057.83 | O16: ='I24 Input 12 Trueup Sett'!D11 -> 488762.75 | Q16: ='I24 Input 12 Trueup Sett'!B76 -> 1606725.15 | S16: ='I24 Input 12 Trueup Sett'!C11 -> 21908057.83 | T16: ='I24 Input 12 Trueup Sett'!C31 -> 21522898.77 | U16: 385159.0581 | V16: -0.01758070301 | X16: =SUM('I24 Input 12 Trueup Sett'!C20:C25) -> 9183618.991 | Y16: ='I24 Input 12 Trueup Sett'!C44 -> 9945831.079 | Z16: -762212.0876 | AA16: 0.08299691966 | AC16: 0.4191890976 | AE16: ='I24 Input 12 Trueup Sett'!D11 -> 488762.75 | AF16: ='I24 Input 12 Trueup Sett'!D31 -> 1635730.157 | AG16: 1429987.668 | AH16: 205742.4887 | AJ16: 9183618.991 | AK16: 12339279.78 | AL16: 21522898.77 | AN16: ='I24 Input 12 Trueup Sett'!B64 -> 4670973.94 | AP16: 7668305.84 | AR16: 5919332.076 | AS16: 1748973.764 | AU16: 9183618.991 | AV16: ='I24 Input 12 Trueup Sett'!V15 -> 11217643.4 | AW16: 0.2214839719
B17: =SUM(B5:B16) -> 115492466.7 | C17: 10574072.86 | D17: 2204788.646 | E17: 12320020.29 | F17: =SUM(F5:F16) -> -3950736.074 | G17: =SUM(G5:G16) -> 4245946.82 | H17: =SUM(H5:H16) -> 295210.7461 | J17: 251663815.9 | K17: 4639989.51 | L17: 5939193 | M17: 92470.17 | N17: 257603008.9 | O17: 4732459.68 | Q17: 19695291.66 | S17: =SUM(S5:S16) -> 257603008.9 | T17: 256390952 | U17: 1212056.857 | V17: =T17/S17-1 -> -0.004705134706 | X17: =SUM(X5:X16) -> 111184243.9 | Y17: 112739106.4 | Z17: -1554862.502 | AA17: =Y17/X17-1 -> 0.01398455795 | AC17: 0.4316108124 | AE17: =SUM(AE5:AE16) -> 4732459.68 | AF17: 13010469.07 | AG17: 10574072.86 | AH17: 2436396.21 | AJ17: =SUM(AJ5:AJ16) -> 111184243.9 | AK17: 145206708.1 | AL17: 256390952 | AN17: 74087658.16 | AP17: =SUM(AP5:AP16) -> 71119049.94 | AR17: =SUM(AR5:AR16) -> 67421575.58 | AS17: =SUM(AS5:AS16) -> 3697474.36 | AU17: =SUM(AU5:AU16) -> 111184243.9 | AV17: =SUM(AV5:AV16) -> 115492466.7 | AW17: 0.03874850113
A20: 4705 GA | B20: ='Rec1 1588 Commodity'!F23 -> 124538.9879
A22: 4707 GA | B22: ='Rec2 1589 Class B'!J23 -> -124538.9879
A24: Should Be $0 | B24: =SUM(B20:B23) -> -2.793967724e-09
A26: (Owed To)/Owed From IESO | B26: =-H17 -> -295210.7461
A28: (Owed To)/Owed From Power Consumer | B28: ='Rec1 1588 Commodity'!L20 -> 91274.824
A30: (Owed To)/Owed From Class B | B30: ='Rec2 1589 Class B'!K20 -> 125896.4581
A32: (Owed To)/Owed From | B32: =SUM(B26:B31) -> -78039.46408
A35: Unresolved Difference as % of Expected GA Payments to IESO | B35: ='Rev3 GA Analysis '!D67 -> -0.0002145497983
A37: Account 1588 as % of Account 4705 | B37: ='Rev3 GA Analysis '!G99 -> 0.006966616409

Sheet I1b RPP Rates
A3: RPP Rates | P3: RPP Rates Split
B4: =Admin!B8 -> 201901 | C4: =B4+1 -> 201902 | D4: =C4+1 -> 201903 | E4: 201904 | F4: 201905 | G4: 201906 | H4: 201907 | I4: 201908 | J4: 201909 | K4: 201910 | L4: 201911 | M4: 201912 | Q4: =B4 -> 201901 | R4: =Q4+1 -> 201902 | S4: =R4+1 -> 201903 | T4: =S4+1 -> 201904 | U4: =T4+1 -> 201905 | V4: =U4+1 -> 201906 | W4: =V4+1 -> 201907 | X4: =W4+1 -> 201908 | Y4: =X4+1 -> 201909 | Z4: =Y4+1 -> 201910 | AA4: =Z4+1 -> 201911 | AB4: =AA4+1 -> 201912
A5: RPPT1 | B5: ='I2 Input 01 Trueup Sett '!Q6 -> 0.07699981692 | C5: ='I4 Input 02 Trueup Sett'!Q6 -> 0.07700004571 | D5: ='I6 Input 03 Trueup Sett'!Q6 -> 0.07699973546 | E5: ='I8 Input 04 Trueup Sett'!Q6 -> 0.07700000217 | F5: ='I10 Input 05 Trueup Sett'!Q6 -> 0.07699963586 | G5: ='I12 Input 06 Trueup Sett'!Q6 -> 0.07700009601 | H5: ='I14 Input 07 Trueup Sett'!Q6 -> 0.07699960178 | I5: ='I16 Input 08 Trueup Sett'!Q6 -> 0.07699966126 | J5: ='I18 Input 09 Trueup Sett'!Q6 -> 0.07700010877 | K5: ='I20 Input 10 Trueup Sett'!Q6 -> 0.079804896 | L5: ='I22 Input 11 Trueup Sett'!Q6 -> 0.1171241595 | M5: ='I24 Input 12 Trueup Sett'!Q6 -> 0.1189935643 | P5: RPPT1 | Q5: ='I2 Input 01 Trueup Sett '!L18 -> 0.05898070278 | R5: ='I4 Input 02 Trueup Sett'!L18 -> 0.06083776516 | S5: ='I6 Input 03 Trueup Sett'!L18 -> 0.06243951243 | T5: ='I8 Input 04 Trueup Sett'!L18 -> 0.0678487337 | U5: ='I10 Input 05 Trueup Sett'!L18 -> 0.06214049652 | V5: ='I12 Input 06 Trueup Sett'!L18 -> 0.05717667447 | W5: ='I14 Input 07 Trueup Sett'!L18 -> 0.05111640161 | X5: ='I16 Input 08 Trueup Sett'!L18 -> 0.05229279981 | Y5: ='I18 Input 09 Trueup Sett'!L18 -> 0.05812978341 | Z5: ='I20 Input 10 Trueup Sett'!L18 -> 0.0620957437 | AA5: ='I22 Input 11 Trueup Sett'!L18 -> 0.06462550379 | AB5: ='I24 Input 12 Trueup Sett'!L18 -> 0.06156066168
A6: RPPT2 | B6: ='I2 Input 01 Trueup Sett '!Q7 -> 0.08899998511 | C6: ='I4 Input 02 Trueup Sett'!Q7 -> 0.0890002528 | D6: ='I6 Input 03 Trueup Sett'!Q7 -> 0.08899980341 | E6: ='I8 Input 04 Trueup Sett'!Q7 -> 0.08900057617 | F6: ='I10 Input 05 Trueup Sett'!Q7 -> 0.08899966895 | G6: ='I12 Input 06 Trueup Sett'!Q7 -> 0.08900058676 | H6: ='I14 Input 07 Trueup Sett'!Q7 -> 0.08899989983 | I6: ='I16 Input 08 Trueup Sett'!Q7 -> 0.0889996944 | J6: ='I18 Input 09 Trueup Sett'!Q7 -> 0.08900094952 | K6: ='I20 Input 10 Trueup Sett'!Q7 -> 0.09360638063 | L6: ='I22 Input 11 Trueup Sett'!Q7 -> 0.1344932726 | M6: ='I24 Input 12 Trueup Sett'!Q7 -> 0.1389902381 | P6: RPPT2 | Q6: ='I2 Input 01 Trueup Sett '!L19 -> 0.05196011709 | R6: ='I4 Input 02 Trueup Sett'!L19 -> 0.04964490504 | S6: ='I6 Input 03 Trueup Sett'!L19 -> 0.03360984537 | T6: ='I8 Input 04 Trueup Sett'!L19 -> 0.02327698794 | U6: ='I10 Input 05 Trueup Sett'!L19 -> 0.02574244657 | V6: ='I12 Input 06 Trueup Sett'!L19 -> 0.02349912981 | W6: ='I14 Input 07 Trueup Sett'!L19 -> 0.02724136986 | X6: ='I16 Input 08 Trueup Sett'!L19 -> 0.02098143427 | Y6: ='I18 Input 09 Trueup Sett'!L19 -> 0.01291456176 | Z6: ='I20 Input 10 Trueup Sett'!L19 -> 0.02024282794 | AA6: ='I22 Input 11 Trueup Sett'!L19 -> 0.0248444343 | AB6: ='I24 Input 12 Trueup Sett'!L19 -> 0.03147673328
A7: RPPTOUMID | B7: ='I2 Input 01 Trueup Sett '!Q8 -> 0.09400008243 | C7: ='I4 Input 02 Trueup Sett'!Q8 -> 0.09400020133 | D7: ='I6 Input 03 Trueup Sett'!Q8 -> 0.09400020977 | E7: ='I8 Input 04 Trueup Sett'!Q8 -> 0.09400087039 | F7: ='I10 Input 05 Trueup Sett'!Q8 -> 0.0940007474 | G7: ='I12 Input 06 Trueup Sett'!Q8 -> 0.0940002422 | H7: ='I14 Input 07 Trueup Sett'!Q8 -> 0.09400012874 | I7: ='I16 Input 08 Trueup Sett'!Q8 -> 0.09400036082 | J7: ='I18 Input 09 Trueup Sett'!Q8 -> 0.09400125673 | K7: ='I20 Input 10 Trueup Sett'!Q8 -> 0.1009544793 | L7: ='I22 Input 11 Trueup Sett'!Q8 -> 0.1372678044 | M7: ='I24 Input 12 Trueup Sett'!Q8 -> 0.1439974635 | P7: RPPTOUMID | Q7: ='I2 Input 01 Trueup Sett '!L20 -> 0.1603929824 | R7: ='I4 Input 02 Trueup Sett'!L20 -> 0.1577728307 | S7: ='I6 Input 03 Trueup Sett'!L20 -> 0.1667206608 | T7: ='I8 Input 04 Trueup Sett'!L20 -> 0.1666566119 | U7: ='I10 Input 05 Trueup Sett'!L20 -> 0.1705368354 | V7: ='I12 Input 06 Trueup Sett'!L20 -> 0.1739381047 | W7: ='I14 Input 07 Trueup Sett'!L20 -> 0.1693592313 | X7: ='I16 Input 08 Trueup Sett'!L20 -> 0.170004936 | Y7: ='I18 Input 09 Trueup Sett'!L20 -> 0.1788619127 | Z7: ='I20 Input 10 Trueup Sett'!L20 -> 0.1717361491 | AA7: ='I22 Input 11 Trueup Sett'!L20 -> 0.1725169826 | AB7: ='I24 Input 12 Trueup Sett'!L20 -> 0.1575656574
A8: RPPTOUOFF | B8: ='I2 Input 01 Trueup Sett '!Q9 -> 0.06499996816 | C8: ='I4 Input 02 Trueup Sett'!Q9 -> 0.06500010502 | D8: ='I6 Input 03 Trueup Sett'!Q9 -> 0.06500014803 | E8: ='I8 Input 04 Trueup Sett'!Q9 -> 0.06500019642 | F8: ='I10 Input 05 Trueup Sett'!Q9 -> 0.06500007608 | G8: ='I12 Input 06 Trueup Sett'!Q9 -> 0.06500002364 | H8: ='I14 Input 07 Trueup Sett'!Q9 -> 0.06500009792 | I8: ='I16 Input 08 Trueup Sett'!Q9 -> 0.06477551305 | J8: ='I18 Input 09 Trueup Sett'!Q9 -> 0.06498429763 | K8: ='I20 Input 10 Trueup Sett'!Q9 -> 0.07128461248 | L8: ='I22 Input 11 Trueup Sett'!Q9 -> 0.09692107023 | M8: ='I24 Input 12 Trueup Sett'!Q9 -> 0.1009987219 | P8: RPPTOUOFF | Q8: ='I2 Input 01 Trueup Sett '!L21 -> 0.5615851616 | R8: ='I4 Input 02 Trueup Sett'!L21 -> 0.5660623097 | S8: ='I6 Input 03 Trueup Sett'!L21 -> 0.5623276515 | T8: ='I8 Input 04 Trueup Sett'!L21 -> 0.5706612529 | U8: ='I10 Input 05 Trueup Sett'!L21 -> 0.5731737141 | V8: ='I12 Input 06 Trueup Sett'!L21 -> 0.5640544579 | W8: ='I14 Input 07 Trueup Sett'!L21 -> 0.5618911338 | X8: ='I16 Input 08 Trueup Sett'!L21 -> 0.5670096367 | Y8: ='I18 Input 09 Trueup Sett'!L21 -> 0.5634239589 | Z8: ='I20 Input 10 Trueup Sett'!L21 -> 0.5752553427 | AA8: ='I22 Input 11 Trueup Sett'!L21 -> 0.5596316476 | AB8: ='I24 Input 12 Trueup Sett'!L21 -> 0.5867845164
A9: RPPTOUON | B9: ='I2 Input 01 Trueup Sett '!Q10 -> 0.1320006431 | C9: ='I4 Input 02 Trueup Sett'!Q10 -> 0.1319998444 | D9: ='I6 Input 03 Trueup Sett'!Q10 -> 0.1320002764 | E9: ='I8 Input 04 Trueup Sett'!Q10 -> 0.1322970393 | F9: ='I10 Input 05 Trueup Sett'!Q10 -> 0.1336510695 | G9: ='I12 Input 06 Trueup Sett'!Q10 -> 0.1340000529 | H9: ='I14 Input 07 Trueup Sett'!Q10 -> 0.1340002787 | I9: ='I16 Input 08 Trueup Sett'!Q10 -> 0.1339999866 | J9: ='I18 Input 09 Trueup Sett'!Q10 -> 0.1340015194 | K9: ='I20 Input 10 Trueup Sett'!Q10 -> 0.1450583431 | L9: ='I22 Input 11 Trueup Sett'!Q10 -> 0.1988986714 | M9: ='I24 Input 12 Trueup Sett'!Q10 -> 0.2079966042 | P9: RPPTOUON | Q9: ='I2 Input 01 Trueup Sett '!L22 -> 0.1670810362 | R9: ='I4 Input 02 Trueup Sett'!L22 -> 0.1656821894 | S9: ='I6 Input 03 Trueup Sett'!L22 -> 0.1749023299 | T9: ='I8 Input 04 Trueup Sett'!L22 -> 0.1715564135 | U9: ='I10 Input 05 Trueup Sett'!L22 -> 0.1684065074 | V9: ='I12 Input 06 Trueup Sett'!L22 -> 0.1813316331 | W9: ='I14 Input 07 Trueup Sett'!L22 -> 0.1903918635 | X9: ='I16 Input 08 Trueup Sett'!L22 -> 0.1897111932 | Y9: ='I18 Input 09 Trueup Sett'!L22 -> 0.1866697832 | Z9: ='I20 Input 10 Trueup Sett'!L22 -> 0.1706699365 | AA9: ='I22 Input 11 Trueup Sett'!L22 -> 0.1783814318 | AB9: ='I24 Input 12 Trueup Sett'!L22 -> 0.1626124312
A10: RPPULOMID | B10: ='I2 Input 01 Trueup Sett '!Q11 -> 0 | C10: ='I4 Input 02 Trueup Sett'!Q11 -> 0 | D10: ='I6 Input 03 Trueup Sett'!Q11 -> 0 | E10: ='I8 Input 04 Trueup Sett'!Q11 -> 0 | F10: ='I10 Input 05 Trueup Sett'!Q11 -> 0 | G10: ='I12 Input 06 Trueup Sett'!Q11 -> 0 | H10: ='I14 Input 07 Trueup Sett'!Q11 -> 0 | I10: ='I16 Input 08 Trueup Sett'!Q11 -> 0 | J10: ='I18 Input 09 Trueup Sett'!Q11 -> 0 | K10: ='I20 Input 10 Trueup Sett'!Q11 -> 0 | L10: ='I22 Input 11 Trueup Sett'!Q11 -> 0 | M10: ='I24 Input 12 Trueup Sett'!Q11 -> 0 | P10: RPPULOMID | Q10: ='I2 Input 01 Trueup Sett '!AF11 -> 0 | R10: ='I4 Input 02 Trueup Sett'!AF11 -> 0 | S10: ='I6 Input 03 Trueup Sett'!AF11 -> 0 | T10: ='I8 Input 04 Trueup Sett'!AF11 -> 0 | U10: ='I10 Input 05 Trueup Sett'!AF11 -> 0 | V10: ='I12 Input 06 Trueup Sett'!AF11 -> 0 | W10: ='I14 Input 07 Trueup Sett'!AF11 -> 0 | X10: ='I16 Input 08 Trueup Sett'!AF11 -> 0 | Y10: ='I18 Input 09 Trueup Sett'!AF11 -> 0 | Z10: ='I20 Input 10 Trueup Sett'!AF11 -> 0 | AA10: ='I22 Input 11 Trueup Sett'!AF11 -> 0 | AB10: ='I24 Input 12 Trueup Sett'!AF11 -> 0
A11: RPPULOOFF | B11: ='I2 Input 01 Trueup Sett '!Q12 -> 0 | C11: ='I4 Input 02 Trueup Sett'!Q12 -> 0 | D11: ='I6 Input 03 Trueup Sett'!Q12 -> 0 | E11: ='I8 Input 04 Trueup Sett'!Q12 -> 0 | F11: ='I10 Input 05 Trueup Sett'!Q12 -> 0 | G11: ='I12 Input 06 Trueup Sett'!Q12 -> 0 | H11: ='I14 Input 07 Trueup Sett'!Q12 -> 0 | I11: ='I16 Input 08 Trueup Sett'!Q12 -> 0 | J11: ='I18 Input 09 Trueup Sett'!Q12 -> 0 | K11: ='I20 Input 10 Trueup Sett'!Q12 -> 0 | L11: ='I22 Input 11 Trueup Sett'!Q12 -> 0 | M11: ='I24 Input 12 Trueup Sett'!Q12 -> 0 | P11: RPPULOOFF | Q11: ='I2 Input 01 Trueup Sett '!AF12 -> 0 | R11: ='I4 Input 02 Trueup Sett'!AF12 -> 0 | S11: ='I6 Input 03 Trueup Sett'!AF12 -> 0 | T11: ='I8 Input 04 Trueup Sett'!AF12 -> 0 | U11: ='I10 Input 05 Trueup Sett'!AF12 -> 0 | V11: ='I12 Input 06 Trueup Sett'!AF12 -> 0 | W11: ='I14 Input 07 Trueup Sett'!AF12 -> 0 | X11: ='I16 Input 08 Trueup Sett'!AF12 -> 0 | Y11: ='I18 Input 09 Trueup Sett'!AF12 -> 0 | Z11: ='I20 Input 10 Trueup Sett'!AF12 -> 0 | AA11: ='I22 Input 11 Trueup Sett'!AF12 -> 0 | AB11: ='I24 Input 12 Trueup Sett'!AF12 -> 0
A12: RPPULOON | B12: ='I2 Input 01 Trueup Sett '!Q13 -> 0 | C12: ='I4 Input 02 Trueup Sett'!Q13 -> 0 | D12: ='I6 Input 03 Trueup Sett'!Q13 -> 0 | E12: ='I8 Input 04 Trueup Sett'!Q13 -> 0 | F12: ='I10 Input 05 Trueup Sett'!Q13 -> 0 | G12: ='I12 Input 06 Trueup Sett'!Q13 -> 0 | H12: ='I14 Input 07 Trueup Sett'!Q13 -> 0 | I12: ='I16 Input 08 Trueup Sett'!Q13 -> 0 | J12: ='I18 Input 09 Trueup Sett'!Q13 -> 0 | K12: ='I20 Input 10 Trueup Sett'!Q13 -> 0 | L12: ='I22 Input 11 Trueup Sett'!Q13 -> 0 | M12: ='I24 Input 12 Trueup Sett'!Q13 -> 0 | P12: RPPULOON | Q12: ='I2 Input 01 Trueup Sett '!AF13 -> 0 | R12: ='I4 Input 02 Trueup Sett'!AF13 -> 0 | S12: ='I6 Input 03 Trueup Sett'!AF13 -> 0 | T12: ='I8 Input 04 Trueup Sett'!AF13 -> 0 | U12: ='I10 Input 05 Trueup Sett'!AF13 -> 0 | V12: ='I12 Input 06 Trueup Sett'!AF13 -> 0 | W12: ='I14 Input 07 Trueup Sett'!AF13 -> 0 | X12: ='I16 Input 08 Trueup Sett'!AF13 -> 0 | Y12: ='I18 Input 09 Trueup Sett'!AF13 -> 0 | Z12: ='I20 Input 10 Trueup Sett'!AF13 -> 0 | AA12: ='I22 Input 11 Trueup Sett'!AF13 -> 0 | AB12: ='I24 Input 12 Trueup Sett'!AF13 -> 0
A13: RPPULOOVN | B13: ='I2 Input 01 Trueup Sett '!Q14 -> 0 | C13: ='I4 Input 02 Trueup Sett'!Q14 -> 0 | D13: ='I6 Input 03 Trueup Sett'!Q14 -> 0 | E13: ='I8 Input 04 Trueup Sett'!Q14 -> 0 | F13: ='I10 Input 05 Trueup Sett'!Q14 -> 0 | G13: ='I12 Input 06 Trueup Sett'!Q14 -> 0 | H13: ='I14 Input 07 Trueup Sett'!Q14 -> 0 | I13: ='I16 Input 08 Trueup Sett'!Q14 -> 0 | J13: ='I18 Input 09 Trueup Sett'!Q14 -> 0 | K13: ='I20 Input 10 Trueup Sett'!Q14 -> 0 | L13: ='I22 Input 11 Trueup Sett'!Q14 -> 0 | M13: ='I24 Input 12 Trueup Sett'!Q14 -> 0 | P13: RPPULOOVN | Q13: ='I2 Input 01 Trueup Sett '!AF14 -> 0 | R13: ='I4 Input 02 Trueup Sett'!AF14 -> 0 | S13: ='I6 Input 03 Trueup Sett'!AF14 -> 0 | T13: ='I8 Input 04 Trueup Sett'!AF14 -> 0 | U13: ='I10 Input 05 Trueup Sett'!AF14 -> 0 | V13: ='I12 Input 06 Trueup Sett'!AF14 -> 0 | W13: ='I14 Input 07 Trueup Sett'!AF14 -> 0 | X13: ='I16 Input 08 Trueup Sett'!AF14 -> 0 | Y13: ='I18 Input 09 Trueup Sett'!AF14 -> 0 | Z13: ='I20 Input 10 Trueup Sett'!AF14 -> 0 | AA13: ='I22 Input 11 Trueup Sett'!AF14 -> 0 | AB13: ='I24 Input 12 Trueup Sett'!AF14 -> 0
Q14: =SUM(Q5:Q13) -> 1 | R14: =SUM(R5:R13) -> 1 | S14: 1 | T14: 1 | U14: 1 | V14: 1 | W14: 1 | X14: 1 | Y14: 1 | Z14: 1 | AA14: 1 | AB14: 1

Sheet I2 Input 01 Trueup Sett
A1: Date: | B1: =Admin!B8 -> 201901 | C1: Trueup | K1: ="Data for 1st True up of RPP Settlement based on Actual IESO Invoice" -> Data for 1st True up of RPP Settlement based on Actual IESO Invoice | P1: For Reconciliation
A3: Wholesale Electricty | B3: Year | C3: 2019 | E3: Rate | P3: Actual RPP Revenue and GA
A4: Redshift Wholesale Report.xlsm | B4: dateref | C4: 201901 | K4: Wholesale Volume data per IESO Power Bill: | L4: GA RPP/non-RPP Ratios | M4: GA Volumes | N4: Energy Volumes | P4: =B1 -> 201901
K5: AQEW | M5: =C10 -> 24419266.42 | N5: =+M5 -> 24419266.42 | P5: RPP Revenue Prices | Q5: RPP Rate | R5: Estimated RPP Energy Price | S5: GA actual IESO billed | T5: Total Commodity | U5: Difference | V5: kWh Volumes | W5: $ Estimated RPP Revenue | X5: $ Estimated RPP Energy | Y5: $ Estimated GA | Z5: $ Estimated RPP Settlement
B6: Wholesale | K6: Embedded Generation | M6: =SUM(C8:C9) -> 219026.49 | N6: =+M6 -> 219026.49 | P6: RPPT1 | Q6: =E20 -> 0.07699981692 | R6: =E39 -> 0.02671439538 | S6: =L32 -> 0.08090000153 | T6: =R6+S6 -> 0.1076143969 | U6: =+Q6-T6 -> -0.03061457999 | V6: =M18 -> 715443.5689 | W6: =Q6*V6 -> 55089.02382 | X6: =R6*V6 -> 19112.64237 | Y6: =+V6*S6 -> 57879.38581 | Z6: =W6-X6-Y6 -> -21903.00437
B7: Source | C7: kWh | D7: Total Cost | K7: Class A customer Volumes for GA (TLF included) | M7: =-B57 -> -6497218.58 | P7: RPPT2 | Q7: =E21 -> 0.08899998511 | R7: =R6 -> 0.02671439538 | S7: =S6 -> 0.08090000153 | T7: =R7+S7 -> 0.1076143969 | U7: =+Q7-T7 -> -0.0186144118 | V7: =M19 -> 630282.9545 | W7: =Q7*V7 -> 56095.17357 | X7: =R7*V7 -> 16837.62805 | Y7: =+V7*S7 -> 50989.89198 | Z7: =W7-X7-Y7 -> -11732.34647
B8: FIT | C8: 202860.5 | D8: 5480.6 | E8: =D8/C8 -> 0.02701659515 | M8: =+M5+M6+M7 -> 18141074.33 | N8: =+N5+N6+N7 -> 24638292.91 | P8: RPPTOUMID | Q8: =E23 -> 0.09400008243 | R8: =E40 -> 0.02818866743 | S8: =S7 -> 0.08090000153 | T8: 0.109088669 | U8: -0.01508858653 | V8: 1945587.664 | W8: 182885.4008 | X8: 54843.52361 | Y8: 157398.045 | Z8: -29356.16781
B9: microFIT | C9: 16165.99 | D9: 432.92 | E9: =D9/C9 -> 0.02677967758 | P9: RPPTOUOFF | Q9: =E24 -> 0.06499996816 | R9: =R8 -> 0.02818866743 | S9: 0.08090000153 | T9: 0.109088669 | U9: -0.0440887008 | V9: 6812100.793 | W9: 442786.3347 | X9: 192024.0438 | Y9: 551098.9646 | Z9: -300336.6737
B10: WHOLESALE | C10: 24419266.42 | D10: 689467.01 | E10: =D10/C10 -> 0.02823455046 | K10: Estimated Retail Volume Revenue Data (TLF Included) | L10: RPP/non-RPP Ratios | M10: GA Volumes | N10: Energy Volumes | P10: RPPTOUON | Q10: 0.1320006431 | R10: =R9 -> 0.02818866743 | S10: 0.08090000153 | T10: 0.109088669 | U10: 0.02291197416 | V10: 2026714.623 | W10: 267527.6336 | X10: 57130.38449 | Y10: 163961.2161 | Z10: 46436.03307
B11: Grand Total | C11: 24638292.91 | D11: 695380.53 | K11: Estimated Retail Revenue Data (Net of Retail Billed/Unbilled) | M11: =+M15 -> 18141074.33 | N11: =+N15 -> 24638292.91 | P11: RPPULOMID | Q11: 0 | R11: 0 | S11: 0 | T11: 0 | U11: 0 | V11: 0 | W11: 0 | X11: 0 | Y11: 0 | Z11: 0
P12: RPPULOOFF | Q12: 0 | R12: 0 | S12: 0 | T12: 0 | U12: 0 | V12: 0 | W12: 0 | X12: 0 | Y12: 0 | Z12: 0
K13: Estimated RPP Sales Quantities | L13: =SUM(C20:C25)/(C30-B57) -> 0.6686555263 | M13: =M8*L13 -> 12130129.6 | N13: =M13 -> 12130129.6 | P13: RPPULOON | Q13: 0 | R13: 0 | S13: 0 | T13: 0 | U13: 0 | V13: 0 | W13: 0 | X13: 0 | Y13: 0 | Z13: 0
A14: RPP Revenue Volume and Price Data | K14: Estimated non-RPP Sales Quantities | L14: =1-L13 -> 0.3313444737 | M14: =M8*L14 -> 6010944.726 | N14: =N8-N13 -> 12508163.31 | P14: RPPULOOVN | Q14: 0 | R14: 0 | S14: 0 | T14: 0 | U14: 0 | V14: 0 | W14: 0 | X14: 0 | Y14: 0 | Z14: 0
A15: ER Summary.xlsm | B15: bill_year | C15: 2019 | K15: Estimated Retail Revenue kWh Volumes | L15: =+L13+L14 -> 1 | M15: =+M13+M14 -> 18141074.33 | N15: =+N13+N14 -> 24638292.91 | V15: =SUM(V6:V14) -> 12130129.6 | W15: =SUM(W6:W14) -> 1004383.566 | X15: =SUM(X6:X14) -> 339948.2223 | Y15: =SUM(Y6:Y14) -> 981327.5034 | Z15: =SUM(Z6:Z14) -> -316892.1593
B16: bill_month | C16: 1 | Z16: =W15-X15-Y15-Z15 -> 0
K17: Estimated RPP Revenue Volume and Price Data | L17: Actual % | M17: kWh Volumes
B18: Row Labels | C18: usagebilled | D18: amountbilled | E18: Rate | K18: RPPT1 | L18: =C20/SUM($C$20:$C$25) -> 0.05898070278 | M18: =$M$13*L18 -> 715443.5689
B19: RPPTIER | K19: RPPT2 | L19: =C21/SUM($C$20:$C$25) -> 0.05196011709 | M19: =$M$13*L19 -> 630282.9545
B20: RPPT1 | C20: 689296.4745 | D20: 53075.70234 | E20: =D20/C20 -> 0.07699981692 | K20: RPPTOUMID | L20: =C23/SUM($C$20:$C$25) -> 0.1603929824 | M20: 1945587.664
B21: RPPT2 | C21: 607248.1988 | D21: 54045.08065 | E21: =D21/C21 -> 0.08899998511 | K21: RPPTOUOFF | L21: =C24/SUM($C$20:$C$25) -> 0.5615851616 | M21: 6812100.793
B22: RPPTOU | K22: RPPTOUON | L22: 0.1670810362 | M22: 2026714.623
B23: RPPTOUMID | C23: 1874482.874 | D23: 176201.5447 | E23: 0.09400008243 | K23: RPPULOMID | L23: 0 | M23: 0
B24: RPPTOUOFF | C24: 6563141.057 | D24: 426603.9597 | E24: 0.06499996816 | K24: RPPULOOFF | L24: 0 | M24: 0
B25: RPPTOUON | C25: 1952644.912 | D25: 257750.3841 | E25: 0.1320006431 | K25: RPPULOON | L25: 0 | M25: 0
B26: RETAIL | K26: RPPULOOVN | L26: 0 | M26: 0
B27: NSLS | C27: 4655632.535 | D27: 126780.1748 | E27: 0.02723156818 | L27: =SUM(L18:L26) -> 1 | M27: =SUM(M18:M26) -> 12130129.6
B28: INTERVAL
B29: HOEP | C29: 7632850.638 | D29: 210978.7173 | E29: 0.02764088115
B30: Grand Total | C30: 23975296.69 | D30: 1305435.564
K31: Global Adjustment | L31: per kWh
C32: =C30/C11-1 -> -0.02690917845 | K32: Class B - GA actual8 | L32: =B49/100 -> 0.08090000153 | N32: GA Posted Price
K33: Class B - GA actual IESO billed | L33: =+M33/M8 -> 0.08092698775 | M33: =B65 -> 1468102.5 | N33: GA Billed by IESO CT 148
A34: RPP COP Volume and Price Data
A35: ER COP Summary.xlsm | B35: bill_year | C35: 2019
B36: bill_month | C36: 1
B38: Row Labels | C38: usagebilled | D38: amountbilled | E38: Rate
B39: RPPTIERED | C39: 1318696.554 | D39: 35228.18112 | E39: =D39/C39 -> 0.02671439538
B40: RPPTOU | C40: 10392657.91 | D40: 292955.1776 | E40: 0.02818866743
B41: Grand Total | C41: 11711354.47 | D41: 328183.3588
C43: =SUM(C20:C25)-C41 -> -24540.94939
C44: =C43/C41 -> -0.002095483444
A45: Global Adjustment - Actual
A46: IESO GA Reconciliation.xlsm
A47: ga_actual | B47: year
A48: month | B48: 2019
A49: 201901 | B49: 8.090000153
A51: Class A kWh
A52: Redshift Class A Report.xlsm
A53: Year | B53: 2019
A55: Class A | B55: Value
A56: kWh
A57: 201901 | B57: 6497218.58
A59: IESO Class B
A60: IESO Invoice Reconciliation.xlsm
A61: chargetype | B61: 148
A63: Sum of chargeamount | B63: year
A64: month | B64: 2019
A65: 201901 | B65: 1468102.5

Sheet I3 Input Rev 01 Init
A1: Reverse IESO Posted
A2: Reverse Previously submitted CT142 By Date Ref.xlsx
A5: =Admin!B8 -> 201901
A6: RPP Revenue Prices | B6: kWh Volumes | C6: $ RPP Settlement
A7: RPPTiered_1 | B7: 687341.15 | C7: 19864.94
A8: RPPTiered_2 | B8: 468197.39 | C8: 7913.01
A9: RPPTOU_MID | B9: 1733437.87 | C9: 25630.45
A10: RPPTOU_OFF | B10: 6221785.22 | C10: 272301.68
A11: RPPTOU_ON | B11: 1815454.34 | C11: -42154.87
A12: Grand Total | B12: 10926215.97 | C12: 283555.21

Sheet I4 Input 02 Trueup Sett
A1: Date: | B1: =Admin!B8+1 -> 201902 | C1: Trueup | K1: ="Data for 1st True up of RPP Settlement based on Actual IESO Invoice" -> Data for 1st True up of RPP Settlement based on Actual IESO Invoice | P1: For Reconciliation
A3: Wholesale Electricty | B3: Year | C3: 2019 | E3: Rate | P3: Actual RPP Revenue and GA
B4: dateref | C4: 201902 | K4: Wholesale Volume data per IESO Power Bill: | L4: GA RPP/non-RPP Ratios | M4: GA Volumes | N4: Energy Volumes | P4: =B1 -> 201902
K5: AQEW | M5: =C10 -> 21639058.86 | N5: =+M5 -> 21639058.86 | P5: RPP Revenue Prices | Q5: RPP Rate | R5: Estimated RPP Energy Price | S5: GA actual IESO billed | T5: Total Commodity | U5: Difference | V5: kWh Volumes | W5: $ Estimated RPP Revenue | X5: $ Estimated RPP Energy | Y5: $ Estimated GA | Z5: $ Estimated RPP Settlement
B6: Wholesale | K6: Embedded Generation | M6: =SUM(C8:C9) -> 255325.44 | N6: =+M6 -> 255325.44 | P6: RPPT1 | Q6: =E20 -> 0.07700004571 | R6: =E42 -> 0.02829565826 | S6: =L32 -> 0.0881000042 | T6: =R6+S6 -> 0.1163956625 | U6: =+Q6-T6 -> -0.03939561675 | V6: =M18 -> 642539.2833 | W6: =Q6*V6 -> 49475.55418 | X6: =R6*V6 -> 18181.07198 | Y6: =+V6*S6 -> 56607.71355 | Z6: =W6-X6-Y6 -> -25313.23135
A7: FIT/mFIT | B7: Source | C7: kWh | D7: Total Cost | K7: Class A customer Volumes for GA (TLF included) | M7: =-B64 -> -6080336.12 | P7: RPPT2 | Q7: =E21 -> 0.0890002528 | R7: =R6 -> 0.02829565826 | S7: =S6 -> 0.0881000042 | T7: =R7+S7 -> 0.1163956625 | U7: =+Q7-T7 -> -0.02739540966 | V7: =M19 -> 524325.6654 | W7: =Q7*V7 -> 46665.11677 | X7: =R7*V7 -> 14836.13985 | Y7: =+V7*S7 -> 46193.09332 | Z7: =W7-X7-Y7 -> -14364.1164
B8: FIT | C8: 237528.4 | D8: 6106.3 | E8: =D8/C8 -> 0.02570766275 | M8: =+M5+M6+M7 -> 15814048.18 | N8: =+N5+N6+N7 -> 21894384.3 | P8: RPPTOUMID | Q8: =E23 -> 0.09400020133 | R8: =E43 -> 0.02936463172 | S8: =S7 -> 0.0881000042 | T8: 0.1174646359 | U8: -0.02346443458 | V8: 1666320.932 | W8: 156634.5031 | X8: 48930.90049 | Y8: 146802.8811 | Z8: -39099.2785
B9: microFIT | C9: 17797.04 | D9: 460.43 | E9: =D9/C9 -> 0.0258711561 | P9: RPPTOUOFF | Q9: =E24 -> 0.06500010502 | R9: =R8 -> 0.02936463172 | S9: 0.0881000042 | T9: 0.1174646359 | U9: -0.0524645309 | V9: 5978478.496 | W9: 388601.7301 | X9: 175555.8193 | Y9: 526703.9806 | Z9: -313658.0698
B10: WHOLESALE | C10: 21639058.86 | D10: 605959.35 | E10: =D10/C10 -> 0.02800303627 | K10: Estimated Retail Volume Revenue Data (TLF Included) | L10: RPP/non-RPP Ratios | M10: GA Volumes | N10: Energy Volumes | P10: RPPTOUON | Q10: 0.1319998444 | R10: =R9 -> 0.02936463172 | S10: 0.0881000042 | T10: 0.1174646359 | U10: 0.01453520845 | V10: 1749855.783 | W10: 230980.691 | X10: 51383.87063 | Y10: 154162.3018 | Z10: 25434.51856
A11: Total Wholesale Electricity | B11: Grand Total | C11: 21894384.3 | D11: 612526.08 | K11: Estimated Retail Revenue Data (Net of Retail Billed/Unbilled) | M11: =+M15 -> 15814048.18 | N11: =+N15 -> 21894384.3 | P11: RPPULOMID | Q11: 0 | R11: 0 | S11: 0 | T11: 0 | U11: 0 | V11: 0 | W11: 0 | X11: 0 | Y11: 0 | Z11: 0
P12: RPPULOOFF | Q12: 0 | R12: 0 | S12: 0 | T12: 0 | U12: 0 | V12: 0 | W12: 0 | X12: 0 | Y12: 0 | Z12: 0
K13: Estimated RPP Sales Quantities | L13: =SUM(C20:C25)/(C30-B64) -> 0.6678568346 | M13: =M8*L13 -> 10561520.16 | N13: =M13 -> 10561520.16 | P13: RPPULOON | Q13: 0 | R13: 0 | S13: 0 | T13: 0 | U13: 0 | V13: 0 | W13: 0 | X13: 0 | Y13: 0 | Z13: 0
A14: RPP Revenue Volume and Price Data | K14: Estimated non-RPP Sales Quantities | L14: =1-L13 -> 0.3321431654 | M14: =M8*L14 -> 5252528.02 | N14: =N8-N13 -> 11332864.14 | P14: RPPULOOVN | Q14: 0 | R14: 0 | S14: 0 | T14: 0 | U14: 0 | V14: 0 | W14: 0 | X14: 0 | Y14: 0 | Z14: 0
B15: bill_year | C15: 2019 | K15: Estimated Retail Revenue kWh Volumes | L15: =+L13+L14 -> 1 | M15: =+M13+M14 -> 15814048.18 | N15: =+N13+N14 -> 21894384.3 | V15: =SUM(V6:V14) -> 10561520.16 | W15: =SUM(W6:W14) -> 872357.5951 | X15: =SUM(X6:X14) -> 308887.8022 | Y15: =SUM(Y6:Y14) -> 930469.9704 | Z15: =SUM(Z6:Z14) -> -367000.1775
B16: bill_month | C16: 2 | Z16: =W15-X15-Y15-Z15 -> 0
K17: Estimated RPP Revenue Volume and Price Data | L17: Actual % | M17: kWh Volumes
B18: Row Labels | C18: usagebilled | D18: amountbilled | E18: Rate | K18: RPPT1 | L18: =C20/SUM($C$20:$C$25) -> 0.06083776516 | M18: =$M$13*L18 -> 642539.2833
B19: RPPTIER | K19: RPPT2 | L19: =C21/SUM($C$20:$C$25) -> 0.04964490504 | M19: =$M$13*L19 -> 524325.6654
B20: RPPT1 | C20: 649893.3711 | D20: 50041.81928 | E20: =D20/C20 -> 0.07700004571 | K20: RPPTOUMID | L20: =C23/SUM($C$20:$C$25) -> 0.1577728307 | M20: 1666320.932
B21: RPPT2 | C21: 530326.7568 | D21: 47199.21542 | E21: =D21/C21 -> 0.0890002528 | K21: RPPTOUOFF | L21: =C24/SUM($C$20:$C$25) -> 0.5660623097 | M21: 5978478.496
B22: RPPTOU | K22: RPPTOUON | L22: 0.1656821894 | M22: 1749855.783
B23: RPPTOUMID | C23: 1685392.56 | D23: 158427.24 | E23: 0.09400020133 | K23: RPPULOMID | L23: 0 | M23: 0
B24: RPPTOUOFF | C24: 6046904.283 | D24: 393049.4134 | E24: 0.06500010502 | K24: RPPULOOFF | L24: 0 | M24: 0
B25: RPPTOUON | C25: 1769883.498 | D25: 233624.3462 | E25: 0.1319998444 | K25: RPPULOON | L25: 0 | M25: 0
B26: RETAIL | K26: RPPULOOVN | L26: 0 | M26: 0
B27: NSLS | C27: 4094620.668 | D27: 113256.6744 | E27: 0.02765986977 | L27: =SUM(L18:L26) -> 1 | M27: =SUM(M18:M26) -> 10561520.16
B28: INTERVAL
B29: HOEP | C29: 7298360.501 | D29: 203269.4202 | E29: 0.02785138116
B30: Grand Total | C30: 22075381.64 | D30: 1198868.129
K31: Global Adjustment | L31: per kWh
C32: =C30/C11-1 -> 0.008266838444 | K32: Class B - GA actual8 | L32: =B69/100 -> 0.0881000042 | N32: GA Posted Price
K33: Class B - GA actual IESO billed | L33: =+M33/M8 -> 0.08813537458 | M33: =B77 -> 1393777.06 | N33: GA Billed by IESO CT 148
A37: RPP COP Volume and Price Data
B38: bill_year | C38: 2019
B39: bill_month | C39: 2
B41: Row Labels | C41: usagebilled | D41: amountbilled | E41: Rate
B42: RPPTIERED | C42: 1149899.486 | D42: 32537.1629 | E42: =D42/C42 -> 0.02829565826
B43: RPPTOU | C43: 9501728.184 | D43: 279014.7488 | E43: 0.02936463172
B44: Grand Total | C44: 10651627.67 | D44: 311551.9117
C46: =SUM(C20:C25)-C44 -> 30772.79885
C47: =C46/C44 -> 0.002889023143
A60: Year | B60: 2019
A62: Class A | B62: Value
A63: kWh
A64: 201902 | B64: 6080336.12
A67: ga_actual | B67: year
A68: month | B68: 2019
A69: 201902 | B69: 8.81000042
A73: chargetype | B73: 148
A75: Sum of chargeamount | B75: year
A76: month | B76: 2019
A77: 201902 | B77: 1393777.06

Sheet I5 Input Rev 02 Init
A1: Reverse IESO Posted
A5: =Admin!B11 -> 201902
A6: RPP Revenue Prices | B6: kWh Volumes | C6: $ RPP Settlement
A7: RPPTiered_1 | B7: 701965.43 | C7: 20937.48
A8: RPPTiered_2 | B8: 574763.95 | C8: 10246.3
A9: RPPTOU_MID | B9: 1808437.2 | C9: 21108.69
A10: RPPTOU_OFF | B10: 6434679.18 | C10: 261711.09
A11: RPPTOU_ON | B11: 1880710.84 | C11: -49516.92
A12: Grand Total | B12: 11400556.6 | C12: 264486.64

Sheet I6 Input 03 Trueup Sett
A1: Date: | B1: =Admin!B8+2 -> 201903 | C1: Trueup | K1: ="Data for 1st True up of RPP Settlement based on Actual IESO Invoice" -> Data for 1st True up of RPP Settlement based on Actual IESO Invoice | P1: For Reconciliation
A3: Wholesale Electricty | B3: Year | C3: 2019 | E3: Rate | P3: Actual RPP Revenue and GA
B4: dateref | C4: 201903 | K4: Wholesale Volume data per IESO Power Bill: | L4: GA RPP/non-RPP Ratios | M4: GA Volumes | N4: Energy Volumes | P4: =B1 -> 201903
K5: AQEW | M5: =C10 -> 22609798.08 | N5: =+M5 -> 22609798.08 | P5: RPP Revenue Prices | Q5: RPP Rate | R5: Estimated RPP Energy Price | S5: GA actual IESO billed | T5: Total Commodity | U5: Difference | V5: kWh Volumes | W5: $ Estimated RPP Revenue | X5: $ Estimated RPP Energy | Y5: $ Estimated GA | Z5: $ Estimated RPP Settlement
B6: Wholesale | K6: Embedded Generation | M6: =SUM(C8:C9) -> 431533.61 | N6: =+M6 -> 431533.61 | P6: RPPT1 | Q6: =E20 -> 0.07699973546 | R6: =E42 -> 0.02778545943 | S6: =L32 -> 0.08039999962 | T6: =R6+S6 -> 0.1081854591 | U6: =+Q6-T6 -> -0.03118572359 | V6: =M18 -> 654006.4949 | W6: =Q6*V6 -> 50358.3271 | X6: =R6*V6 -> 18171.87094 | Y6: =+V6*S6 -> 52582.12194 | Z6: =W6-X6-Y6 -> -20395.66578
A7: FIT/mFIT | B7: Source | C7: kWh | D7: Total Cost | K7: Class A customer Volumes for GA (TLF included) | M7: =-B64 -> -6773032.54 | P7: RPPT2 | Q7: =E21 -> 0.08899980341 | R7: =R6 -> 0.02778545943 | S7: =S6 -> 0.08039999962 | T7: =R7+S7 -> 0.1081854591 | U7: =+Q7-T7 -> -0.01918565564 | V7: =M19 -> 352037.6171 | W7: =Q7*V7 -> 31331.27871 | X7: =R7*V7 -> 9781.526929 | Y7: =+V7*S7 -> 28303.82428 | Z7: =W7-X7-Y7 -> -6754.072495
B8: FIT | C8: 401383.2 | D8: 10196.67 | E8: =D8/C8 -> 0.02540382856 | M8: =+M5+M6+M7 -> 16268299.15 | N8: =+N5+N6+N7 -> 23041331.69 | P8: RPPTOUMID | Q8: =E23 -> 0.09400020977 | R8: =E43 -> 0.02676230928 | S8: =S7 -> 0.08039999962 | T8: 0.1071623089 | U8: -0.01316209913 | V8: 1746272.364 | W8: 164149.9685 | X8: 46734.2811 | Y8: 140400.2974 | Z8: -22984.60996
B9: microFIT | C9: 30150.41 | D9: 762.3 | E9: =D9/C9 -> 0.02528323827 | P9: RPPTOUOFF | Q9: =E24 -> 0.06500014803 | R9: =R8 -> 0.02676230928 | S9: 0.08039999962 | T9: 0.1071623089 | U9: -0.04216216087 | V9: 5889955.288 | W9: 382847.9656 | X9: 157628.8051 | Y9: 473552.4029 | Z9: -248333.2424
B10: WHOLESALE | C10: 22609798.08 | D10: 618474.36 | E10: =D10/C10 -> 0.02735426286 | K10: Estimated Retail Volume Revenue Data (TLF Included) | L10: RPP/non-RPP Ratios | M10: GA Volumes | N10: Energy Volumes | P10: RPPTOUON | Q10: 0.1320002764 | R10: =R9 -> 0.02676230928 | S10: 0.08039999962 | T10: 0.1071623089 | U10: 0.0248379675 | V10: 1831969.137 | W10: 241820.4325 | X10: 49027.72465 | Y10: 147290.3179 | Z10: 45502.3899
A11: Total Wholesale Electricity | B11: Grand Total | C11: 23041331.69 | D11: 629433.33 | K11: Estimated Retail Revenue Data (Net of Retail Billed/Unbilled) | M11: =+M15 -> 16268299.15 | N11: =+N15 -> 23041331.69 | P11: RPPULOMID | Q11: 0 | R11: 0 | S11: 0 | T11: 0 | U11: 0 | V11: 0 | W11: 0 | X11: 0 | Y11: 0 | Z11: 0
P12: RPPULOOFF | Q12: 0 | R12: 0 | S12: 0 | T12: 0 | U12: 0 | V12: 0 | W12: 0 | X12: 0 | Y12: 0 | Z12: 0
K13: Estimated RPP Sales Quantities | L13: =SUM(C20:C25)/(C30-B64) -> 0.6438436376 | M13: =M8*L13 -> 10474240.9 | N13: =M13 -> 10474240.9 | P13: RPPULOON | Q13: 0 | R13: 0 | S13: 0 | T13: 0 | U13: 0 | V13: 0 | W13: 0 | X13: 0 | Y13: 0 | Z13: 0
A14: RPP Revenue Volume and Price Data | K14: Estimated non-RPP Sales Quantities | L14: =1-L13 -> 0.3561563624 | M14: =M8*L14 -> 5794058.248 | N14: =N8-N13 -> 12567090.79 | P14: RPPULOOVN | Q14: 0 | R14: 0 | S14: 0 | T14: 0 | U14: 0 | V14: 0 | W14: 0 | X14: 0 | Y14: 0 | Z14: 0
B15: bill_year | C15: 2019 | K15: Estimated Retail Revenue kWh Volumes | L15: =+L13+L14 -> 1 | M15: =+M13+M14 -> 16268299.15 | N15: =+N13+N14 -> 23041331.69 | V15: =SUM(V6:V14) -> 10474240.9 | W15: =SUM(W6:W14) -> 870507.9725 | X15: =SUM(X6:X14) -> 281344.2087 | Y15: =SUM(Y6:Y14) -> 842128.9645 | Z15: =SUM(Z6:Z14) -> -252965.2007
B16: bill_month | C16: 3 | Z16: =W15-X15-Y15-Z15 -> 0
K17: Estimated RPP Revenue Volume and Price Data | L17: Actual % | M17: kWh Volumes
B18: Row Labels | C18: usagebilled | D18: amountbilled | E18: Rate | K18: RPPT1 | L18: =C20/SUM($C$20:$C$25) -> 0.06243951243 | M18: =$M$13*L18 -> 654006.4949
B19: RPPTIER | K19: RPPT2 | L19: =C21/SUM($C$20:$C$25) -> 0.03360984537 | M19: =$M$13*L19 -> 352037.6171
B20: RPPT1 | C20: 655209.9903 | D20: 50450.99592 | E20: =D20/C20 -> 0.07699973546 | K20: RPPTOUMID | L20: =C23/SUM($C$20:$C$25) -> 0.1667206608 | M20: 1746272.364
B21: RPPT2 | C21: 352685.4327 | D21: 31388.93418 | E21: =D21/C21 -> 0.08899980341 | K21: RPPTOUOFF | L21: =C24/SUM($C$20:$C$25) -> 0.5623276515 | M21: 5889955.288
B22: RPPTOU | K22: RPPTOUON | L22: 0.1749023299 | M22: 1831969.137
B23: RPPTOUMID | C23: 1749485.835 | D23: 164452.0355 | E23: 0.09400020977 | K23: RPPULOMID | L23: 0 | M23: 0
B24: RPPTOUOFF | C24: 5900793.917 | D24: 383552.4781 | E24: 0.06500014803 | K24: RPPULOOFF | L24: 0 | M24: 0
B25: RPPTOUON | C25: 1835340.306 | D25: 242265.4277 | E25: 0.1320002764 | K25: RPPULOON | L25: 0 | M25: 0
B26: RETAIL | K26: RPPULOOVN | L26: 0 | M26: 0
B27: NSLS | C27: 4597750.443 | D27: 123591.2211 | E27: 0.0268808024 | L27: =SUM(L18:L26) -> 1 | M27: =SUM(M18:M26) -> 10474240.9
B28: INTERVAL
B29: HOEP | C29: 7980002.506 | D29: 217766.8371 | E29: 0.02728906876
B30: Grand Total | C30: 23071268.43 | D30: 1213467.93
K31: Global Adjustment | L31: per kWh
C32: =C30/C11-1 -> 0.001299262568 | K32: Class B - GA actual8 | L32: =B69/100 -> 0.08039999962 | N32: GA Posted Price
K33: Class B - GA actual IESO billed | L33: =+M33/M8 -> 0.08045028481 | M33: =B78 -> 1308789.3 | N33: GA Billed by IESO CT 148
A37: RPP COP Volume and Price Data
B38: bill_year | C38: 2019
B39: bill_month | C39: 3
B41: Row Labels | C41: usagebilled | D41: amountbilled | E41: Rate
B42: RPPTIERED | C42: 1003523.777 | D42: 27883.36919 | E42: =D42/C42 -> 0.02778545943
B43: RPPTOU | C43: 9485667.558 | D43: 253858.3689 | E43: 0.02676230928
B44: Grand Total | C44: 10489191.33 | D44: 281741.7381
C46: =SUM(C20:C25)-C44 -> 4324.146381
C47: =C46/C44 -> 0.0004122478314
A60: Year | B60: 2019
A62: Class A | B62: Value
A63: kWh
A64: 201903 | B64: 6773032.54
A67: ga_actual | B67: year
A68: month | B68: 2019
A69: 201903 | B69: 8.039999962
A72: chargetype | B72: 148
A74: Sum of chargeamount | B74: year
A75: month | B75: 2019
A76: 201903 | B76: 1817871.64
B77: -509082.34 | C77: Posted to CT2148 May 2019 Correction to March 2019
B78: =SUM(B76:B77) -> 1308789.3

Sheet I7 Input Rev 03 Init
A1: Reverse IESO Posted
A5: =Admin!B14 -> 201903
A6: RPP Revenue Prices | B6: kWh Volumes | C6: $ RPP Settlement
A7: RPPTiered_1 | B7: 668784.53 | C7: 25614.73
A8: RPPTiered_2 | B8: 621925.46 | C8: 16356.67
A9: RPPTOU_MID | B9: 1845900.22 | C9: 39031.58
A10: RPPTOU_OFF | B10: 6653857.74 | C10: 333636.8
A11: RPPTOU_ON | B11: 1934770.85 | C11: -32613.51
A12: Grand Total | B12: 11725238.8 | C12: 382026.27

Sheet I8 Input 04 Trueup Sett
A1: Date: | B1: =Admin!B8+3 -> 201904 | C1: Trueup | K1: ="Data for 1st True up of RPP Settlement based on Actual IESO Invoice" -> Data for 1st True up of RPP Settlement based on Actual IESO Invoice | P1: For Reconciliation
A3: Wholesale Electricty | B3: Year | C3: 2019 | E3: Rate | P3: Actual RPP Revenue and GA
B4: dateref | C4: 201904 | K4: Wholesale Volume data per IESO Power Bill: | L4: GA RPP/non-RPP Ratios | M4: GA Volumes | N4: Energy Volumes | P4: =B1 -> 201904
K5: AQEW | M5: =C10 -> 19763774.23 | N5: =+M5 -> 19763774.23 | P5: RPP Revenue Prices | Q5: RPP Rate | R5: Estimated RPP Energy Price | S5: GA actual IESO billed | T5: Total Commodity | U5: Difference | V5: kWh Volumes | W5: $ Estimated RPP Revenue | X5: $ Estimated RPP Energy | Y5: $ Estimated GA | Z5: $ Estimated RPP Settlement
B6: Wholesale | K6: Embedded Generation | M6: =SUM(C8:C9) -> 508088.96 | N6: =+M6 -> 508088.96 | P6: RPPT1 | Q6: =E20 -> 0.07700000217 | R6: =E42 -> 0.01597564999 | S6: =L32 -> 0.1232999992 | T6: =R6+S6 -> 0.1392756492 | U6: =+Q6-T6 -> -0.06227564706 | V6: =M18 -> 589767.0946 | W6: =Q6*V6 -> 45412.06756 | X6: =R6*V6 -> 9421.91268 | Y6: =+V6*S6 -> 72718.28231 | Z6: =W6-X6-Y6 -> -36728.12743
A7: FIT/mFIT | B7: Source | C7: kWh | D7: Total Cost | K7: Class A customer Volumes for GA (TLF included) | M7: =-B64 -> -6449713.49 | P7: RPPT2 | Q7: =E21 -> 0.08900057617 | R7: =R6 -> 0.01597564999 | S7: =S6 -> 0.1232999992 | T7: =R7+S7 -> 0.1392756492 | U7: =+Q7-T7 -> -0.05027507306 | V7: =M19 -> 202332.4652 | W7: =Q7*V7 -> 18007.70598 | X7: =R7*V7 -> 3232.392646 | Y7: =+V7*S7 -> 24947.5928 | Z7: =W7-X7-Y7 -> -10172.27947
B8: FIT | C8: 474952.16 | D8: 6706.09 | E8: =D8/C8 -> 0.01411950627 | M8: =+M5+M6+M7 -> 13822149.7 | N8: =+N5+N6+N7 -> 20271863.19 | P8: RPPTOUMID | Q8: =E23 -> 0.09400087039 | R8: =E43 -> 0.01657472795 | S8: =S7 -> 0.1232999992 | T8: 0.1398747272 | U8: -0.0458738568 | V8: 1448642.892 | W8: 136173.6927 | X8: 24010.86183 | Y8: 178617.6675 | Z8: -66454.83658
B9: microFIT | C9: 33136.8 | D9: 476.96 | E9: =D9/C9 -> 0.01439366505 | P9: RPPTOUOFF | Q9: =E24 -> 0.06500019642 | R9: =R8 -> 0.01657472795 | S9: 0.1232999992 | T9: 0.1398747272 | U9: -0.07487453076 | V9: 4960405.46 | W9: 322427.3292 | X9: 82217.371 | Y9: 611617.9894 | Z9: -371408.0312
B10: WHOLESALE | C10: 19763774.23 | D10: 308331.97 | E10: =D10/C10 -> 0.01560086482 | K10: Estimated Retail Volume Revenue Data (TLF Included) | L10: RPP/non-RPP Ratios | M10: GA Volumes | N10: Energy Volumes | P10: RPPTOUON | Q10: 0.1322970393 | R10: =R9 -> 0.01657472795 | S10: 0.1232999992 | T10: 0.1398747272 | U10: -0.007577687933 | V10: 1491233.838 | W10: 197285.8215 | X10: 24716.79516 | Y10: 183869.131 | Z10: -11300.10466
A11: Total Wholesale Electricity | B11: Grand Total | C11: 20271863.19 | D11: 315515.02 | K11: Estimated Retail Revenue Data (Net of Retail Billed/Unbilled) | M11: =+M15 -> 13822149.7 | N11: =+N15 -> 20271863.19 | P11: RPPULOMID | Q11: 0 | R11: 0 | S11: 0 | T11: 0 | U11: 0 | V11: 0 | W11: 0 | X11: 0 | Y11: 0 | Z11: 0
P12: RPPULOOFF | Q12: 0 | R12: 0 | S12: 0 | T12: 0 | U12: 0 | V12: 0 | W12: 0 | X12: 0 | Y12: 0 | Z12: 0
K13: Estimated RPP Sales Quantities | L13: =SUM(C20:C25)/(C30-B64) -> 0.6288733618 | M13: =M8*L13 -> 8692381.749 | N13: =M13 -> 8692381.749 | P13: RPPULOON | Q13: 0 | R13: 0 | S13: 0 | T13: 0 | U13: 0 | V13: 0 | W13: 0 | X13: 0 | Y13: 0 | Z13: 0
A14: RPP Revenue Volume and Price Data | K14: Estimated non-RPP Sales Quantities | L14: =1-L13 -> 0.3711266382 | M14: =M8*L14 -> 5129767.951 | N14: =N8-N13 -> 11579481.44 | P14: RPPULOOVN | Q14: 0 | R14: 0 | S14: 0 | T14: 0 | U14: 0 | V14: 0 | W14: 0 | X14: 0 | Y14: 0 | Z14: 0
B15: bill_year | C15: 2019 | K15: Estimated Retail Revenue kWh Volumes | L15: =+L13+L14 -> 1 | M15: =+M13+M14 -> 13822149.7 | N15: =+N13+N14 -> 20271863.19 | V15: =SUM(V6:V14) -> 8692381.749 | W15: =SUM(W6:W14) -> 719306.6171 | X15: =SUM(X6:X14) -> 143599.3333 | Y15: =SUM(Y6:Y14) -> 1071770.663 | Z15: =SUM(Z6:Z14) -> -496063.3793
B16: bill_month | C16: 4 | Z16: =W15-X15-Y15-Z15 -> 0
K17: Estimated RPP Revenue Volume and Price Data | L17: Actual % | M17: kWh Volumes
B18: Row Labels | C18: usagebilled | D18: amountbilled | E18: Rate | K18: RPPT1 | L18: =C20/SUM($C$20:$C$25) -> 0.0678487337 | M18: =$M$13*L18 -> 589767.0946
B19: RPPTIER | K19: RPPT2 | L19: =C21/SUM($C$20:$C$25) -> 0.02327698794 | M19: =$M$13*L19 -> 202332.4652
B20: RPPT1 | C20: 590203.5362 | D20: 45445.67357 | E20: =D20/C20 -> 0.07700000217 | K20: RPPTOUMID | L20: =C23/SUM($C$20:$C$25) -> 0.1666566119 | M20: 1448642.892
B21: RPPT2 | C21: 202482.196 | D21: 18021.03211 | E21: =D21/C21 -> 0.08900057617 | K21: RPPTOUOFF | L21: =C24/SUM($C$20:$C$25) -> 0.5706612529 | M21: 4960405.46
B22: RPPTOU | K22: RPPTOUON | L22: 0.1715564135 | M22: 1491233.838
B23: RPPTOUMID | C23: 1449714.922 | D23: 136274.4645 | E23: 0.09400087039 | K23: RPPULOMID | L23: 0 | M23: 0
B24: RPPTOUOFF | C24: 4964076.278 | D24: 322665.9331 | E24: 0.06500019642 | K24: RPPULOOFF | L24: 0 | M24: 0
B25: RPPTOUON | C25: 1492337.386 | D25: 197431.8177 | E25: 0.1322970393 | K25: RPPULOON | L25: 0 | M25: 0
B26: RETAIL | K26: RPPULOOVN | L26: 0 | M26: 0
B27: NSLS | C27: 4451389.056 | D27: 69888.848 | E27: 0.01570045824 | L27: =SUM(L18:L26) -> 1 | M27: =SUM(M18:M26) -> 8692381.749
B28: INTERVAL
B29: HOEP | C29: 7131888.535 | D29: 111681.378 | E29: 0.01565943963
B30: Grand Total | C30: 20282091.91 | D30: 901409.147
K31: Global Adjustment | L31: per kWh
C32: =C30/C11-1 -> 0.0005045771989 | K32: Class B - GA actual8 | L32: =B69/100 -> 0.1232999992 | N32: GA Posted Price
K33: Class B - GA actual IESO billed | L33: =+M33/M8 -> 0.1234361432 | M33: =B76 -> 1706152.85 | N33: GA Billed by IESO CT 148
A37: RPP COP Volume and Price Data
B38: bill_year | C38: 2019
B39: bill_month | C39: 4
B41: Row Labels | C41: usagebilled | D41: amountbilled | E41: Rate
B42: RPPTIERED | C42: 788597.7811 | D42: 12598.36214 | E42: =D42/C42 -> 0.01597564999
B43: RPPTOU | C43: 7905736.376 | D43: 131035.4296 | E43: 0.01657472795
B44: Grand Total | C44: 8694334.157 | D44: 143633.7918
C46: =SUM(C20:C25)-C44 -> 4480.161833
C47: =C46/C44 -> 0.0005152967153
A60: Year | B60: 2019
A62: Class A | B62: Value
A63: kWh
A64: 201904 | B64: 6449713.49
A67: ga_actual | B67: year
A68: month | B68: 2019
A69: 201904 | B69: 12.32999992
A72: chargetype | B72: 148
A74: Sum of chargeamount | B74: year
A75: month | B75: 2019
A76: 201904 | B76: 1706152.85

Sheet I9 Input Rev 04 Init
A1: Reverse IESO Posted
A5: =Admin!B17 -> 201904
A6: RPP Revenue Prices | B6: kWh Volumes | C6: $ RPP Settlement
A7: RPPTiered_1 | B7: 604186.13 | C7: 20294.06
A8: RPPTiered_2 | B8: 312157.74 | C8: 6793.19
A9: RPPTOU_MID | B9: 1713421.71 | C9: 30388.78
A10: RPPTOU_OFF | B10: 5818149.84 | C10: 272037.47
A11: RPPTOU_ON | B11: 1800547.28 | C11: -36488.52
A12: Grand Total | B12: 10248462.7 | C12: 293024.98

Sheet I10 Input 05 Trueup Sett
A1: Date: | B1: =Admin!B8+4 -> 201905 | C1: Trueup | K1: ="Data for 1st True up of RPP Settlement based on Actual IESO Invoice" -> Data for 1st True up of RPP Settlement based on Actual IESO Invoice | P1: For Reconciliation
A3: Wholesale Electricty | B3: Year | C3: 2019 | E3: Rate | P3: Actual RPP Revenue and GA
B4: dateref | C4: 201905 | K4: Wholesale Volume data per IESO Power Bill: | L4: GA RPP/non-RPP Ratios | M4: GA Volumes | N4: Energy Volumes | P4: =B1 -> 201905
K5: AQEW | M5: =C10 -> 19117222.05 | N5: =+M5 -> 19117222.05 | P5: RPP Revenue Prices | Q5: RPP Rate | R5: Estimated RPP Energy Price | S5: GA actual IESO billed | T5: Total Commodity | U5: Difference | V5: kWh Volumes | W5: $ Estimated RPP Revenue | X5: $ Estimated RPP Energy | Y5: $ Estimated GA | Z5: $ Estimated RPP Settlement
B6: Wholesale | K6: Embedded Generation | M6: =SUM(C8:C9) -> 623563.74 | N6: =+M6 -> 623563.74 | P6: RPPT1 | Q6: =E20 -> 0.07699963586 | R6: =E42 -> 0.007896859871 | S6: =L32 -> 0.1260000038 | T6: =R6+S6 -> 0.1338968637 | U6: =+Q6-T6 -> -0.05689722782 | V6: =M18 -> 504276.1966 | W6: =Q6*V6 -> 38829.08352 | X6: =R6*V6 -> 3982.198461 | Y6: =+V6*S6 -> 63538.8027 | Z6: =W6-X6-Y6 -> -28691.91765
A7: FIT/mFIT | B7: Source | C7: kWh | D7: Total Cost | K7: Class A customer Volumes for GA (TLF included) | M7: =-B64 -> -6554834.45 | P7: RPPT2 | Q7: =E21 -> 0.08899966895 | R7: =R6 -> 0.007896859871 | S7: =S6 -> 0.1260000038 | T7: =R7+S7 -> 0.1338968637 | U7: =+Q7-T7 -> -0.04489719473 | V7: =M19 -> 208902.4674 | W7: =Q7*V7 -> 18592.25045 | X7: =R7*V7 -> 1649.673512 | Y7: =+V7*S7 -> 26321.71169 | Z7: =W7-X7-Y7 -> -9379.134761
B8: FIT | C8: 584252.95 | D8: 3345.03 | E8: =D8/C8 -> 0.005725311271 | M8: =+M5+M6+M7 -> 13185951.34 | N8: =+N5+N6+N7 -> 19740785.79 | P8: RPPTOUMID | Q8: =E23 -> 0.0940007474 | R8: =E43 -> 0.007034163508 | S8: =S7 -> 0.1260000038 | T8: 0.1330341673 | U8: -0.03903341992 | V8: 1383923.071 | W8: 130089.803 | X8: 9734.741161 | Y8: 174374.3122 | Z8: -54019.25035
B9: microFIT | C9: 39310.79 | D9: 222.3 | E9: =D9/C9 -> 0.00565493596 | P9: RPPTOUOFF | Q9: =E24 -> 0.06500007608 | R9: =R8 -> 0.007034163508 | S9: 0.1260000038 | T9: 0.1330341673 | U9: -0.06803409125 | V9: 4651360.654 | W9: 302338.7964 | X9: 32718.43138 | Y9: 586071.4602 | Z9: -316451.0952
B10: WHOLESALE | C10: 19117222.05 | D10: 146944.6 | E10: =D10/C10 -> 0.007686503804 | K10: Estimated Retail Volume Revenue Data (TLF Included) | L10: RPP/non-RPP Ratios | M10: GA Volumes | N10: Energy Volumes | P10: RPPTOUON | Q10: 0.1336510695 | R10: =R9 -> 0.007034163508 | S10: 0.1260000038 | T10: 0.1330341673 | U10: 0.0006169021397 | V10: 1366635.251 | W10: 182652.2628 | X10: 9613.135808 | Y10: 172196.0468 | Z10: 843.0802103
A11: Total Wholesale Electricity | B11: Grand Total | C11: 19740785.79 | D11: 150511.93 | K11: Estimated Retail Revenue Data (Net of Retail Billed/Unbilled) | M11: =+M15 -> 13185951.34 | N11: =+N15 -> 19740785.79 | P11: RPPULOMID | Q11: 0 | R11: 0 | S11: 0 | T11: 0 | U11: 0 | V11: 0 | W11: 0 | X11: 0 | Y11: 0 | Z11: 0
P12: RPPULOOFF | Q12: 0 | R12: 0 | S12: 0 | T12: 0 | U12: 0 | V12: 0 | W12: 0 | X12: 0 | Y12: 0 | Z12: 0
K13: Estimated RPP Sales Quantities | L13: =SUM(C20:C25)/(C30-B64) -> 0.6154351272 | M13: =M8*L13 -> 8115097.64 | N13: =M13 -> 8115097.64 | P13: RPPULOON | Q13: 0 | R13: 0 | S13: 0 | T13: 0 | U13: 0 | V13: 0 | W13: 0 | X13: 0 | Y13: 0 | Z13: 0
A14: RPP Revenue Volume and Price Data | K14: Estimated non-RPP Sales Quantities | L14: =1-L13 -> 0.3845648728 | M14: =M8*L14 -> 5070853.7 | N14: =N8-N13 -> 11625688.15 | P14: RPPULOOVN | Q14: 0 | R14: 0 | S14: 0 | T14: 0 | U14: 0 | V14: 0 | W14: 0 | X14: 0 | Y14: 0 | Z14: 0
B15: bill_year | C15: 2019 | K15: Estimated Retail Revenue kWh Volumes | L15: =+L13+L14 -> 1 | M15: =+M13+M14 -> 13185951.34 | N15: =+N13+N14 -> 19740785.79 | V15: =SUM(V6:V14) -> 8115097.64 | W15: =SUM(W6:W14) -> 672502.1962 | X15: =SUM(X6:X14) -> 57698.18032 | Y15: =SUM(Y6:Y14) -> 1022502.334 | Z15: =SUM(Z6:Z14) -> -407698.3177
B16: bill_month | C16: 5 | Z16: =W15-X15-Y15-Z15 -> 0
K17: Estimated RPP Revenue Volume and Price Data | L17: Actual % | M17: kWh Volumes
B18: Row Labels | C18: usagebilled | D18: amountbilled | E18: Rate | K18: RPPT1 | L18: =C20/SUM($C$20:$C$25) -> 0.06214049652 | M18: =$M$13*L18 -> 504276.1966
B19: RPPTIER | K19: RPPT2 | L19: =C21/SUM($C$20:$C$25) -> 0.02574244657 | M19: =$M$13*L19 -> 208902.4674
B20: RPPT1 | C20: 503963.4971 | D20: 38805.00577 | E20: =D20/C20 -> 0.07699963586 | K20: RPPTOUMID | L20: =C23/SUM($C$20:$C$25) -> 0.1705368354 | M20: 1383923.071
B21: RPPT2 | C21: 208772.9279 | D21: 18580.72147 | E21: =D21/C21 -> 0.08899966895 | K21: RPPTOUOFF | L21: =C24/SUM($C$20:$C$25) -> 0.5731737141 | M21: 4651360.654
B22: RPPTOU | K22: RPPTOUON | L22: 0.1684065074 | M22: 1366635.251
B23: RPPTOUMID | C23: 1383064.906 | D23: 130009.1349 | E23: 0.0940007474 | K23: RPPULOMID | L23: 0 | M23: 0
B24: RPPTOUOFF | C24: 4648476.366 | D24: 302151.3174 | E24: 0.06500007608 | K24: RPPULOOFF | L24: 0 | M24: 0
B25: RPPTOUON | C25: 1365787.806 | D25: 182539.0009 | E25: 0.1336510695 | K25: RPPULOON | L25: 0 | M25: 0
B26: RETAIL | K26: RPPULOOVN | L26: 0 | M26: 0
B27: NSLS | C27: 4565702.567 | D27: 34130.55373 | E27: 0.007475422068 | L27: =SUM(L18:L26) -> 1 | M27: =SUM(M18:M26) -> 8115097.64
B28: INTERVAL
B29: HOEP | C29: 7056841.168 | D29: 53297.43346 | E29: 0.007552590768
B30: Grand Total | C30: 19732609.24 | D30: 759513.1676
K31: Global Adjustment | L31: per kWh
C32: =C30/C11-1 -> -0.0004141958726 | K32: Class B - GA actual8 | L32: =B69/100 -> 0.1260000038 | N32: GA Posted Price
K33: Class B - GA actual IESO billed | L33: =+M33/M8 -> 0.1260447818 | M33: =B76 -> 1662020.36 | N33: GA Billed by IESO CT 148
A37: RPP COP Volume and Price Data
B38: bill_year | C38: 2019
B39: bill_month | C39: 5
B41: Row Labels | C41: usagebilled | D41: amountbilled | E41: Rate
B42: RPPTIERED | C42: 706551.7977 | D42: 5579.540537 | E42: =D42/C42 -> 0.007896859871
B43: RPPTOU | C43: 7397224.641 | D43: 52033.28762 | E43: 0.007034163508
B44: Grand Total | C44: 8103776.438 | D44: 57612.82816
C46: =SUM(C20:C25)-C44 -> 6289.064087
C47: =C46/C44 -> 0.0007760658423
A60: Year | B60: 2019
A62: Class A | B62: Value
A63: kWh
A64: 201905 | B64: 6554834.45
A67: ga_actual | B67: year
A68: month | B68: 2019
A69: 201905 | B69: 12.60000038
A72: chargetype | B72: 148
A74: Sum of chargeamount | B74: year
A75: month | B75: 2019
A76: 201905 | B76: 1662020.36

Sheet I11 Input Rev 05 Init
A1: Reverse IESO Posted
A5: =Admin!B20 -> 201905
A6: RPP Revenue Prices | B6: kWh Volumes | C6: $ RPP Settlement
A7: RPPTiered_1 | B7: 622630.47 | C7: 36080.16
A8: RPPTiered_2 | B8: 211140.56 | C8: 9697.62
A9: RPPTOU_MID | B9: 1521878.96 | C9: 57433.69
A10: RPPTOU_OFF | B10: 5156716.68 | C10: 344154.03
A11: RPPTOU_ON | B11: 1579984.78 | C11: -581.96
A12: Grand Total | B12: 9092351.45 | C12: 446783.54

Sheet I12 Input 06 Trueup Sett
A1: Date: | B1: =Admin!B8+5 -> 201906 | C1: Trueup | K1: ="Data for 1st True up of RPP Settlement based on Actual IESO Invoice" -> Data for 1st True up of RPP Settlement based on Actual IESO Invoice | P1: For Reconciliation
A3: Wholesale Electricty | B3: Year | C3: 2019 | E3: Rate | P3: Actual RPP Revenue and GA
B4: dateref | C4: 201906 | K4: Wholesale Volume data per IESO Power Bill: | L4: GA RPP/non-RPP Ratios | M4: GA Volumes | N4: Energy Volumes | P4: =B1 -> 201906
K5: AQEW | M5: =C10 -> 18873505.47 | N5: =+M5 -> 18873505.47 | P5: RPP Revenue Prices | Q5: RPP Rate | R5: Estimated RPP Energy Price | S5: GA actual IESO billed | T5: Total Commodity | U5: Difference | V5: kWh Volumes | W5: $ Estimated RPP Revenue | X5: $ Estimated RPP Energy | Y5: $ Estimated GA | Z5: $ Estimated RPP Settlement
B6: Wholesale | K6: Embedded Generation | M6: =SUM(C8:C9) -> 779635.73 | N6: =+M6 -> 779635.73 | P6: RPPT1 | Q6: =E20 -> 0.07700009601 | R6: =E42 -> 0.006244133692 | S6: =L32 -> 0.1372999954 | T6: =R6+S6 -> 0.1435441291 | U6: =+Q6-T6 -> -0.0665440331 | V6: =M18 -> 461622.0902 | W6: =Q6*V6 -> 35544.94526 | X6: =R6*V6 -> 2882.430046 | Y6: =+V6*S6 -> 63380.71087 | Z6: =W6-X6-Y6 -> -30718.19565
A7: FIT/mFIT | B7: Source | C7: kWh | D7: Total Cost | K7: Class A customer Volumes for GA (TLF included) | M7: =-B64 -> -6661311.14 | P7: RPPT2 | Q7: =E21 -> 0.08900058676 | R7: =R6 -> 0.006244133692 | S7: =S6 -> 0.1372999954 | T7: =R7+S7 -> 0.1435441291 | U7: =+Q7-T7 -> -0.05454354236 | V7: =M19 -> 189722.7763 | W7: =Q7*V7 -> 16885.43841 | X7: =R7*V7 -> 1184.654379 | Y7: =+V7*S7 -> 26048.93631 | Z7: =W7-X7-Y7 -> -10348.15228
B8: FIT | C8: 732465.18 | D8: 3502.84 | E8: =D8/C8 -> 0.004782261458 | M8: =+M5+M6+M7 -> 12991830.06 | N8: =+N5+N6+N7 -> 19653141.2 | P8: RPPTOUMID | Q8: =E23 -> 0.0940002422 | R8: =E43 -> 0.007816863621 | S8: =S7 -> 0.1372999954 | T8: 0.145116859 | U8: -0.05111661684 | V8: 1404308.176 | W8: 132005.3087 | X8: 10977.2855 | Y8: 192811.5062 | Z8: -71783.48299
B9: microFIT | C9: 47170.55 | D9: 240.52 | E9: =D9/C9 -> 0.005098944151 | P9: RPPTOUOFF | Q9: =E24 -> 0.06500002364 | R9: =R8 -> 0.007816863621 | S9: 0.1372999954 | T9: 0.145116859 | U9: -0.0801168354 | V9: 4553954.916 | W9: 296007.1772 | X9: 35597.64452 | Y9: 625257.9892 | Z9: -364848.4565
B10: WHOLESALE | C10: 18873505.47 | D10: 88254.29 | E10: =D10/C10 -> 0.004676094229 | K10: Estimated Retail Volume Revenue Data (TLF Included) | L10: RPP/non-RPP Ratios | M10: GA Volumes | N10: Energy Volumes | P10: RPPTOUON | Q10: 0.1340000529 | R10: =R9 -> 0.007816863621 | S10: 0.1372999954 | T10: 0.145116859 | U10: -0.01111680614 | V10: 1464000.63 | W10: 196176.1619 | X10: 11443.89327 | Y10: 201007.2799 | Z10: -16275.01119
A11: Total Wholesale Electricity | B11: Grand Total | C11: 19653141.2 | D11: 91997.65 | K11: Estimated Retail Revenue Data (Net of Retail Billed/Unbilled) | M11: =+M15 -> 12991830.06 | N11: =+N15 -> 19653141.2 | P11: RPPULOMID | Q11: 0 | R11: 0 | S11: 0 | T11: 0 | U11: 0 | V11: 0 | W11: 0 | X11: 0 | Y11: 0 | Z11: 0
P12: RPPULOOFF | Q12: 0 | R12: 0 | S12: 0 | T12: 0 | U12: 0 | V12: 0 | W12: 0 | X12: 0 | Y12: 0 | Z12: 0
K13: Estimated RPP Sales Quantities | L13: =SUM(C20:C25)/(C30-B64) -> 0.6214373612 | M13: =M8*L13 -> 8073608.59 | N13: =M13 -> 8073608.59 | P13: RPPULOON | Q13: 0 | R13: 0 | S13: 0 | T13: 0 | U13: 0 | V13: 0 | W13: 0 | X13: 0 | Y13: 0 | Z13: 0
A14: RPP Revenue Volume and Price Data | K14: Estimated non-RPP Sales Quantities | L14: =1-L13 -> 0.3785626388 | M14: =M8*L14 -> 4918221.47 | N14: =N8-N13 -> 11579532.61 | P14: RPPULOOVN | Q14: 0 | R14: 0 | S14: 0 | T14: 0 | U14: 0 | V14: 0 | W14: 0 | X14: 0 | Y14: 0 | Z14: 0
B15: bill_year | C15: 2019 | K15: Estimated Retail Revenue kWh Volumes | L15: =+L13+L14 -> 1 | M15: =+M13+M14 -> 12991830.06 | N15: =+N13+N14 -> 19653141.2 | V15: =SUM(V6:V14) -> 8073608.59 | W15: =SUM(W6:W14) -> 676619.0316 | X15: =SUM(X6:X14) -> 62085.90771 | Y15: =SUM(Y6:Y14) -> 1108506.422 | Z15: =SUM(Z6:Z14) -> -493973.2986
B16: bill_month | C16: 6 | Z16: =W15-X15-Y15-Z15 -> 0
K17: Estimated RPP Revenue Volume and Price Data | L17: Actual % | M17: kWh Volumes
B18: Row Labels | C18: usagebilled | D18: amountbilled | E18: Rate | K18: RPPT1 | L18: =C20/SUM($C$20:$C$25) -> 0.05717667447 | M18: =$M$13*L18 -> 461622.0902
B19: RPPTIER | K19: RPPT2 | L19: =C21/SUM($C$20:$C$25) -> 0.02349912981 | M19: =$M$13*L19 -> 189722.7763
B20: RPPT1 | C20: 473291.169 | D20: 36443.46546 | E20: =D20/C20 -> 0.07700009601 | K20: RPPTOUMID | L20: =C23/SUM($C$20:$C$25) -> 0.1739381047 | M20: 1404308.176
B21: RPPT2 | C21: 194518.669 | D21: 17312.27568 | E21: =D21/C21 -> 0.08900058676 | K21: RPPTOUOFF | L21: =C24/SUM($C$20:$C$25) -> 0.5640544579 | M21: 4553954.916
B22: RPPTOU | K22: RPPTOUON | L22: 0.1813316331 | M22: 1464000.63
B23: RPPTOUMID | C23: 1439806.874 | D23: 135342.1949 | E23: 0.0940002422 | K23: RPPULOMID | L23: 0 | M23: 0
B24: RPPTOUOFF | C24: 4669071.719 | D24: 303489.7721 | E24: 0.06500002364 | K24: RPPULOOFF | L24: 0 | M24: 0
B25: RPPTOUON | C25: 1501008.259 | D25: 201135.1861 | E25: 0.1340000529 | K25: RPPULOON | L25: 0 | M25: 0
B26: RETAIL | K26: RPPULOOVN | L26: 0 | M26: 0
B27: NSLS | C27: 4794654.39 | D27: 23890.45643 | E27: 0.004982727531 | L27: =SUM(L18:L26) -> 1 | M27: =SUM(M18:M26) -> 8073608.59
B28: INTERVAL
B29: HOEP | C29: 6909203.108 | D29: 32206.32363 | E29: 0.00466136588
B30: Grand Total | C30: 19981554.19 | D30: 749819.6743
K31: Global Adjustment | L31: per kWh
C32: =C30/C11-1 -> 0.01671045786 | K32: Class B - GA actual8 | L32: =B69/100 -> 0.1372999954 | N32: GA Posted Price
K33: Class B - GA actual IESO billed | L33: =+M33/M8 -> 0.1372711205 | M33: =B76 -> 1783403.07 | N33: GA Billed by IESO CT 148
A37: RPP COP Volume and Price Data
B38: bill_year | C38: 2019
B39: bill_month | C39: 6
B41: Row Labels | C41: usagebilled | D41: amountbilled | E41: Rate
B42: RPPTIERED | C42: 662518.9784 | D42: 4136.857074 | E42: =D42/C42 -> 0.006244133692
B43: RPPTOU | C43: 7610068.329 | D43: 59486.86628 | E43: 0.007816863621
B44: Grand Total | C44: 8272587.308 | D44: 63623.72335
C46: =SUM(C20:C25)-C44 -> 5109.382737
C47: =C46/C44 -> 0.000617628143
A60: Year | B60: 2019
A62: Class A | B62: Value
A63: kWh
A64: 201906 | B64: 6661311.14
A67: ga_actual | B67: year
A68: month | B68: 2019
A69: 201906 | B69: 13.72999954
A72: chargetype | B72: 148
A74: Sum of chargeamount | B74: year
A75: month | B75: 2019
A76: 201906 | B76: 1783403.07

Sheet I13 Input Rev 06 Init
A1: Reverse IESO Posted
A5: =Admin!B23 -> 201906
A6: RPP Revenue Prices | B6: kWh Volumes | C6: $ RPP Settlement
A7: RPPTiered_1 | B7: 499686.2 | C7: 28486.52
A8: RPPTiered_2 | B8: 220393.57 | C8: 9919.67
A9: RPPTOU_MID | B9: 1351651.54 | C9: 54201.4
A10: RPPTOU_OFF | B10: 4658160.52 | C10: 321905.2
A11: RPPTOU_ON | B11: 1341141.55 | C11: 677.73
A12: Grand Total | B12: 8071033.38 | C12: 415190.52

Sheet I14 Input 07 Trueup Sett
A1: Date: | B1: =Admin!B8+6 -> 201907 | C1: Trueup | K1: ="Data for 1st True up of RPP Settlement based on Actual IESO Invoice" -> Data for 1st True up of RPP Settlement based on Actual IESO Invoice | P1: For Reconciliation
A3: Wholesale Electricty | B3: Year | C3: 2019 | E3: Rate | P3: Actual RPP Revenue and GA
B4: dateref | C4: 201907 | K4: Wholesale Volume data per IESO Power Bill: | L4: GA RPP/non-RPP Ratios | M4: GA Volumes | N4: Energy Volumes | P4: =B1 -> 201907
K5: AQEW | M5: =C10 -> 22578956.49 | N5: =+M5 -> 22578956.49 | P5: RPP Revenue Prices | Q5: RPP Rate | R5: Estimated RPP Energy Price | S5: GA actual IESO billed | T5: Total Commodity | U5: Difference | V5: kWh Volumes | W5: $ Estimated RPP Revenue | X5: $ Estimated RPP Energy | Y5: $ Estimated GA | Z5: $ Estimated RPP Settlement
B6: Wholesale | K6: Embedded Generation | M6: =SUM(C8:C9) -> 845911.82 | N6: =+M6 -> 845911.82 | P6: RPPT1 | Q6: =E20 -> 0.07699960178 | R6: =E42 -> 0.02133618428 | S6: =L32 -> 0.09649999619 | T6: =R6+S6 -> 0.1178361805 | U6: =+Q6-T6 -> -0.04083657869 | V6: =M18 -> 539972.4173 | W6: =Q6*V6 -> 41577.6611 | X6: =R6*V6 -> 11520.951 | Y6: =+V6*S6 -> 52107.33621 | Z6: =W6-X6-Y6 -> -22050.62611
A7: FIT/mFIT | B7: Source | C7: kWh | D7: Total Cost | K7: Class A customer Volumes for GA (TLF included) | M7: =-B64 -> -6302077.7 | P7: RPPT2 | Q7: =E21 -> 0.08899989983 | R7: =R6 -> 0.02133618428 | S7: =S6 -> 0.09649999619 | T7: =R7+S7 -> 0.1178361805 | U7: =+Q7-T7 -> -0.02883628064 | V7: =M19 -> 287766.5069 | W7: =Q7*V7 -> 25611.19028 | X7: =R7*V7 -> 6139.839221 | Y7: =+V7*S7 -> 27769.46681 | Z7: =W7-X7-Y7 -> -8298.115751
B8: FIT | C8: 792657.57 | D8: 19287.88 | E8: =D8/C8 -> 0.02433318085 | M8: =+M5+M6+M7 -> 17122790.61 | N8: =+N5+N6+N7 -> 23424868.31 | P8: RPPTOUMID | Q8: =E23 -> 0.09400012874 | R8: =E43 -> 0.02001869683 | S8: =S7 -> 0.09649999619 | T8: 0.116518693 | U8: -0.02251856427 | V8: 1789040.516 | W8: 168170.0388 | X8: 35814.2597 | Y8: 172642.403 | Z8: -40286.62384
B9: microFIT | C9: 53254.25 | D9: 1323.77 | E9: =D9/C9 -> 0.02485754658 | P9: RPPTOUOFF | Q9: =E24 -> 0.06500009792 | R9: =R8 -> 0.02001869683 | S9: 0.09649999619 | T9: 0.116518693 | U9: -0.05151859509 | V9: 5935584.357 | W9: 385813.5644 | X9: 118822.6637 | Y9: 572783.8678 | Z9: -305792.9671
B10: WHOLESALE | C10: 22578956.49 | D10: 496366.06 | E10: =D10/C10 -> 0.02198356953 | K10: Estimated Retail Volume Revenue Data (TLF Included) | L10: RPP/non-RPP Ratios | M10: GA Volumes | N10: Energy Volumes | P10: RPPTOUON | Q10: 0.1340002787 | R10: =R9 -> 0.02001869683 | S10: 0.09649999619 | T10: 0.116518693 | U10: 0.01748158567 | V10: 2011220.499 | W10: 269504.1073 | X10: 40262.01342 | Y10: 194082.7705 | Z10: 35159.32346
A11: Total Wholesale Electricity | B11: Grand Total | C11: 23424868.31 | D11: 516977.71 | K11: Estimated Retail Revenue Data (Net of Retail Billed/Unbilled) | M11: =+M15 -> 17122790.61 | N11: =+N15 -> 23424868.31 | P11: RPPULOMID | Q11: 0 | R11: 0 | S11: 0 | T11: 0 | U11: 0 | V11: 0 | W11: 0 | X11: 0 | Y11: 0 | Z11: 0
P12: RPPULOOFF | Q12: 0 | R12: 0 | S12: 0 | T12: 0 | U12: 0 | V12: 0 | W12: 0 | X12: 0 | Y12: 0 | Z12: 0
K13: Estimated RPP Sales Quantities | L13: =SUM(C20:C25)/(C30-B64) -> 0.6169312314 | M13: =M8*L13 -> 10563584.3 | N13: =M13 -> 10563584.3 | P13: RPPULOON | Q13: 0 | R13: 0 | S13: 0 | T13: 0 | U13: 0 | V13: 0 | W13: 0 | X13: 0 | Y13: 0 | Z13: 0
A14: RPP Revenue Volume and Price Data | K14: Estimated non-RPP Sales Quantities | L14: =1-L13 -> 0.3830687686 | M14: =M8*L14 -> 6559206.314 | N14: =N8-N13 -> 12861284.01 | P14: RPPULOOVN | Q14: 0 | R14: 0 | S14: 0 | T14: 0 | U14: 0 | V14: 0 | W14: 0 | X14: 0 | Y14: 0 | Z14: 0
B15: bill_year | C15: 2019 | K15: Estimated Retail Revenue kWh Volumes | L15: =+L13+L14 -> 1 | M15: =+M13+M14 -> 17122790.61 | N15: =+N13+N14 -> 23424868.31 | V15: =SUM(V6:V14) -> 10563584.3 | W15: =SUM(W6:W14) -> 890676.562 | X15: =SUM(X6:X14) -> 212559.7271 | Y15: =SUM(Y6:Y14) -> 1019385.844 | Z15: =SUM(Z6:Z14) -> -341269.0093
B16: bill_month | C16: 7 | Z16: =W15-X15-Y15-Z15 -> 0
K17: Estimated RPP Revenue Volume and Price Data | L17: Actual % | M17: kWh Volumes
B18: Row Labels | C18: usagebilled | D18: amountbilled | E18: Rate | K18: RPPT1 | L18: =C20/SUM($C$20:$C$25) -> 0.05111640161 | M18: =$M$13*L18 -> 539972.4173
B19: RPPTIER | K19: RPPT2 | L19: =C21/SUM($C$20:$C$25) -> 0.02724136986 | M19: =$M$13*L19 -> 287766.5069
B20: RPPT1 | C20: 524566.5218 | D20: 40391.41329 | E20: =D20/C20 -> 0.07699960178 | K20: RPPTOUMID | L20: =C23/SUM($C$20:$C$25) -> 0.1693592313 | M20: 1789040.516
B21: RPPT2 | C21: 279556.2713 | D21: 24880.48014 | E21: =D21/C21 -> 0.08899989983 | K21: RPPTOUOFF | L21: =C24/SUM($C$20:$C$25) -> 0.5618911338 | M21: 5935584.357
B22: RPPTOU | K22: RPPTOUON | L22: 0.1903918635 | M22: 2011220.499
B23: RPPTOUMID | C23: 1737997.592 | D23: 163371.9974 | E23: 0.09400012874 | K23: RPPULOMID | L23: 0 | M23: 0
B24: RPPTOUOFF | C24: 5766236.832 | D24: 374805.9588 | E24: 0.06500009792 | K24: RPPULOOFF | L24: 0 | M24: 0
B25: RPPTOUON | C25: 1953838.581 | D25: 261814.9144 | E25: 0.1340002787 | K25: RPPULOON | L25: 0 | M25: 0
B26: RETAIL | K26: RPPULOOVN | L26: 0 | M26: 0
B27: NSLS | C27: 5500301.421 | D27: 115772.1628 | E27: 0.02104833062 | L27: =SUM(L18:L26) -> 1 | M27: =SUM(M18:M26) -> 10563584.3
B28: INTERVAL
B29: HOEP | C29: 7173842.577 | D29: 151364.0729 | E29: 0.02109944166
B30: Grand Total | C30: 22936339.8 | D30: 1132401
K31: Global Adjustment | L31: per kWh
C32: =C30/C11-1 -> -0.02085512316 | K32: Class B - GA actual8 | L32: =B69/100 -> 0.09649999619 | N32: GA Posted Price
K33: Class B - GA actual IESO billed | L33: =+M33/M8 -> 0.09645949645 | M33: =B76 -> 1651655.76 | N33: GA Billed by IESO CT 148
A37: RPP COP Volume and Price Data
B38: bill_year | C38: 2019
B39: bill_month | C39: 7
B41: Row Labels | C41: usagebilled | D41: amountbilled | E41: Rate
B42: RPPTIERED | C42: 797159.9773 | D42: 17008.35218 | E42: =D42/C42 -> 0.02133618428
B43: RPPTOU | C43: 9458168.364 | D43: 189340.205 | E43: 0.02001869683
B44: Grand Total | C44: 10255328.34 | D44: 206348.5572
C46: =SUM(C20:C25)-C44 -> 6867.456911
C47: =C46/C44 -> 0.0006696476877
A60: Year | B60: 2019
A62: Class A | B62: Value
A63: kWh
A64: 201907 | B64: 6302077.7
A67: ga_actual | B67: year
A68: month | B68: 2019
A69: 201907 | B69: 9.649999619
A72: chargetype | B72: 148
A74: Sum of chargeamount | B74: year
A75: month | B75: 2019
A76: 201907 | B76: 1651655.76

Sheet I15 Input Rev 07 Init
A1: Reverse IESO Posted
A5: =Admin!B26 -> 201907
A6: RPP Revenue Prices | B6: kWh Volumes | C6: $ RPP Settlement
A7: RPPTiered_1 | B7: 433098.76 | C7: 27477.74
A8: RPPTiered_2 | B8: 168138.27 | C8: 8649.67
A9: RPPTOU_MID | B9: 1359586.15 | C9: 58100.39
A10: RPPTOU_OFF | B10: 4359907.51 | C10: 312587.64
A11: RPPTOU_ON | B11: 1378783.5 | C11: 3785.13
A12: Grand Total | B12: 7699514.19 | C12: 410600.57

Sheet I16 Input 08 Trueup Sett
A1: Date: | B1: =Admin!B8+7 -> 201908 | C1: Trueup | K1: ="Data for 1st True up of RPP Settlement based on Actual IESO Invoice" -> Data for 1st True up of RPP Settlement based on Actual IESO Invoice | P1: For Reconciliation
A3: Wholesale Electricty | B3: Year | C3: 2019 | E3: Rate | P3: Actual RPP Revenue and GA
B4: dateref | C4: 201908 | K4: Wholesale Volume data per IESO Power Bill: | L4: GA RPP/non-RPP Ratios | M4: GA Volumes | N4: Energy Volumes | P4: =B1 -> 201908
K5: AQEW | M5: =C10 -> 21027087.72 | N5: =+M5 -> 21027087.72 | P5: RPP Revenue Prices | Q5: RPP Rate | R5: Estimated RPP Energy Price | S5: GA actual IESO billed | T5: Total Commodity | U5: Difference | V5: kWh Volumes | W5: $ Estimated RPP Revenue | X5: $ Estimated RPP Energy | Y5: $ Estimated GA | Z5: $ Estimated RPP Settlement
B6: Wholesale | K6: Embedded Generation | M6: =SUM(C8:C9) -> 826795.18 | N6: =+M6 -> 826795.18 | P6: RPPT1 | Q6: =E20 -> 0.07699966126 | R6: =E42 -> 0.01734313729 | S6: =L32 -> 0.1260999966 | T6: =R6+S6 -> 0.1434431339 | U6: =+Q6-T6 -> -0.06644347259 | V6: =M18 -> 516405.6344 | W6: =Q6*V6 -> 39763.05892 | X6: =R6*V6 -> 8956.093813 | Y6: =+V6*S6 -> 65118.74872 | Z6: =W6-X6-Y6 -> -34311.78361
A7: FIT/mFIT | B7: Source | C7: kWh | D7: Total Cost | K7: Class A customer Volumes for GA (TLF included) | M7: =-B64 -> -6059598.58 | P7: RPPT2 | Q7: =E21 -> 0.0889996944 | R7: =R6 -> 0.01734313729 | S7: =S6 -> 0.1260999966 | T7: =R7+S7 -> 0.1434431339 | U7: =+Q7-T7 -> -0.05444343945 | V7: =M19 -> 207197.3755 | W7: =Q7*V7 -> 18440.5031 | X7: =R7*V7 -> 3593.452528 | Y7: =+V7*S7 -> 26127.58833 | Z7: =W7-X7-Y7 -> -11280.53776
B8: FIT | C8: 779241.3 | D8: 13974.83 | E8: =D8/C8 -> 0.01793389288 | M8: =+M5+M6+M7 -> 15794284.32 | N8: =+N5+N6+N7 -> 21853882.9 | P8: RPPTOUMID | Q8: =E23 -> 0.09400036082 | R8: =E43 -> 0.01799509744 | S8: =S7 -> 0.1260999966 | T8: 0.144095094 | U8: -0.0500947332 | V8: 1678845.025 | W8: 157812.0381 | X8: 30210.97982 | Y8: 211702.3519 | Z8: -84101.29361
B9: microFIT | C9: 47553.88 | D9: 869.25 | E9: =D9/C9 -> 0.01827926554 | P9: RPPTOUOFF | Q9: =E24 -> 0.06477551305 | R9: =R8 -> 0.01799509744 | S9: 0.1260999966 | T9: 0.144095094 | U9: -0.07931958096 | V9: 5599374.527 | W9: 362702.3577 | X9: 100761.2902 | Y9: 706081.1086 | Z9: -444140.0411
B10: WHOLESALE | C10: 21027087.72 | D10: 338550.64 | E10: =D10/C10 -> 0.0161006909 | K10: Estimated Retail Volume Revenue Data (TLF Included) | L10: RPP/non-RPP Ratios | M10: GA Volumes | N10: Energy Volumes | P10: RPPTOUON | Q10: 0.1339999866 | R10: =R9 -> 0.01799509744 | S10: 0.1260999966 | T10: 0.144095094 | U10: -0.01009510744 | V10: 1873449.681 | W10: 251042.2321 | X10: 33712.90956 | Y10: 236241.9983 | Z10: -18912.6758
A11: Total Wholesale Electricity | B11: Grand Total | C11: 21853882.9 | D11: 353394.72 | K11: Estimated Retail Revenue Data (Net of Retail Billed/Unbilled) | M11: =+M15 -> 15794284.32 | N11: =+N15 -> 21853882.9 | P11: RPPULOMID | Q11: 0 | R11: 0 | S11: 0 | T11: 0 | U11: 0 | V11: 0 | W11: 0 | X11: 0 | Y11: 0 | Z11: 0
P12: RPPULOOFF | Q12: 0 | R12: 0 | S12: 0 | T12: 0 | U12: 0 | V12: 0 | W12: 0 | X12: 0 | Y12: 0 | Z12: 0
K13: Estimated RPP Sales Quantities | L13: =SUM(C20:C25)/(C30-B64) -> 0.6252434135 | M13: =M8*L13 -> 9875272.242 | N13: =M13 -> 9875272.242 | P13: RPPULOON | Q13: 0 | R13: 0 | S13: 0 | T13: 0 | U13: 0 | V13: 0 | W13: 0 | X13: 0 | Y13: 0 | Z13: 0
A14: RPP Revenue Volume and Price Data | K14: Estimated non-RPP Sales Quantities | L14: =1-L13 -> 0.3747565865 | M14: =M8*L14 -> 5919012.078 | N14: =N8-N13 -> 11978610.66 | P14: RPPULOOVN | Q14: 0 | R14: 0 | S14: 0 | T14: 0 | U14: 0 | V14: 0 | W14: 0 | X14: 0 | Y14: 0 | Z14: 0
B15: bill_year | C15: 2019 | K15: Estimated Retail Revenue kWh Volumes | L15: =+L13+L14 -> 1 | M15: =+M13+M14 -> 15794284.32 | N15: =+N13+N14 -> 21853882.9 | V15: =SUM(V6:V14) -> 9875272.242 | W15: =SUM(W6:W14) -> 829760.1899 | X15: =SUM(X6:X14) -> 177234.726 | Y15: =SUM(Y6:Y14) -> 1245271.796 | Z15: =SUM(Z6:Z14) -> -592746.3319
B16: bill_month | C16: 8 | Z16: =W15-X15-Y15-Z15 -> 0
K17: Estimated RPP Revenue Volume and Price Data | L17: Actual % | M17: kWh Volumes
B18: Row Labels | C18: usagebilled | D18: amountbilled | E18: Rate | K18: RPPT1 | L18: =C20/SUM($C$20:$C$25) -> 0.05229279981 | M18: =$M$13*L18 -> 516405.6344
B19: RPPTIER | K19: RPPT2 | L19: =C21/SUM($C$20:$C$25) -> 0.02098143427 | M19: =$M$13*L19 -> 207197.3755
B20: RPPT1 | C20: 501790.7478 | D20: 38637.7176 | E20: =D20/C20 -> 0.07699966126 | K20: RPPTOUMID | L20: =C23/SUM($C$20:$C$25) -> 0.170004936 | M20: 1678845.025
B21: RPPT2 | C21: 201333.4461 | D21: 17918.61518 | E21: =D21/C21 -> 0.0889996944 | K21: RPPTOUOFF | L21: =C24/SUM($C$20:$C$25) -> 0.5670096367 | M21: 5599374.527
B22: RPPTOU | K22: RPPTOUON | L22: 0.1897111932 | M22: 1873449.681
B23: RPPTOUMID | C23: 1631331.737 | D23: 153345.7719 | E23: 0.09400036082 | K23: RPPULOMID | L23: 0 | M23: 0
B24: RPPTOUOFF | C24: 5440905.644 | D24: 352437.4546 | E24: 0.06477551305 | K24: RPPULOOFF | L24: 0 | M24: 0
B25: RPPTOUON | C25: 1820428.852 | D25: 243937.4417 | E25: 0.1339999866 | K25: RPPULOON | L25: 0 | M25: 0
B26: RETAIL | K26: RPPULOOVN | L26: 0 | M26: 0
B27: NSLS | C27: 5035808.109 | D27: 82975.40706 | E27: 0.01647707881 | L27: =SUM(L18:L26) -> 1 | M27: =SUM(M18:M26) -> 9875272.242
B28: INTERVAL
B29: HOEP | C29: 6775287.547 | D29: 107558.5574 | E29: 0.01587512806
B30: Grand Total | C30: 21406886.08 | D30: 996810.9655
K31: Global Adjustment | L31: per kWh
C32: =C30/C11-1 -> -0.02045388542 | K32: Class B - GA actual8 | L32: =B69/100 -> 0.1260999966 | N32: GA Posted Price
K33: Class B - GA actual IESO billed | L33: =+M33/M8 -> 0.1260677135 | M33: =B76 -> 1991149.31 | N33: GA Billed by IESO CT 148
A37: RPP COP Volume and Price Data
B38: bill_year | C38: 2019
B39: bill_month | C39: 8
B41: Row Labels | C41: usagebilled | D41: amountbilled | E41: Rate
B42: RPPTIERED | C42: 699860.5722 | D42: 12137.77798 | E42: =D42/C42 -> 0.01734313729
B43: RPPTOU | C43: 8873705.218 | D43: 159683.1901 | E43: 0.01799509744
B44: Grand Total | C44: 9573565.79 | D44: 171820.9681
C46: =SUM(C20:C25)-C44 -> 22224.63636
C47: =C46/C44 -> 0.002321458571
A60: Year | B60: 2019
A62: Class A | B62: Value
A63: kWh
A64: 201908 | B64: 6059598.58
A67: ga_actual | B67: year
A68: month | B68: 2019
A69: 201908 | B69: 12.60999966
A72: chargetype | B72: 148
A74: Sum of chargeamount | B74: year
A75: month | B75: 2019
A76: 201908 | B76: 1991149.31

Sheet I17 Input Rev 08 Init
A1: Reverse IESO Posted
A5: =Admin!B29 -> 201908
A6: RPP Revenue Prices | B6: kWh Volumes | C6: $ RPP Settlement
A7: RPPTiered_1 | B7: 543857 | C7: 24910.05
A8: RPPTiered_2 | B8: 299841.43 | C8: 10135.05
A9: RPPTOU_MID | B9: 1765605.59 | C9: 56120.14
A10: RPPTOU_OFF | B10: 5809521.08 | C10: 353084.75
A11: RPPTOU_ON | B11: 1978219.6 | C11: -16312.34
A12: Grand Total | B12: 10397044.7 | C12: 427937.65

Sheet I18 Input 09 Trueup Sett
A1: Date: | B1: =Admin!B8+8 -> 201909 | C1: Trueup | K1: ="Data for 1st True up of RPP Settlement based on Actual IESO Invoice" -> Data for 1st True up of RPP Settlement based on Actual IESO Invoice | P1: For Reconciliation
A3: Wholesale Electricty | B3: Year | C3: 2019 | E3: Rate | P3: Actual RPP Revenue and GA
B4: dateref | C4: 201909 | K4: Wholesale Volume data per IESO Power Bill: | L4: GA RPP/non-RPP Ratios | M4: GA Volumes | N4: Energy Volumes | P4: =B1 -> 201909
K5: AQEW | M5: =C10 -> 19179693.88 | N5: =+M5 -> 19179693.88 | P5: RPP Revenue Prices | Q5: RPP Rate | R5: Estimated RPP Energy Price | S5: GA actual IESO billed | T5: Total Commodity | U5: Difference | V5: kWh Volumes | W5: $ Estimated RPP Revenue | X5: $ Estimated RPP Energy | Y5: $ Estimated GA | Z5: $ Estimated RPP Settlement
B6: Wholesale | K6: Embedded Generation | M6: =SUM(C8:C9) -> 626226.18 | N6: =+M6 -> 626226.18 | P6: RPPT1 | Q6: =E20 -> 0.07700010877 | R6: =E42 -> 0.01413416219 | S6: =L32 -> 0.1226000023 | T6: =R6+S6 -> 0.1367341645 | U6: =+Q6-T6 -> -0.05973405571 | V6: =M18 -> 457081.7851 | W6: =Q6*V6 -> 35195.34717 | X6: =R6*V6 -> 6460.468087 | Y6: =+V6*S6 -> 56038.2279 | Z6: =W6-X6-Y6 -> -27303.34882
A7: FIT/mFIT | B7: Source | C7: kWh | D7: Total Cost | K7: Class A customer Volumes for GA (TLF included) | M7: =-B64 -> -6323220.31 | P7: RPPT2 | Q7: =E21 -> 0.08900094952 | R7: =R6 -> 0.01413416219 | S7: =S6 -> 0.1226000023 | T7: =R7+S7 -> 0.1367341645 | U7: =+Q7-T7 -> -0.04773321497 | V7: =M19 -> 101548.8205 | W7: =Q7*V7 -> 9037.941448 | X7: =R7*V7 -> 1435.3075 | Y7: =+V7*S7 -> 12449.88563 | Z7: =W7-X7-Y7 -> -4847.251679
B8: FIT | C8: 590742.38 | D8: 9486.64 | E8: =D8/C8 -> 0.01605884447 | M8: =+M5+M6+M7 -> 13482699.75 | N8: =+N5+N6+N7 -> 19805920.06 | P8: RPPTOUMID | Q8: =E23 -> 0.09400125673 | R8: =E43 -> 0.01395422988 | S8: =S7 -> 0.1226000023 | T8: 0.1365542322 | U8: -0.04255297544 | V8: 1406413.675 | W8: 132204.653 | X8: 19625.41973 | Y8: 172426.3198 | Z8: -59847.08659
B9: microFIT | C9: 35483.8 | D9: 574.79 | E9: =D9/C9 -> 0.01619865967 | P9: RPPTOUOFF | Q9: =E24 -> 0.06498429763 | R9: =R8 -> 0.01395422988 | S9: 0.1226000023 | T9: 0.1365542322 | U9: -0.07156993454 | V9: 4430273.326 | W9: 287898.2004 | X9: 61821.05241 | Y9: 543151.5199 | Z9: -317074.3719
B10: WHOLESALE | C10: 19179693.88 | D10: 275050.65 | E10: =D10/C10 -> 0.01434072158 | K10: Estimated Retail Volume Revenue Data (TLF Included) | L10: RPP/non-RPP Ratios | M10: GA Volumes | N10: Energy Volumes | P10: RPPTOUON | Q10: 0.1340015194 | R10: =R9 -> 0.01395422988 | S10: 0.1226000023 | T10: 0.1365542322 | U10: -0.002552712792 | V10: 1467807.942 | W10: 196688.4943 | X10: 20482.12943 | Y10: 179953.257 | Z10: -3746.892108
A11: Total Wholesale Electricity | B11: Grand Total | C11: 19805920.06 | D11: 285112.08 | K11: Estimated Retail Revenue Data (Net of Retail Billed/Unbilled) | M11: =+M15 -> 13482699.75 | N11: =+N15 -> 19805920.06 | P11: RPPULOMID | Q11: 0 | R11: 0 | S11: 0 | T11: 0 | U11: 0 | V11: 0 | W11: 0 | X11: 0 | Y11: 0 | Z11: 0
P12: RPPULOOFF | Q12: 0 | R12: 0 | S12: 0 | T12: 0 | U12: 0 | V12: 0 | W12: 0 | X12: 0 | Y12: 0 | Z12: 0
K13: Estimated RPP Sales Quantities | L13: =SUM(C20:C25)/(C30-B64) -> 0.5832011165 | M13: =M8*L13 -> 7863125.548 | N13: =M13 -> 7863125.548 | P13: RPPULOON | Q13: 0 | R13: 0 | S13: 0 | T13: 0 | U13: 0 | V13: 0 | W13: 0 | X13: 0 | Y13: 0 | Z13: 0
A14: RPP Revenue Volume and Price Data | K14: Estimated non-RPP Sales Quantities | L14: =1-L13 -> 0.4167988835 | M14: =M8*L14 -> 5619574.202 | N14: =N8-N13 -> 11942794.51 | P14: RPPULOOVN | Q14: 0 | R14: 0 | S14: 0 | T14: 0 | U14: 0 | V14: 0 | W14: 0 | X14: 0 | Y14: 0 | Z14: 0
B15: bill_year | C15: 2019 | K15: Estimated Retail Revenue kWh Volumes | L15: =+L13+L14 -> 1 | M15: =+M13+M14 -> 13482699.75 | N15: =+N13+N14 -> 19805920.06 | V15: =SUM(V6:V14) -> 7863125.548 | W15: =SUM(W6:W14) -> 661024.6363 | X15: =SUM(X6:X14) -> 109824.3772 | Y15: =SUM(Y6:Y14) -> 964019.2102 | Z15: =SUM(Z6:Z14) -> -412818.9511
B16: bill_month | C16: 9 | Z16: =W15-X15-Y15-Z15 -> 0
K17: Estimated RPP Revenue Volume and Price Data | L17: Actual % | M17: kWh Volumes
B18: Row Labels | C18: usagebilled | D18: amountbilled | E18: Rate | K18: RPPT1 | L18: =C20/SUM($C$20:$C$25) -> 0.05812978341 | M18: =$M$13*L18 -> 457081.7851
B19: RPPTIER | K19: RPPT2 | L19: =C21/SUM($C$20:$C$25) -> 0.01291456176 | M19: =$M$13*L19 -> 101548.8205
B20: RPPT1 | C20: 461960.5185 | D20: 35571.01017 | E20: =D20/C20 -> 0.07700010877 | K20: RPPTOUMID | L20: =C23/SUM($C$20:$C$25) -> 0.1788619127 | M20: 1406413.675
B21: RPPT2 | C21: 102632.7176 | D21: 9134.409319 | E21: =D21/C21 -> 0.08900094952 | K21: RPPTOUOFF | L21: =C24/SUM($C$20:$C$25) -> 0.5634239589 | M21: 4430273.326
B22: RPPTOU | K22: RPPTOUON | L22: 0.1866697832 | M22: 1467807.942
B23: RPPTOUMID | C23: 1421425.25 | D23: 133615.7599 | E23: 0.09400125673 | K23: RPPULOMID | L23: 0 | M23: 0
B24: RPPTOUOFF | C24: 4477560.536 | D24: 290971.1265 | E24: 0.06498429763 | K24: RPPULOOFF | L24: 0 | M24: 0
B25: RPPTOUON | C25: 1483474.818 | D25: 198787.8795 | E25: 0.1340015194 | K25: RPPULOON | L25: 0 | M25: 0
B26: RETAIL | K26: RPPULOOVN | L26: 0 | M26: 0
B27: NSLS | C27: 4881683.11 | D27: 68041.48112 | E27: 0.01393811921 | L27: =SUM(L18:L26) -> 1 | M27: =SUM(M18:M26) -> 7863125.548
B28: INTERVAL
B29: HOEP | C29: 7121092.8 | D29: 99847.40932 | E29: 0.0140213605
B30: Grand Total | C30: 19949829.75 | D30: 835969.0758
K31: Global Adjustment | L31: per kWh
C32: =C30/C11-1 -> 0.007265993667 | K32: Class B - GA actual8 | L32: =B69/100 -> 0.1226000023 | N32: GA Posted Price
K33: Class B - GA actual IESO billed | L33: =+M33/M8 -> 0.1226232046 | M33: =B76 -> 1653291.85 | N33: GA Billed by IESO CT 148
A37: RPP COP Volume and Price Data
B38: bill_year | C38: 2019
B39: bill_month | C39: 9
B41: Row Labels | C41: usagebilled | D41: amountbilled | E41: Rate
B42: RPPTIERED | C42: 558642.2896 | D42: 7895.940731 | E42: =D42/C42 -> 0.01413416219
B43: RPPTOU | C43: 7381090.403 | D43: 102997.4322 | E43: 0.01395422988
B44: Grand Total | C44: 7939732.693 | D44: 110893.373
C46: =SUM(C20:C25)-C44 -> 7321.147168
C47: =C46/C44 -> 0.0009220898802
A60: Year | B60: 2019
A62: Class A | B62: Value
A63: kWh
A64: 201909 | B64: 6323220.31
A67: ga_actual | B67: year
A68: month | B68: 2019
A69: 201909 | B69: 12.26000023
A72: chargetype | B72: 148
A74: Sum of chargeamount | B74: year
A75: month | B75: 2019
A76: 201909 | B76: 1653291.85

Sheet I19 Input Rev 09 Init
A1: Reverse IESO Posted
A5: =Admin!B32 -> 201909
A6: RPP Revenue Prices | B6: kWh Volumes | C6: $ RPP Settlement
A7: RPPTiered_1 | B7: 496394.58 | C7: 32055.68
A8: RPPTiered_2 | B8: 205263.98 | C8: 10792.4
A9: RPPTOU_MID | B9: 1622439.19 | C9: 75240.98
A10: RPPTOU_OFF | B10: 5524454.82 | C10: 416269.69
A11: RPPTOU_ON | B11: 1831751.05 | C11: 11667.93
A12: Grand Total | B12: 9680303.62 | C12: 546026.68

Sheet I20 Input 10 Trueup Sett
A1: Date: | B1: =Admin!B8+9 -> 201910 | C1: Trueup | K1: ="Data for 1st True up of RPP Settlement based on Actual IESO Invoice" -> Data for 1st True up of RPP Settlement based on Actual IESO Invoice | P1: For Reconciliation
A3: Wholesale Electricty | B3: Year | C3: 2019 | E3: Rate | P3: Actual RPP Revenue and GA
B4: dateref | C4: 201910 | K4: Wholesale Volume data per IESO Power Bill: | L4: GA RPP/non-RPP Ratios | M4: GA Volumes | N4: Energy Volumes | P4: =B1 -> 201910
K5: AQEW | M5: =C10 -> 19223290.15 | N5: =+M5 -> 19223290.15 | P5: RPP Revenue Prices | Q5: RPP Rate | R5: Estimated RPP Energy Price | S5: GA actual IESO billed | T5: Total Commodity | U5: Difference | V5: kWh Volumes | W5: $ Estimated RPP Revenue | X5: $ Estimated RPP Energy | Y5: $ Estimated GA | Z5: $ Estimated RPP Settlement
B6: Wholesale | K6: Embedded Generation | M6: =SUM(C8:C9) -> 492957.78 | N6: =+M6 -> 492957.78 | P6: RPPT1 | Q6: =E20 -> 0.079804896 | R6: =E42 -> 0.008143991892 | S6: =L32 -> 0.1368000031 | T6: =R6+S6 -> 0.1449439949 | U6: =+Q6-T6 -> -0.06513909895 | V6: =M18 -> 508635.5811 | W6: =Q6*V6 -> 40591.60965 | X6: =R6*V6 -> 4142.324048 | Y6: =+V6*S6 -> 69581.34905 | Z6: =W6-X6-Y6 -> -33132.06344
A7: FIT/mFIT | B7: Source | C7: kWh | D7: Total Cost | K7: Class A customer Volumes for GA (TLF included) | M7: =-B64 -> -5800316.3 | P7: RPPT2 | Q7: =E21 -> 0.09360638063 | R7: =R6 -> 0.008143991892 | S7: =S6 -> 0.1368000031 | T7: =R7+S7 -> 0.1449439949 | U7: =+Q7-T7 -> -0.05133761432 | V7: =M19 -> 165812.0499 | W7: =Q7*V7 -> 15521.06586 | X7: =R7*V7 -> 1350.37199 | Y7: =+V7*S7 -> 22683.08893 | Z7: =W7-X7-Y7 -> -8512.395067
B8: FIT | C8: 465318.18 | D8: 3150.39 | E8: =D8/C8 -> 0.006770399558 | M8: =+M5+M6+M7 -> 13915931.63 | N8: =+N5+N6+N7 -> 19716247.93 | P8: RPPTOUMID | Q8: =E23 -> 0.1009544793 | R8: =E43 -> 0.009571334908 | S8: =S7 -> 0.1368000031 | T8: 0.146371338 | U8: -0.04541685865 | V8: 1406716.641 | W8: 142014.3461 | X8: 13464.15609 | Y8: 192438.8408 | Z8: -63888.65086
B9: microFIT | C9: 27639.6 | D9: 181.54 | E9: =D9/C9 -> 0.006568112418 | P9: RPPTOUOFF | Q9: =E24 -> 0.07128461248 | R9: =R8 -> 0.009571334908 | S9: 0.1368000031 | T9: 0.146371338 | U9: -0.07508672548 | V9: 4712003.079 | W9: 335893.3135 | X9: 45100.15956 | Y9: 644602.0356 | Z9: -353808.8816
B10: WHOLESALE | C10: 19223290.15 | D10: 140800.23 | E10: =D10/C10 -> 0.007324460532 | K10: Estimated Retail Volume Revenue Data (TLF Included) | L10: RPP/non-RPP Ratios | M10: GA Volumes | N10: Energy Volumes | P10: RPPTOUON | Q10: 0.1450583431 | R10: =R9 -> 0.009571334908 | S10: 0.1368000031 | T10: 0.146371338 | U10: -0.001312994905 | V10: 1397983.133 | W10: 202789.1169 | X10: 13380.56476 | Y10: 191244.0969 | Z10: -1835.54473
A11: Total Wholesale Electricity | B11: Grand Total | C11: 19716247.93 | D11: 144132.16 | K11: Estimated Retail Revenue Data (Net of Retail Billed/Unbilled) | M11: =+M15 -> 13915931.63 | N11: =+N15 -> 19716247.93 | P11: RPPULOMID | Q11: 0 | R11: 0 | S11: 0 | T11: 0 | U11: 0 | V11: 0 | W11: 0 | X11: 0 | Y11: 0 | Z11: 0
P12: RPPULOOFF | Q12: 0 | R12: 0 | S12: 0 | T12: 0 | U12: 0 | V12: 0 | W12: 0 | X12: 0 | Y12: 0 | Z12: 0
K13: Estimated RPP Sales Quantities | L13: =SUM(C20:C25)/(C30-B64) -> 0.5886167525 | M13: =M8*L13 -> 8191150.484 | N13: =M13 -> 8191150.484 | P13: RPPULOON | Q13: 0 | R13: 0 | S13: 0 | T13: 0 | U13: 0 | V13: 0 | W13: 0 | X13: 0 | Y13: 0 | Z13: 0
A14: RPP Revenue Volume and Price Data | K14: Estimated non-RPP Sales Quantities | L14: =1-L13 -> 0.4113832475 | M14: =M8*L14 -> 5724781.146 | N14: =N8-N13 -> 11525097.45 | P14: RPPULOOVN | Q14: 0 | R14: 0 | S14: 0 | T14: 0 | U14: 0 | V14: 0 | W14: 0 | X14: 0 | Y14: 0 | Z14: 0
B15: bill_year | C15: 2019 | K15: Estimated Retail Revenue kWh Volumes | L15: =+L13+L14 -> 1 | M15: =+M13+M14 -> 13915931.63 | N15: =+N13+N14 -> 19716247.93 | V15: =SUM(V6:V14) -> 8191150.484 | W15: =SUM(W6:W14) -> 736809.452 | X15: =SUM(X6:X14) -> 77437.57645 | Y15: =SUM(Y6:Y14) -> 1120549.411 | Z15: =SUM(Z6:Z14) -> -461177.5357
B16: bill_month | C16: 10 | Z16: =W15-X15-Y15-Z15 -> 0
K17: Estimated RPP Revenue Volume and Price Data | L17: Actual % | M17: kWh Volumes
B18: Row Labels | C18: usagebilled | D18: amountbilled | E18: Rate | K18: RPPT1 | L18: =C20/SUM($C$20:$C$25) -> 0.0620957437 | M18: =$M$13*L18 -> 508635.5811
B19: RPPTIER | K19: RPPT2 | L19: =C21/SUM($C$20:$C$25) -> 0.02024282794 | M19: =$M$13*L19 -> 165812.0499
B20: RPPT1 | C20: 514562.8352 | D20: 41064.63354 | E20: =D20/C20 -> 0.079804896 | K20: RPPTOUMID | L20: =C23/SUM($C$20:$C$25) -> 0.1717361491 | M20: 1406716.641
B21: RPPT2 | C21: 167744.298 | D21: 15701.93661 | E21: =D21/C21 -> 0.09360638063 | K21: RPPTOUOFF | L21: =C24/SUM($C$20:$C$25) -> 0.5752553427 | M21: 4712003.079
B22: RPPTOU | K22: RPPTOUON | L22: 0.1706699365 | M22: 1397983.133
B23: RPPTOUMID | C23: 1423109.452 | D23: 143669.2737 | E23: 0.1009544793 | K23: RPPULOMID | L23: 0 | M23: 0
B24: RPPTOUOFF | C24: 4766913.196 | D24: 339807.5599 | E24: 0.07128461248 | K24: RPPULOOFF | L24: 0 | M24: 0
B25: RPPTOUON | C25: 1414274.17 | D25: 205152.2678 | E25: 0.1450583431 | K25: RPPULOON | L25: 0 | M25: 0
B26: RETAIL | K26: RPPULOOVN | L26: 0 | M26: 0
B27: NSLS | C27: 4734016.594 | D27: 35823.24795 | E27: 0.007567199489 | L27: =SUM(L18:L26) -> 1 | M27: =SUM(M18:M26) -> 8191150.484
B28: INTERVAL
B29: HOEP | C29: 6857793.118 | D29: 51247.22605 | E29: 0.007472845152
B30: Grand Total | C30: 19878413.66 | D30: 832466.1456
K31: Global Adjustment | L31: per kWh
C32: =C30/C11-1 -> 0.008224979442 | K32: Class B - GA actual8 | L32: =B69/100 -> 0.1368000031 | N32: GA Posted Price
K33: Class B - GA actual IESO billed | L33: =+M33/M8 -> 0.1367918757 | M33: =B76 -> 1903586.39 | N33: GA Billed by IESO CT 148
A37: RPP COP Volume and Price Data
B38: bill_year | C38: 2019
B39: bill_month | C39: 10
B41: Row Labels | C41: usagebilled | D41: amountbilled | E41: Rate
B42: RPPTIERED | C42: 673796.198 | D42: 5487.390774 | E42: =D42/C42 -> 0.008143991892
B43: RPPTOU | C43: 7606924.093 | D43: 72808.41811 | E43: 0.009571334908
B44: Grand Total | C44: 8280720.291 | D44: 78295.80889
C46: =SUM(C20:C25)-C44 -> 5883.661285
C47: =C46/C44 -> 0.000710525302
A60: Year | B60: 2019
A62: Class A | B62: Value
A63: kWh
A64: 201910 | B64: 5800316.3
A67: ga_actual | B67: year
A68: month | B68: 2019
A69: 201910 | B69: 13.68000031
A72: chargetype | B72: 148
A74: Sum of chargeamount | B74: year
A75: month | B75: 2019
A76: 201910 | B76: 1903586.39

Sheet I21 Input Rev 10 Init
A1: Reverse IESO Posted
A5: =Admin!B35 -> 201910
A6: RPP Revenue Prices | B6: kWh Volumes | C6: $ RPP Settlement
A7: RPPTiered_1 | B7: 465252.07 | C7: 28203.49
A8: RPPTiered_2 | B8: 94656.3 | C8: 4601.43
A9: RPPTOU_MID | B9: 1477025.29 | C9: 62398.04
A10: RPPTOU_OFF | B10: 4529522.43 | C10: 321630.98
A11: RPPTOU_ON | B11: 1562390.06 | C11: 3282.44
A12: Grand Total | B12: 8128846.15 | C12: 420116.38

Sheet I22 Input 11 Trueup Sett
A1: Date: | B1: =Admin!B8+10 -> 201911 | C1: Trueup | K1: ="Data for 1st True up of RPP Settlement based on Actual IESO Invoice" -> Data for 1st True up of RPP Settlement based on Actual IESO Invoice | P1: For Reconciliation
A3: Wholesale Electricty | B3: Year | C3: 2019 | E3: Rate | P3: Actual RPP Revenue and GA
B4: dateref | C4: 201911 | K4: Wholesale Volume data per IESO Power Bill: | L4: GA RPP/non-RPP Ratios | M4: GA Volumes | N4: Energy Volumes | P4: =B1 -> 201911
K5: AQEW | M5: =C10 -> 21470220.13 | N5: =+M5 -> 21470220.13 | P5: RPP Revenue Prices | Q5: RPP Rate | R5: Estimated RPP Energy Price | S5: GA actual IESO billed | T5: Total Commodity | U5: Difference | V5: kWh Volumes | W5: $ Estimated RPP Revenue | X5: $ Estimated RPP Energy | Y5: $ Estimated GA | Z5: $ Estimated RPP Settlement
B6: Wholesale | K6: Embedded Generation | M6: =SUM(C8:C9) -> 184012.66 | N6: =+M6 -> 184012.66 | P6: RPPT1 | Q6: =E21 -> 0.1171241595 | R6: =E43 -> 0.02113153488 | S6: =L32 -> 0.09949999809 | T6: =R6+S6 -> 0.120631533 | U6: =+Q6-T6 -> -0.003507373449 | V6: =M18 -> 629110.6755 | W6: =Q6*V6 -> 73684.05912 | X6: =R6*V6 -> 13294.07418 | Y6: =+V6*S6 -> 62596.51102 | Z6: =W6-X6-Y6 -> -2206.52608
A7: FIT/mFIT | B7: Source | C7: kWh | D7: Total Cost | K7: Class A customer Volumes for GA (TLF included) | M7: =-B64 -> -5915025.01 | P7: RPPT2 | Q7: =E22 -> 0.1344932726 | R7: =R6 -> 0.02113153488 | S7: =S6 -> 0.09949999809 | T7: =R7+S7 -> 0.120631533 | U7: =+Q7-T7 -> 0.01386173967 | V7: =M19 -> 241853.4159 | W7: =Q7*V7 -> 32527.6574 | X7: =R7*V7 -> 5110.733893 | Y7: =+V7*S7 -> 24064.41442 | Z7: =W7-X7-Y7 -> 3352.509089
B8: FIT | C8: 171361.55 | D8: 2708.59 | E8: =D8/C8 -> 0.01580628793 | M8: =+M5+M6+M7 -> 15739207.78 | N8: =+N5+N6+N7 -> 21654232.79 | P8: RPPTOUMID | Q8: =E24 -> 0.1372678044 | R8: =E44 -> 0.02134440938 | S8: =S7 -> 0.09949999809 | T8: 0.1208444075 | U8: 0.01642339689 | V8: 1679403.163 | W8: 230527.9848 | X8: 35845.86862 | Y8: 167100.6115 | Z8: 27581.50468
B9: microFIT | C9: 12651.11 | D9: 227.93 | E9: =D9/C9 -> 0.01801660091 | P9: RPPTOUOFF | Q9: =E25 -> 0.09692107023 | R9: =R8 -> 0.02134440938 | S9: 0.09949999809 | T9: 0.1208444075 | U9: -0.02392333724 | V9: 5447852.987 | W9: 528011.7419 | X9: 116281.2044 | Y9: 542061.3618 | Z9: -130330.8242
B10: WHOLESALE | C10: 21470220.13 | D10: 445779.2 | E10: =D10/C10 -> 0.02076267487 | K10: Estimated Retail Volume Revenue Data (TLF Included) | L10: RPP/non-RPP Ratios | M10: GA Volumes | N10: Energy Volumes | P10: RPPTOUON | Q10: 0.1988986714 | R10: =R9 -> 0.02134440938 | S10: 0.09949999809 | T10: 0.1208444075 | U10: 0.07805426395 | V10: 1736491.887 | W10: 345385.9293 | X10: 37064.39372 | Y10: 172780.9395 | Z10: 135540.5961
A11: Total Wholesale Electricity | B11: Grand Total | C11: 21654232.79 | D11: 448715.72 | K11: Estimated Retail Revenue Data (Net of Retail Billed/Unbilled) | M11: =+M15 -> 15739207.78 | N11: =+N15 -> 21654232.79 | P11: RPPULOMID | Q11: 0 | R11: 0 | S11: 0 | T11: 0 | U11: 0 | V11: 0 | W11: 0 | X11: 0 | Y11: 0 | Z11: 0
P12: RPPULOOFF | Q12: 0 | R12: 0 | S12: 0 | T12: 0 | U12: 0 | V12: 0 | W12: 0 | X12: 0 | Y12: 0 | Z12: 0
K13: Estimated RPP Sales Quantities | L13: =SUM(C21:C26)/(C31-B64) -> 0.6185007698 | M13: =M8*L13 -> 9734712.128 | N13: =M13 -> 9734712.128 | P13: RPPULOON | Q13: 0 | R13: 0 | S13: 0 | T13: 0 | U13: 0 | V13: 0 | W13: 0 | X13: 0 | Y13: 0 | Z13: 0
A14: RPP Revenue Volume and Price Data | K14: Estimated non-RPP Sales Quantities | L14: =1-L13 -> 0.3814992302 | M14: =M8*L14 -> 6004495.652 | N14: =N8-N13 -> 11919520.66 | P14: RPPULOOVN | Q14: 0 | R14: 0 | S14: 0 | T14: 0 | U14: 0 | V14: 0 | W14: 0 | X14: 0 | Y14: 0 | Z14: 0
K15: Estimated Retail Revenue kWh Volumes | L15: =+L13+L14 -> 1 | M15: =+M13+M14 -> 15739207.78 | N15: =+N13+N14 -> 21654232.79 | V15: =SUM(V6:V14) -> 9734712.128 | W15: =SUM(W6:W14) -> 1210137.373 | X15: =SUM(X6:X14) -> 207596.2748 | Y15: =SUM(Y6:Y14) -> 968603.8382 | Z15: =SUM(Z6:Z14) -> 33937.25954
B16: bill_year | C16: 2019
B17: bill_month | C17: 11 | K17: Estimated RPP Revenue Volume and Price Data | L17: Actual % | M17: kWh Volumes
K18: RPPT1 | L18: =C21/SUM($C$21:$C$26) -> 0.06462550379 | M18: =$M$13*L18 -> 629110.6755
B19: Row Labels | C19: usagebilled | D19: amountbilled | E19: Rate | K19: RPPT2 | L19: =C22/SUM($C$21:$C$26) -> 0.0248444343 | M19: =$M$13*L19 -> 241853.4159
B20: RPPTIER | K20: RPPTOUMID | L20: =C24/SUM($C$21:$C$26) -> 0.1725169826 | M20: 1679403.163
B21: RPPT1 | C21: 626078.8448 | D21: 73328.95849 | E21: =D21/C21 -> 0.1171241595 | K21: RPPTOUOFF | L21: =C25/SUM($C$21:$C$26) -> 0.5596316476 | M21: 5447852.987
B22: RPPT2 | C22: 240687.868 | D22: 32370.89905 | E22: =D22/C22 -> 0.1344932726 | K22: RPPTOUON | L22: 0.1783814318 | M22: 1736491.887
B23: RPPTOU | K23: RPPULOMID | L23: 0 | M23: 0
B24: RPPTOUMID | C24: 1671309.728 | D24: 229417.0168 | E24: =D24/C24 -> 0.1372678044 | K24: RPPULOOFF | L24: 0 | M24: 0
B25: RPPTOUOFF | C25: 5421598.515 | D25: 525467.1304 | E25: 0.09692107023 | K25: RPPULOON | L25: 0 | M25: 0
B26: RPPTOUON | C26: 1728123.329 | D26: 343721.4341 | E26: 0.1988986714 | K26: RPPULOOVN | L26: 0 | M26: 0
B27: RETAIL | L27: =SUM(L18:L26) -> 1 | M27: =SUM(M18:M26) -> 9734712.128
B28: NSLS | C28: 4645105.585 | D28: 95981.71311 | E28: =D28/C28 -> 0.0206629777
B29: INTERVAL
B30: HOEP | C30: 7245478.015 | D30: 148290.9634 | E30: 0.02046669152
B31: Grand Total | C31: 21578381.88 | D31: 1448578.115 | E31: 0.06713098893 | K31: Global Adjustment | L31: per kWh
C32: =C31/C11-1 -> -0.003502821188 | K32: Class B - GA actual8 | L32: =B69/100 -> 0.09949999809 | N32: GA Posted Price
K33: Class B - GA actual IESO billed | L33: =+M33/M8 -> 0.09953728815 | M33: =B76 -> 1566638.06 | N33: GA Billed by IESO CT 148
A38: RPP COP Volume and Price Data
B39: bill_year | C39: 2019
B40: bill_month | C40: 11
B42: Row Labels | C42: usagebilled | D42: amountbilled | E42: Rate
B43: RPPTIERED | C43: 863864.9288 | D43: 18254.79187 | E43: =D43/C43 -> 0.02113153488
B44: RPPTOU | C44: 8821056.877 | D44: 188280.2491 | E44: 0.02134440938
B45: Grand Total | C45: 9684921.806 | D45: 206535.041
C47: =SUM(C21:C26)-C45 -> 2876.478928
C48: =C47/C45 -> 0.0002970059011
A60: Year | B60: 2019
A62: Class A | B62: Value
A63: kWh
A64: 201911 | B64: 5915025.01
A67: ga_actual | B67: year
A68: month | B68: 2019
A69: 201911 | B69: 9.949999809
A72: chargetype | B72: 148
A74: Sum of chargeamount | B74: year
A75: month | B75: 2019
A76: 201911 | B76: 1566638.06

Sheet I23 Input Rev 11 Init
A1: Reverse IESO Posted
A5: =Admin!B38 -> 201911
A6: RPP Revenue Prices | B6: kWh Volumes | C6: $ RPP Settlement
A7: RPPTiered_1 | B7: 494914.17 | C7: 18220.53
A8: RPPTiered_2 | B8: 166852.28 | C8: 1955.71
A9: RPPTOU_MID | B9: 1386524.37 | C9: 42086.92
A10: RPPTOU_OFF | B10: 4701558.77 | C10: 272840.72
A11: RPPTOU_ON | B11: 1375917.04 | C11: -10115.88
A12: Grand Total | B12: 8125766.63 | C12: 324988

Sheet I24 Input 12 Trueup Sett
A1: Date: | B1: =Admin!B8+11 -> 201912 | C1: Trueup | K1: ="Data for 1st True up of RPP Settlement based on Actual IESO Invoice" -> Data for 1st True up of RPP Settlement based on Actual IESO Invoice | P1: For Reconciliation
A3: Wholesale Electricty | B3: Year | C3: 2019 | E3: Rate | P3: Actual RPP Revenue and GA
B4: dateref | C4: 201912 | K4: Wholesale Volume data per IESO Power Bill: | L4: GA RPP/non-RPP Ratios | M4: GA Volumes | N4: Energy Volumes | P4: =B1 -> 201912
K5: AQEW | M5: =C10 -> 21761942.42 | N5: =+M5 -> 21761942.42 | P5: RPP Revenue Prices | Q5: RPP Rate | R5: Estimated RPP Energy Price | S5: GA actual IESO billed | T5: Total Commodity | U5: Difference | V5: kWh Volumes | W5: $ Estimated RPP Revenue | X5: $ Estimated RPP Energy | Y5: $ Estimated GA | Z5: $ Estimated RPP Settlement
B6: Wholesale | K6: Embedded Generation | M6: =SUM(C8:C9) -> 146115.41 | N6: =+M6 -> 146115.41 | P6: RPPT1 | Q6: =E21 -> 0.1189935643 | R6: =E43 -> 0.02197151966 | S6: =L32 -> 0.09319999695 | T6: =R6+S6 -> 0.1151715166 | U6: =+Q6-T6 -> 0.003822047708 | V6: =M18 -> 690565.5503 | W6: =Q6*V6 -> 82172.85623 | X6: =R6*V6 -> 15172.77456 | Y6: =+V6*S6 -> 64360.70718 | Z6: =W6-X6-Y6 -> 2639.374479
A7: FIT/mFIT | B7: Source | C7: kWh | D7: Total Cost | K7: Class A customer Volumes for GA (TLF included) | M7: =-B64 -> -4670973.94 | P7: RPPT2 | Q7: =E22 -> 0.1389902381 | R7: =R6 -> 0.02197151966 | S7: =S6 -> 0.09319999695 | T7: =R7+S7 -> 0.1151715166 | U7: =+Q7-T7 -> 0.02381872145 | V7: =M19 -> 353094.7694 | W7: =Q7*V7 -> 49076.72606 | X7: =R7*V7 -> 7758.028667 | Y7: =+V7*S7 -> 32908.43143 | Z7: =W7-X7-Y7 -> 8410.265959
B8: FIT | C8: 136687.04 | D8: 2569.99 | E8: =D8/C8 -> 0.018802002 | M8: =+M5+M6+M7 -> 17237083.89 | N8: =+N5+N6+N7 -> 21908057.83 | P8: RPPTOUMID | Q8: =E24 -> 0.1439974635 | R8: =E44 -> 0.02001590771 | S8: =S7 -> 0.09319999695 | T8: 0.1132159047 | U8: 0.0307815588 | V8: 1767515.357 | W8: 254517.7281 | X8: 35378.42427 | Y8: 164732.4259 | Z8: 54406.87791
B9: microFIT | C9: 9428.37 | D9: 181.61 | E9: =D9/C9 -> 0.01926207817 | P9: RPPTOUOFF | Q9: =E25 -> 0.1009987219 | R9: =R8 -> 0.02001590771 | S9: 0.09319999695 | T9: 0.1132159047 | U9: -0.01221718271 | V9: 6582339.458 | W9: 664807.8727 | X9: 131751.4991 | Y9: 613474.0174 | Z9: -80417.64383
B10: WHOLESALE | C10: 21761942.42 | D10: 486011.15 | E10: =D10/C10 -> 0.02233307766 | K10: Estimated Retail Volume Revenue Data (TLF Included) | L10: RPP/non-RPP Ratios | M10: GA Volumes | N10: Energy Volumes | P10: RPPTOUON | Q10: 0.2079966042 | R10: =R9 -> 0.02001590771 | S10: 0.09319999695 | T10: 0.1132159047 | U10: 0.09478069956 | V10: 1824128.266 | W10: 379412.4851 | X10: 36511.58304 | Y10: 170008.7489 | Z10: 172892.1532
A11: Total Wholesale Electricity | B11: Grand Total | C11: 21908057.83 | D11: 488762.75 | K11: Estimated Retail Revenue Data (Net of Retail Billed/Unbilled) | M11: =+M15 -> 17237083.89 | N11: =+N15 -> 21908057.83 | P11: RPPULOMID | Q11: 0 | R11: =E45 -> 0 | S11: 0.09319999695 | T11: 0.09319999695 | U11: -0.09319999695 | V11: 0 | W11: 0 | X11: 0 | Y11: 0 | Z11: 0
P12: RPPULOOFF | Q12: 0 | R12: =R11 -> 0 | S12: 0.09319999695 | T12: 0.09319999695 | U12: -0.09319999695 | V12: 0 | W12: 0 | X12: 0 | Y12: 0 | Z12: 0
K13: Estimated RPP Sales Quantities | L13: =SUM(C21:C26)/(C31-B64) -> 0.6507854503 | M13: =M8*L13 -> 11217643.4 | N13: =M13 -> 11217643.4 | P13: RPPULOON | Q13: 0 | R13: =R12 -> 0 | S13: 0.09319999695 | T13: 0.09319999695 | U13: -0.09319999695 | V13: 0 | W13: 0 | X13: 0 | Y13: 0 | Z13: 0
A14: RPP Revenue Volume and Price Data | K14: Estimated non-RPP Sales Quantities | L14: =1-L13 -> 0.3492145497 | M14: =M8*L14 -> 6019440.488 | N14: =N8-N13 -> 10690414.43 | P14: RPPULOOVN | Q14: 0 | R14: 0 | S14: 0.09319999695 | T14: 0.09319999695 | U14: -0.09319999695 | V14: 0 | W14: 0 | X14: 0 | Y14: 0 | Z14: 0
K15: Estimated Retail Revenue kWh Volumes | L15: =+L13+L14 -> 1 | M15: =+M13+M14 -> 17237083.89 | N15: =+N13+N14 -> 21908057.83 | V15: =SUM(V6:V14) -> 11217643.4 | W15: =SUM(W6:W14) -> 1429987.668 | X15: =SUM(X6:X14) -> 226572.3097 | Y15: =SUM(Y6:Y14) -> 1045484.331 | Z15: =SUM(Z6:Z14) -> 157931.0277
B16: bill_year | C16: 2019
B17: bill_month | C17: 12 | K17: Estimated RPP Revenue Volume and Price Data | L17: Actual % | M17: kWh Volumes
K18: RPPT1 | L18: =C21/SUM($C$21:$C$26) -> 0.06156066168 | M18: =$M$13*L18 -> 690565.5503
B19: Row Labels | C19: usagebilled | D19: amountbilled | E19: Rate | K19: RPPT2 | L19: =C22/SUM($C$21:$C$26) -> 0.03147673328 | M19: =$M$13*L19 -> 353094.7694
B20: RPPTIER | K20: RPPTOUMID | L20: =C24/SUM($C$21:$C$26) -> 0.1575656574 | M20: 1767515.357
B21: RPPT1 | C21: 675135.0066 | D21: 80336.72083 | E21: =D21/C21 -> 0.1189935643 | K21: RPPTOUOFF | L21: =C25/SUM($C$21:$C$26) -> 0.5867845164 | M21: 6582339.458
B22: RPPT2 | C22: 345204.9402 | D22: 47980.11681 | E22: 0.1389902381 | K22: RPPTOUON | L22: 0.1626124312 | M22: 1824128.266
B23: RPPTOU | K23: RPPULOMID | L23: 0 | M23: 0
B24: RPPTOUMID | C24: 1728020.594 | D24: 248830.5823 | E24: 0.1439974635 | K24: RPPULOOFF | L24: 0 | M24: 0
B25: RPPTOUOFF | C25: 6435258.451 | D25: 649952.8789 | E25: 0.1009987219 | K25: RPPULOON | L25: 0 | M25: 0
B26: RPPTOUON | C26: 1783368.499 | D26: 370934.5919 | E26: 0.2079966042 | K26: RPPULOOVN | L26: 0 | M26: 0
B27: RETAIL | L27: =SUM(L18:L26) -> 1 | M27: =SUM(M18:M26) -> 11217643.4
B28: NSLS | C28: 3837976.126 | D28: 86960.69344 | E28: 0.02265795581
B29: INTERVAL
B30: HOEP | C30: 6717935.155 | D30: 150734.5726 | E30: 0.02243763435
B31: Grand Total | C31: 21522898.77 | D31: 1635730.157 | E31: 0.07599952842 | K31: Global Adjustment | L31: per kWh
C32: =C31/C11-1 -> -0.01758070301 | K32: Class B - GA actual8 | L32: =B69/100 -> 0.09319999695 | N32: GA Posted Price
K33: Class B - GA actual IESO billed | L33: =+M33/M8 -> 0.09321328133 | M33: =B76 -> 1606725.15 | N33: GA Billed by IESO CT 148
A38: RPP COP Volume and Price Data
B39: bill_year | C39: 2019
B40: bill_month | C40: 12
B42: Row Labels | C42: usagebilled | D42: amountbilled | E42: Rate
B43: RPPTIERED | C43: 1018249.506 | D43: 22372.48903 | E43: =D43/C43 -> 0.02197151966
B44: RPPTOU | C44: 9945831.079 | D44: 199074.837 | E44: 0.02001590771
B45: Grand Total | C45: 10964080.58 | D45: 221447.326
C47: =SUM(C21:C26)-C45 -> 2906.90604
C48: =C47/C45 -> 0.0002651299411
A60: Year | B60: 2019
A62: Class A | B62: Value
A63: kWh
A64: 201912 | B64: 4670973.94
A67: ga_actual | B67: year
A68: month | B68: 2019
A69: 201912 | B69: 9.319999695
A72: chargetype | B72: 148
A74: Sum of chargeamount | B74: year
A75: month | B75: 2019
A76: 201912 | B76: 1606725.15

Sheet I25 Input Rev 12 Init
A1: Reverse IESO Posted
A5: =Admin!B41 -> 201912
A6: RPP Revenue Prices | B6: kWh Volumes | C6: $ RPP Settlement
A7: RPPTiered_1 | B7: 620577.41 | C7: 3722.38
A8: RPPTiered_2 | B8: 236471.75 | C8: -2566.91
A9: RPPTOU_MID | B9: 1640019.72 | C9: -14549.53
A10: RPPTOU_OFF | B10: 5315335.4 | C10: 161076.88
A11: RPPTOU_ON | B11: 1674696.45 | C11: -116472.44
A12: Grand Total | B12: 9487100.73 | C12: 31210.38

Sheet Rec1 1588 Commodity
A1: Lakefront Utilities Inc.
A2: =ProcessYear[Process Year]& " 1588 Commodity RSVA" -> 2019 1588 Commodity RSVA
A3: Commodity
B5: 4006-4055 | E5: 4705 | L5: 1588
B6: GL Revenue | C6: Unbilled | D6: Total Revenue | E6: Energy Cost (code 101) | F6: RPP GA (code 148) | G6: IESO RPP Settlement | H6: FIT/mFIT | I6: Misc | J6: IESO Code 118 - Energy Rebate | K6: Total Cost | L6: Variance | M6: Y.T.D. | N6: G.L. Balance
A7: Opening Balance
A8: January | B8: -1102104.59 | C8: =D8-B8 -> -203330.9737 | D8: =-'I1a ER Summary'!AF5 -> -1305435.564 | E8: ='I1a ER Summary'!K5 -> 689467.01 | F8: ='I1a ER Summary'!E5 -> 981327.5034 | G8: ='I1a ER Summary'!F5 -> -316892.1593 | H8: ='I1a ER Summary'!M5 -> 5913.52 | K8: =SUM(E8:J8) -> 1359815.874 | L8: =D8+K8 -> 54380.31046 | M8: =L8 -> 54380.31046 | N8: =N7+L8 -> 54380.31046
A9: February | B9: -1271624.03 | C9: =D9-B9 -> 72755.90106 | D9: =-'I1a ER Summary'!AF6 -> -1198868.129 | E9: ='I1a ER Summary'!K6 -> 605959.35 | F9: ='I1a ER Summary'!E6 -> 930469.9704 | G9: ='I1a ER Summary'!F6 -> -367000.1775 | H9: ='I1a ER Summary'!M6 -> 6566.73 | K9: 1175995.873 | L9: -22872.256 | M9: =M8+L9 -> 31508.05447 | N9: =N8+L9 -> 31508.05447
A10: March | B10: -1296040.6 | C10: 82572.67041 | D10: =-'I1a ER Summary'!AF7 -> -1213467.93 | E10: ='I1a ER Summary'!K7 -> 618474.36 | F10: ='I1a ER Summary'!E7 -> 842128.9645 | G10: ='I1a ER Summary'!F7 -> -252965.2007 | H10: ='I1a ER Summary'!M7 -> 10958.97 | K10: 1218597.094 | L10: 5129.164191 | M10: =M9+L10 -> 36637.21866 | N10: 36637.21866
A11: April | B11: -1219154.29 | C11: 317745.143 | D11: =-'I1a ER Summary'!AF8 -> -901409.147 | E11: ='I1a ER Summary'!K8 -> 308331.97 | F11: ='I1a ER Summary'!E8 -> 1071770.663 | G11: ='I1a ER Summary'!F8 -> -496063.3793 | H11: ='I1a ER Summary'!M8 -> 7183.05 | K11: 891222.3037 | L11: -10186.84331 | M11: 26450.37535 | N11: 26450.37535
A12: May | B12: -915896.04 | C12: 156382.8724 | D12: =-'I1a ER Summary'!AF9 -> -759513.1676 | E12: ='I1a ER Summary'!K9 -> 146944.6 | F12: ='I1a ER Summary'!E9 -> 1022502.334 | G12: ='I1a ER Summary'!F9 -> -407698.3177 | H12: ='I1a ER Summary'!M9 -> 3567.33 | K12: 765315.9458 | L12: 5802.778229 | M12: 32253.15358 | N12: 32253.15358
A13: June | B13: -756941.25 | C13: 7121.575676 | D13: =-'I1a ER Summary'!AF10 -> -749819.6743 | E13: ='I1a ER Summary'!K10 -> 88254.29 | F13: ='I1a ER Summary'!E10 -> 1108506.422 | G13: ='I1a ER Summary'!F10 -> -493973.2986 | H13: ='I1a ER Summary'!M10 -> 3743.36 | K13: 706530.7738 | L13: -43288.90048 | M13: -11035.7469 | N13: -11035.7469
A14: July | B14: -692598.28 | C14: -439802.7197 | D14: =-'I1a ER Summary'!AF11 -> -1132401 | E14: ='I1a ER Summary'!K11 -> 496366.06 | F14: ='I1a ER Summary'!E11 -> 1019385.844 | G14: ='I1a ER Summary'!F11 -> -341269.0093 | H14: ='I1a ER Summary'!M11 -> 20611.65 | K14: 1195094.545 | L14: 62693.54524 | M14: 51657.79833 | N14: 51657.79833
A15: August | B15: -1146547.3 | C15: 149736.3345 | D15: =-'I1a ER Summary'!AF12 -> -996810.9655 | E15: ='I1a ER Summary'!K12 -> 338550.64 | F15: ='I1a ER Summary'!E12 -> 1245271.796 | G15: ='I1a ER Summary'!F12 -> -592746.3319 | H15: ='I1a ER Summary'!M12 -> 14844.08 | K15: 1005920.184 | L15: 9109.218526 | M15: 60767.01686 | N15: 60767.01686
A16: September | B16: -1010311.76 | C16: 174342.6842 | D16: =-'I1a ER Summary'!AF13 -> -835969.0758 | E16: ='I1a ER Summary'!K13 -> 275050.65 | F16: ='I1a ER Summary'!E13 -> 964019.2102 | G16: ='I1a ER Summary'!F13 -> -412818.9511 | H16: ='I1a ER Summary'!M13 -> 10061.43 | K16: 836312.3391 | L16: 343.2632825 | M16: 61110.28014 | N16: 61110.28014
A17: October | B17: -858175.02 | C17: 25708.87437 | D17: =-'I1a ER Summary'!AF14 -> -832466.1456 | E17: ='I1a ER Summary'!K14 -> 140800.23 | F17: ='I1a ER Summary'!E14 -> 1120549.411 | G17: ='I1a ER Summary'!F14 -> -461177.5357 | H17: ='I1a ER Summary'!M14 -> 3331.93 | K17: 803504.0355 | L17: -28962.1101 | M17: 32148.17004 | N17: 32148.17004
A18: November | B18: -772916.81 | C18: -675661.3054 | D18: =-'I1a ER Summary'!AF15 -> -1448578.115 | E18: ='I1a ER Summary'!K15 -> 445779.2 | F18: ='I1a ER Summary'!E15 -> 968603.8382 | G18: ='I1a ER Summary'!F15 -> 33937.25954 | H18: ='I1a ER Summary'!M15 -> 2936.52 | K18: 1451256.818 | L18: 2678.702303 | M18: 34826.87234 | N18: 34826.87234
A19: December | B19: -1395464.82 | C19: -240265.3369 | D19: =-'I1a ER Summary'!AF16 -> -1635730.157 | E19: ='I1a ER Summary'!K16 -> 486011.15 | F19: ='I1a ER Summary'!E16 -> 1045484.331 | G19: ='I1a ER Summary'!F16 -> 157931.0277 | H19: ='I1a ER Summary'!M16 -> 2751.6 | K19: 1692178.109 | L19: 56447.95166 | M19: 91274.824 | N19: 91274.824
B20: =SUM(B8:B19) -> -12437774.79 | C20: =SUM(C8:C19) -> -572694.2801 | D20: -13010469.07 | E20: 4639989.51 | F20: 12320020.29 | G20: -3950736.074 | H20: 92470.17 | I20: 0 | J20: 0 | K20: 13101743.89 | L20: 91274.824
A22: Per GL | F22: 12195481.3 | G22: =-356198.38-3889748.44 -> -4245946.82
A23: Adjustments | F23: =F20-F22 -> 124538.9879 | G23: =G20-G22 -> 295210.7461
F25: 4705-0002 | G25: 4705-0001
F27: =F23+'Rec2 1589 Class B'!J23 -> -2.793967724e-09

Sheet Rec2 1589 Class B
A1: Lakefront Utilities Inc.
A2: =ProcessYear[Process Year]& " 1589 ClassB RSVA" -> 2019 1589 ClassB RSVA
A3: Global Adjustment Class B Only
B5: 4006-4055 | E5: 4707 | K5: 1589
B6: Revenue - Class B only | C6: Unbilled | D6: Total Revenue | E6: IESO Code 148 | F6: RPP GA (code 148) | G6: Class B GA (Code 148) | H6: Class B Deferral | I6: Misc | J6: Class B GA | K6: Variance | L6: Y.T.D. | M6: G.L. Balance
A7: Opening Balance
A8: January | B8: -529342.99 | C8: =D8-B8 -> 110547.663 | D8: -418795.327 | E8: ='I1a ER Summary'!Q5 -> 1468102.5 | F8: =-'Rec1 1588 Commodity'!F8 -> -981327.5034 | G8: =E8+F8 -> 486774.9966 | J8: =SUM(G8:I8) -> 486774.9966 | K8: =D8+J8 -> 67979.66959 | L8: =K8 -> 67979.66959 | M8: =M7+K8 -> 67979.66959
A9: February | B9: -391426.9 | C9: =D9-B9 -> -95430.53094 | D9: -486857.4309 | E9: ='I1a ER Summary'!Q6 -> 1393777.06 | F9: =-'Rec1 1588 Commodity'!F9 -> -930469.9704 | G9: =E9+F9 -> 463307.0896 | J9: =SUM(G9:I9) -> 463307.0896 | K9: =D9+J9 -> -23550.34133 | L9: =L8+K9 -> 44429.32827 | M9: =M8+K9 -> 44429.32827
A10: March | B10: -520201.6 | C10: -23494.2168 | D10: -543695.8168 | E10: ='I1a ER Summary'!Q7 -> 1308789.3 | F10: =-'Rec1 1588 Commodity'!F10 -> -842128.9645 | G10: 466660.3355 | J10: 466660.3355 | K10: -77035.48129 | L10: =L9+K10 -> -32606.15303 | M10: -32606.15303
A11: April | B11: -533952.31 | C11: 174004.0081 | D11: -359948.3019 | E11: ='I1a ER Summary'!Q8 -> 1706152.85 | F11: =-'Rec1 1588 Commodity'!F11 -> -1071770.663 | G11: 634382.1869 | J11: 634382.1869 | K11: 274433.885 | L11: 241827.732 | M11: 241827.732
A12: May | B12: -362442.09 | C12: -271827.4467 | D12: -634269.5367 | E12: ='I1a ER Summary'!Q9 -> 1662020.36 | F12: =-'Rec1 1588 Commodity'!F12 -> -1022502.334 | G12: 639518.0264 | J12: 639518.0264 | K12: 5248.489758 | L12: 247076.2217 | M12: 247076.2217
A13: June | B13: -652773.56 | C13: 23023.06566 | D13: -629750.4943 | E13: ='I1a ER Summary'!Q10 -> 1783403.07 | F13: =-'Rec1 1588 Commodity'!F13 -> -1108506.422 | G13: 674896.6476 | J13: 674896.6476 | K13: 45146.15323 | L13: 292222.375 | M13: 292222.375
A14: July | B14: -607458.89 | C14: -228531.6088 | D14: -835990.4988 | E14: ='I1a ER Summary'!Q11 -> 1651655.76 | F14: =-'Rec1 1588 Commodity'!F14 -> -1019385.844 | G14: 632269.9158 | J14: 632269.9158 | K14: -203720.583 | L14: 88501.79193 | M14: 88501.79193
A15: August | B15: -859607.34 | C15: 414026.8017 | D15: -445580.5383 | E15: ='I1a ER Summary'!Q12 -> 1991149.31 | F15: =-'Rec1 1588 Commodity'!F15 -> -1245271.796 | G15: 745877.5141 | J15: 745877.5141 | K15: 300296.9758 | L15: 388798.7677 | M15: 388798.7677
A16: September | B16: -460087.16 | C16: -271539.4789 | D16: -731626.6389 | E16: ='I1a ER Summary'!Q13 -> 1653291.85 | F16: =-'Rec1 1588 Commodity'!F16 -> -964019.2102 | G16: 689272.6398 | J16: 689272.6398 | K16: -42353.99906 | L16: 346444.7687 | M16: 346444.7687
A17: October | B17: -717547.8 | C17: -279095.9148 | D17: -996643.7148 | E17: ='I1a ER Summary'!Q14 -> 1903586.39 | F17: =-'Rec1 1588 Commodity'!F17 -> -1120549.411 | G17: 783036.9787 | J17: 783036.9787 | K17: -213606.7361 | L17: 132838.0326 | M17: 132838.0326
A18: November | B18: -1025160.57 | C18: 372200.4038 | D18: -652960.1662 | E18: ='I1a ER Summary'!Q15 -> 1566638.06 | F18: =-'Rec1 1588 Commodity'!F18 -> -968603.8382 | G18: 598034.2218 | J18: 598034.2218 | K18: -54925.94435 | L18: 77912.08821 | M18: 77912.08821
A19: December | B19: -642692.85 | C19: 129436.4007 | D19: -513256.4493 | E19: ='I1a ER Summary'!Q16 -> 1606725.15 | F19: =-'Rec1 1588 Commodity'!F19 -> -1045484.331 | G19: 561240.8192 | J19: 561240.8192 | K19: 47984.36985 | L19: 125896.4581 | M19: 125896.4581
B20: =SUM(B8:B19) -> -7302694.06 | C20: 53319.14599 | D20: -7249374.914 | E20: 19695291.66 | F20: -12320020.29 | G20: 7375271.372 | H20: 0 | I20: 0 | J20: 7375271.372 | K20: 125896.4581
A22: Per GL | J22: 7499810.36
A23: Adjustments | J23: =J20-J22 -> -124538.9879
D24: Per GL 1588 | E24: ='Rec1 1588 Commodity'!F22 -> 12195481.3
D25: Per GL 1589 | E25: =J22 -> 7499810.36 | J25: 4707-0000
E26: =SUM(E24:E25) -> 19695291.66
J27: ='Rec1 1588 Commodity'!F23+'Rec2 1589 Class B'!J23 -> -2.793967724e-09
D28: Difference | E28: =E20-E26 -> 0

Sheet Rev1UFE
A1: Lakefront Utilities Inc.
A2: 2023 RSVA
A3: Unaccounted for Energy Summary For USoA 1588
C5: Total Energy Purchases | D5: Total Retail Sales | E5: Uaccounted for Energy | F5: UFE | G5: Total Energy Purchases | H5: Total Retail Sales | I5: UFE | J5: UFE | N5: Energy Purchases RPP and non-RPP | P5: RPP Settlement Amounts | T5: Energy Sales Revenue | V5: Energy Sales Volumes | X5: Energy Sales/kWh
B6: Version | C6: kWH | D6: kWh | E6: kWh | F6: % | G6: $ Amount | H6: $ Amount | I6: $ Amount | J6: % | K6: Revenue Per kWh | L6: UFE $ Cost per kWh | N6: Energy for RPP and non-RPP | O6: Final GA for RPP | P6: Initial Settlement | Q6: First True-Up | R6: Final True-Up | S6: RPP Settlement Amount | T6: RPP Sales | U6: Non-RPP Sales | V6: RPP kWh | W6: Non-RPP kWH | X6: RPP | Y6: Non-RPP
A7: January | B7: Final | C7: ='I1a ER Summary'!S5 -> 24638292.91 | D7: ='I1a ER Summary'!T5 -> 23975296.69 | E7: =+C7-D7 -> 662996.2205 | F7: =+E7/C7 -> 0.02690917845 | G7: =+N7+O7+S7 -> 1359815.874 | H7: =+T7+U7 -> 1305435.564 | I7: =+G7-H7 -> 54380.31046 | J7: =+I7/G7 -> 0.03999093664 | K7: =+H7/D7 -> 0.05444919329 | L7: =+I7/E7 -> 0.08202205198 | N7: ='I1a ER Summary'!O5 -> 695380.53 | O7: ='I1a ER Summary'!E5 -> 981327.5034 | P7: 0 | Q7: 0 | R7: ='I1a ER Summary'!F5 -> -316892.1593 | S7: =SUM(P7:R7) -> -316892.1593 | T7: ='I1a ER Summary'!C5 -> 1004383.566 | U7: ='I1a ER Summary'!AH5 -> 301051.9972 | V7: ='I1a ER Summary'!AJ5 -> 11686813.52 | W7: ='I1a ER Summary'!AK5 -> 12288483.17 | X7: =+T7/V7 -> 0.08594160975 | Y7: 0.02449871095
A8: February | B8: Final | C8: ='I1a ER Summary'!S6 -> 21894384.3 | D8: ='I1a ER Summary'!T6 -> 22075381.64 | E8: =+C8-D8 -> -180997.3378 | F8: =+E8/C8 -> -0.008266838444 | G8: =+N8+O8+S8 -> 1175995.873 | H8: =+T8+U8 -> 1198868.129 | I8: =+G8-H8 -> -22872.256 | J8: =+I8/G8 -> -0.01944926553 | K8: =+H8/D8 -> 0.05430792312 | L8: 0.1263679139 | N8: ='I1a ER Summary'!O6 -> 612526.08 | O8: ='I1a ER Summary'!E6 -> 930469.9704 | P8: 0 | Q8: 0 | R8: ='I1a ER Summary'!F6 -> -367000.1775 | S8: -367000.1775 | T8: ='I1a ER Summary'!C6 -> 872357.5951 | U8: ='I1a ER Summary'!AH6 -> 326510.5338 | V8: ='I1a ER Summary'!AJ6 -> 10682400.47 | W8: ='I1a ER Summary'!AK6 -> 11392981.17 | X8: 0.08166306793 | Y8: 0.02865891982
A9: March | B9: Final | C9: ='I1a ER Summary'!S7 -> 23041331.69 | D9: ='I1a ER Summary'!T7 -> 23071268.43 | E9: -29936.73978 | F9: -0.001299262568 | G9: 1218597.094 | H9: 1213467.93 | I9: 5129.164191 | J9: 0.004209073054 | K9: 0.05259649825 | L9: -0.171333426 | N9: ='I1a ER Summary'!O7 -> 629433.33 | O9: ='I1a ER Summary'!E7 -> 842128.9645 | P9: 0 | Q9: 0 | R9: ='I1a ER Summary'!F7 -> -252965.2007 | S9: -252965.2007 | T9: ='I1a ER Summary'!C7 -> 870507.9725 | U9: ='I1a ER Summary'!AH7 -> 342959.9571 | V9: ='I1a ER Summary'!AJ7 -> 10493515.48 | W9: ='I1a ER Summary'!AK7 -> 12577752.95 | X9: 0.08295675306 | Y9: 0.02726718823
A10: April | B10: Final | C10: ='I1a ER Summary'!S8 -> 20271863.19 | D10: ='I1a ER Summary'!T8 -> 20282091.91 | E10: -10228.71995 | F10: -0.0005045771989 | G10: 891222.3037 | H10: 901409.147 | I10: -10186.84331 | J10: -0.01143019341 | K10: 0.04444359837 | L10: 0.9959059746 | N10: ='I1a ER Summary'!O8 -> 315515.02 | O10: ='I1a ER Summary'!E8 -> 1071770.663 | P10: 0 | Q10: 0 | R10: ='I1a ER Summary'!F8 -> -496063.3793 | S10: -496063.3793 | T10: ='I1a ER Summary'!C8 -> 719306.6171 | U10: ='I1a ER Summary'!AH8 -> 182102.53 | V10: ='I1a ER Summary'!AJ8 -> 8698814.319 | W10: ='I1a ER Summary'!AK8 -> 11583277.59 | X10: 0.08269019095 | Y10: 0.01572115738
A11: May | B11: Final | C11: ='I1a ER Summary'!S9 -> 19740785.79 | D11: ='I1a ER Summary'!T9 -> 19732609.24 | E11: 8176.551996 | F11: 0.0004141958726 | G11: 765315.9458 | H11: 759513.1676 | I11: 5802.778229 | J11: 0.007582199561 | K11: 0.03849025532 | L11: 0.7096852354 | N11: ='I1a ER Summary'!O9 -> 150511.93 | O11: ='I1a ER Summary'!E9 -> 1022502.334 | P11: 0 | Q11: 0 | R11: ='I1a ER Summary'!F9 -> -407698.3177 | S11: -407698.3177 | T11: ='I1a ER Summary'!C9 -> 672502.1962 | U11: ='I1a ER Summary'!AH9 -> 87010.97145 | V11: ='I1a ER Summary'!AJ9 -> 8110065.502 | W11: ='I1a ER Summary'!AK9 -> 11622543.74 | X11: 0.08292191918 | Y11: 0.007486396561
A12: June | B12: Final | C12: ='I1a ER Summary'!S10 -> 19653141.2 | D12: ='I1a ER Summary'!T10 -> 19981554.19 | E12: -328412.9878 | F12: -0.01671045786 | G12: 706530.7738 | H12: 749819.6743 | I12: -43288.90048 | J12: -0.06126966027 | K12: 0.03752559322 | L12: 0.1318123889 | N12: ='I1a ER Summary'!O10 -> 91997.65 | O12: ='I1a ER Summary'!E10 -> 1108506.422 | P12: 0 | Q12: 0 | R12: ='I1a ER Summary'!F10 -> -493973.2986 | S12: -493973.2986 | T12: ='I1a ER Summary'!C10 -> 676619.0316 | U12: ='I1a ER Summary'!AH10 -> 73200.64277 | V12: ='I1a ER Summary'!AJ10 -> 8277696.69 | W12: ='I1a ER Summary'!AK10 -> 11703857.5 | X12: 0.08174001257 | Y12: 0.006254403113
A13: July | B13: Final | C13: ='I1a ER Summary'!S11 -> 23424868.31 | D13: ='I1a ER Summary'!T11 -> 22936339.8 | E13: 488528.5136 | F13: 0.02085512316 | G13: 1195094.545 | H13: 1132401 | I13: 62693.54524 | J13: 0.05245906737 | K13: 0.04937147817 | L13: 0.1283313942 | N13: ='I1a ER Summary'!O11 -> 516977.71 | O13: ='I1a ER Summary'!E11 -> 1019385.844 | P13: 0 | Q13: 0 | R13: ='I1a ER Summary'!F11 -> -341269.0093 | S13: -341269.0093 | T13: ='I1a ER Summary'!C11 -> 890676.562 | U13: ='I1a ER Summary'!AH11 -> 241724.4377 | V13: ='I1a ER Summary'!AJ11 -> 10262195.8 | W13: ='I1a ER Summary'!AK11 -> 12674144 | X13: 0.08679200626 | Y13: 0.01907224959
A14: August | B14: Final | C14: ='I1a ER Summary'!S12 -> 21853882.9 | D14: ='I1a ER Summary'!T12 -> 21406886.08 | E14: 446996.8168 | F14: 0.02045388542 | G14: 1005920.184 | H14: 996810.9655 | I14: 9109.218526 | J14: 0.009055607663 | K14: 0.046564968 | L14: 0.02037871006 | N14: ='I1a ER Summary'!O12 -> 353394.72 | O14: ='I1a ER Summary'!E12 -> 1245271.796 | P14: 0 | Q14: 0 | R14: ='I1a ER Summary'!F12 -> -592746.3319 | S14: -592746.3319 | T14: ='I1a ER Summary'!C12 -> 829760.1899 | U14: ='I1a ER Summary'!AH12 -> 167050.7755 | V14: ='I1a ER Summary'!AJ12 -> 9595790.427 | W14: ='I1a ER Summary'!AK12 -> 11811095.66 | X14: 0.08647127053 | Y14: 0.01414354607
A15: September | B15: Final | C15: ='I1a ER Summary'!S13 -> 19805920.06 | D15: ='I1a ER Summary'!T13 -> 19949829.75 | E15: -143909.6897 | F15: -0.007265993667 | G15: 836312.3391 | H15: 835969.0758 | I15: 343.2632825 | J15: 0.0004104486643 | K15: 0.04190356942 | L15: -0.002385268728 | N15: ='I1a ER Summary'!O13 -> 285112.08 | O15: ='I1a ER Summary'!E13 -> 964019.2102 | P15: 0 | Q15: 0 | R15: ='I1a ER Summary'!F13 -> -412818.9511 | S15: -412818.9511 | T15: ='I1a ER Summary'!C13 -> 661024.6363 | U15: ='I1a ER Summary'!AH13 -> 174944.4396 | V15: ='I1a ER Summary'!AJ13 -> 7947053.84 | W15: ='I1a ER Summary'!AK13 -> 12002775.91 | X15: 0.08317857782 | Y15: 0.01457533165
A16: October | B16: Final | C16: ='I1a ER Summary'!S14 -> 19716247.93 | D16: ='I1a ER Summary'!T14 -> 19878413.66 | E16: -162165.7339 | F16: -0.008224979442 | G16: 803504.0355 | H16: 832466.1456 | I16: -28962.1101 | J16: -0.03604475998 | K16: 0.04187789628 | L16: 0.1785957453 | N16: ='I1a ER Summary'!O14 -> 144132.16 | O16: ='I1a ER Summary'!E14 -> 1120549.411 | P16: 0 | Q16: 0 | R16: ='I1a ER Summary'!F14 -> -461177.5357 | S16: -461177.5357 | T16: ='I1a ER Summary'!C14 -> 736809.452 | U16: ='I1a ER Summary'!AH14 -> 95656.69365 | V16: ='I1a ER Summary'!AJ14 -> 8286603.952 | W16: ='I1a ER Summary'!AK14 -> 11591809.71 | X16: 0.08891573149 | Y16: 0.008252093161
A17: November | B17: Final | C17: ='I1a ER Summary'!S15 -> 21654232.79 | D17: ='I1a ER Summary'!T15 -> 21578381.88 | E17: 75850.90542 | F17: 0.003502821188 | G17: 1451256.818 | H17: 1448578.115 | I17: 2678.702303 | J17: 0.00184578103 | K17: 0.06713098893 | L17: 0.03531536359 | N17: ='I1a ER Summary'!O15 -> 448715.72 | O17: ='I1a ER Summary'!E15 -> 968603.8382 | P17: 0 | Q17: 0 | R17: ='I1a ER Summary'!F15 -> 33937.25954 | S17: 33937.25954 | T17: ='I1a ER Summary'!C15 -> 1210137.373 | U17: ='I1a ER Summary'!AH15 -> 238440.7429 | V17: ='I1a ER Summary'!AJ15 -> 7959674.956 | W17: ='I1a ER Summary'!AK15 -> 13618706.93 | X17: 0.1520335163 | Y17: 0.0175083247
A18: December | B18: Final | C18: ='I1a ER Summary'!S16 -> 21908057.83 | D18: ='I1a ER Summary'!T16 -> 21522898.77 | E18: 385159.0581 | F18: 0.01758070301 | G18: 1692178.109 | H18: 1635730.157 | I18: 56447.95166 | J18: 0.03335816211 | K18: 0.07599952842 | L18: 0.1465575078 | N18: ='I1a ER Summary'!O16 -> 488762.75 | O18: ='I1a ER Summary'!E16 -> 1045484.331 | P18: 0 | Q18: 0 | R18: ='I1a ER Summary'!F16 -> 157931.0277 | S18: 157931.0277 | T18: ='I1a ER Summary'!C16 -> 1429987.668 | U18: ='I1a ER Summary'!AH16 -> 205742.4887 | V18: ='I1a ER Summary'!AJ16 -> 9183618.991 | W18: ='I1a ER Summary'!AK16 -> 12339279.78 | X18: 0.155710692 | Y18: 0.01667378424
A19: Total | C19: =SUM(C7:C18) -> 257603008.9 | D19: =SUM(D7:D18) -> 256390952 | E19: =SUM(E7:E18) -> 1212056.857 | F19: 0.004705134706 | G19: =SUM(G7:G18) -> 13101743.89 | H19: =SUM(H7:H18) -> 13010469.07 | I19: =SUM(I7:I18) -> 91274.824 | J19: 0.006966616409 | K19: 0.05074464979 | L19: 0.07530572798 | N19: =SUM(N7:N18) -> 4732459.68 | O19: 12320020.29 | P19: 0 | Q19: 0 | R19: -3950736.074 | S19: -3950736.074 | T19: 11382095.66 | U19: 3626059.63 | V19: 111184243.9 | W19: 145206708.1 | X19: 0.1023714805 | Y19: 0.0249717088

Sheet Rev2 GA Purchases
A1: Lakefront Utilities Inc.
A2: 2023 RSVA
A3: Non-RPP Global Adjustment
B5: Non-RPP Class B GA | E5: RPP Class B GA | H5: Total Class B GA | M5: GA non-RPP Cost Amounts Booked
B6: Cost Amount | C6: kWh | D6: Avg Cost | E6: Cost Amount | F6: kWh | G6: Avg Cost | H6: Cost Amount | I6: kWh | J6: Avg Cost | M6: G/L 4707 | N6: True-Ups | O6: Total | P6: Difference
A7: January | B7: ='Rec2 1589 Class B'!J8 -> 486774.9966 | C7: ='I1a ER Summary'!AK5 -> 12288483.17 | D7: =+B7/C7 -> 0.03961229305 | E7: ='Rec1 1588 Commodity'!F8 -> 981327.5034 | F7: ='I1a ER Summary'!AJ5 -> 11686813.52 | G7: =+E7/F7 -> 0.0839687826 | H7: =+B7+E7 -> 1468102.5 | I7: 23975296.69 | J7: =+H7/I7 -> 0.0612339659 | M7: 368354.797 | O7: =+M7+N7 -> 368354.797 | P7: =+O7-B7 -> -118420.1996
A8: February | B8: ='Rec2 1589 Class B'!J9 -> 463307.0896 | C8: ='I1a ER Summary'!AK6 -> 11392981.17 | D8: 0.0406660103 | E8: ='Rec1 1588 Commodity'!F9 -> 930469.9704 | F8: ='I1a ER Summary'!AJ6 -> 10682400.47 | G8: 0.08710307885 | H8: 1393777.06 | I8: 22075381.64 | J8: 0.06313716713 | M8: 517400.4514 | O8: =+M8+N8 -> 517400.4514 | P8: 54093.36175
A9: March | B9: ='Rec2 1589 Class B'!J10 -> 466660.3355 | C9: ='I1a ER Summary'!AK7 -> 12577752.95 | D9: 0.03710204338 | E9: ='Rec1 1588 Commodity'!F10 -> 842128.9645 | F9: ='I1a ER Summary'!AJ7 -> 10493515.48 | G9: 0.08025232021 | H9: 1308789.3 | I9: 23071268.43 | J9: 0.05672810335 | M9: 550805.5586 | O9: =+N9+M9 -> 550805.5586 | P9: 84145.22309
A10: April | B10: ='Rec2 1589 Class B'!J11 -> 634382.1869 | C10: ='I1a ER Summary'!AK8 -> 11583277.59 | D10: 0.05476707106 | E10: ='Rec1 1588 Commodity'!F11 -> 1071770.663 | F10: ='I1a ER Summary'!AJ8 -> 8698814.319 | G10: 0.1232088218 | H10: 1706152.85 | I10: 20282091.91 | J10: 0.08412114774 | M10: 582775.4046 | O10: 582775.4046 | P10: -51606.78235
A11: May | B11: ='Rec2 1589 Class B'!J12 -> 639518.0264 | C11: ='I1a ER Summary'!AK9 -> 11622543.74 | D11: 0.05502392944 | E11: ='Rec1 1588 Commodity'!F12 -> 1022502.334 | F11: ='I1a ER Summary'!AJ9 -> 8110065.502 | G11: 0.1260781844 | H11: 1662020.36 | I11: 19732609.24 | J11: 0.08422709536 | M11: 606116.3272 | O11: 606116.3272 | P11: -33401.69925
A12: June | B12: ='Rec2 1589 Class B'!J13 -> 674896.6476 | C12: ='I1a ER Summary'!AK10 -> 11703857.5 | D12: 0.05766446214 | E12: ='Rec1 1588 Commodity'!F13 -> 1108506.422 | F12: ='I1a ER Summary'!AJ10 -> 8277696.69 | G12: 0.1339148393 | H12: 1783403.07 | I12: 19981554.19 | J12: 0.08925247022 | M12: 513680.4991 | O12: 513680.4991 | P12: -161216.1485
A13: July | B13: ='Rec2 1589 Class B'!J14 -> 632269.9158 | C13: ='I1a ER Summary'!AK11 -> 12674144 | D13: 0.04988659714 | E13: ='Rec1 1588 Commodity'!F14 -> 1019385.844 | F13: ='I1a ER Summary'!AJ11 -> 10262195.8 | G13: 0.09933408642 | H13: 1651655.76 | I13: 22936339.8 | J13: 0.07201043299 | M13: 337855.3545 | O13: 337855.3545 | P13: -294414.5613
A14: August | B14: ='Rec2 1589 Class B'!J15 -> 745877.5141 | C14: ='I1a ER Summary'!AK12 -> 11811095.66 | D14: 0.06315057771 | E14: ='Rec1 1588 Commodity'!F15 -> 1245271.796 | F14: ='I1a ER Summary'!AJ12 -> 9595790.427 | G14: 0.129772717 | H14: 1991149.31 | I14: 21406886.08 | J14: 0.09301443014 | M14: 484646.4102 | O14: 484646.4102 | P14: -261231.1039
A15: September | B15: ='Rec2 1589 Class B'!J16 -> 689272.6398 | C15: ='I1a ER Summary'!AK13 -> 12002775.91 | D15: 0.05742610251 | E15: ='Rec1 1588 Commodity'!F16 -> 964019.2102 | F15: ='I1a ER Summary'!AJ13 -> 7947053.84 | G15: 0.1213052321 | H15: 1653291.85 | I15: 19949829.75 | J15: 0.08287247915 | M15: 351972.6143 | O15: 351972.6143 | P15: -337300.0255
A16: October | B16: ='Rec2 1589 Class B'!J17 -> 783036.9787 | C16: ='I1a ER Summary'!AK14 -> 11591809.71 | D16: 0.06755088275 | E16: ='Rec1 1588 Commodity'!F17 -> 1120549.411 | F16: ='I1a ER Summary'!AJ14 -> 8286603.952 | G16: 0.1352242025 | H16: 1903586.39 | I16: 19878413.66 | J16: 0.0957614839 | M16: 508645.545 | O16: 508645.545 | P16: -274391.4337
A17: November | B17: ='Rec2 1589 Class B'!J18 -> 598034.2218 | C17: ='I1a ER Summary'!AK15 -> 13618706.93 | D17: 0.04391270221 | E17: ='Rec1 1588 Commodity'!F18 -> 968603.8382 | F17: ='I1a ER Summary'!AJ15 -> 7959674.956 | G17: 0.1216888684 | H17: 1566638.06 | I17: 21578381.88 | J17: 0.07260220291 | M17: 446213.3479 | O17: 446213.3479 | P17: -151820.8739
A18: December | B18: ='Rec2 1589 Class B'!J19 -> 561240.8192 | C18: ='I1a ER Summary'!AK16 -> 12339279.78 | D18: 0.04548408247 | E18: ='Rec1 1588 Commodity'!F19 -> 1045484.331 | F18: ='I1a ER Summary'!AJ16 -> 9183618.991 | G18: 0.1138423025 | H18: 1606725.15 | I18: 21522898.77 | J18: 0.07465189364 | M18: 408485.058 | O18: 408485.058 | P18: -152755.7612
B19: =SUM(B7:B18) -> 7375271.372 | C19: =SUM(C7:C18) -> 145206708.1 | D19: 0.05079153345 | E19: =SUM(E7:E18) -> 12320020.29 | F19: =SUM(F7:F18) -> 111184243.9 | G19: 0.1108072498 | H19: =SUM(H7:H18) -> 19695291.66 | I19: =SUM(I7:I18) -> 256390952 | J19: 0.07681742083 | M19: =SUM(M7:M18) -> 5676951.368 | N19: =SUM(N7:N18) -> 0 | O19: =SUM(O7:O18) -> 5676951.368 | P19: =SUM(P7:P18) -> -1698320.004

Sheet Rev3 GA Analysis
F2: Consumption Data Excluding for Loss Factor (Data to agree with RRR as applicable)
F3: Year | H3: =ProcessYear[Process Year] -> 2019
F4: Total Metered excluding WMP | G4: C = A+B | H4: =H5+H6 -> 256390952 | I4: kWh | J4: 1
F5: RPP | G5: A | H5: ='Rev2 GA Purchases'!F19 -> 111184243.9 | I5: kWh | J5: 0.5303752085
F6: Non RPP | G6: B = D+E | H6: =H7+H8 -> 145206708.1 | I6: kWh | J6: 0.4696247915
F7: Non-RPP Class A | G7: D | H7: ='I1a ER Summary'!AN17 -> 74087658.16 | I7: kWh | J7: 0.1815554551
F8: Non-RPP Class B* | G8: E | H8: ='Rev2 GA Purchases'!C19-H7 -> 71119049.94 | I8: kWh | J8: 0.2880693364
F9: *Non-RPP Class B consumption reported in this table is not expected to directly agree with the Non-RPP Class B Including Loss Adjusted Billed Consumption in the GA Analysis of Expected Balance table below. The difference should be equal to the loss factor.
A12: Note 4 | B12: Analysis of Expected GA Amount
B13: Year | C13: =ProcessYear[Process Year] -> 2019
B14: Calendar Month | C14: Non-RPP Class B Including Loss Factor Billed Consumption (kWh) | D14: Deduct Previous Month Unbilled Loss Adjusted Consumption (kWh) | E14: Add Current Month Unbilled Loss Adjusted Consumption (kWh) | F14: Non-RPP Class B Including Loss Adjusted Consumption, Adjusted for Unbilled (kWh) | G14: GA Rate Billed ($/kWh) | H14: $ Consumption at GA Rate Billed | I14: GA Actual Rate Paid ($/kWh) | J14: $ Consumption at Actual Rate Paid | K14: Expected GA Variance ($) | M14: Revenue per Continuity Schedule | N14: Difference | P14: Expense per Continuity Schedule | Q14: Difference | T14: 2019
C15: F | D15: G | E15: H | F15: I = F-G+H | G15: J | H15: K = I*J | I15: L | J15: M = I*L | K15: =M-K | N15: =H-M | Q15: =J-P | S15: ($/kWh) | T15: First Estimate | U15: Second Estimate | V15: Actual
B16: January | C16: ='I1a ER Summary'!AP5 -> 5791264.593 | F16: =C16-D16+E16 -> 5791264.593 | G16: =T16 -> 0.06741 | H16: =F16*G16 -> 390389.1462 | I16: =V16 -> 0.08092 | J16: =F16*I16 -> 468629.1308 | K16: =J16-H16 -> 78239.98465 | M16: ='Rec2 1589 Class B'!D8 -> -418795.327 | N16: =H16+M16 -> -28406.18078 | P16: ='Rec2 1589 Class B'!J8 -> 486774.9966 | Q16: =J16-P16 -> -18145.86572 | S16: January | T16: =67.41/1000 -> 0.06741 | U16: =83.06/1000 -> 0.08306 | V16: =80.92/1000 -> 0.08092
B17: February | C17: ='I1a ER Summary'!AP6 -> 5312645.049 | F17: =C17-D17+E17 -> 5312645.049 | G17: =T17 -> 0.09657 | H17: =F17*G17 -> 513042.1324 | I17: =V17 -> 0.08812 | J17: =F17*I17 -> 468150.2817 | K17: =J17-H17 -> -44891.85066 | M17: ='Rec2 1589 Class B'!D9 -> -486857.4309 | N17: =H17+M17 -> 26184.70144 | P17: ='Rec2 1589 Class B'!J9 -> 463307.0896 | Q17: =J17-P17 -> 4843.192107 | S17: February | T17: =96.57/1000 -> 0.09657 | U17: =82.36/1000 -> 0.08236 | V17: =88.12/1000 -> 0.08812
B18: March | C18: ='I1a ER Summary'!AP7 -> 5804720.409 | F18: =C18-D18+E18 -> 5804720.409 | G18: 0.08105 | H18: =F18*G18 -> 470472.5891 | I18: 0.08041 | J18: =F18*I18 -> 466757.5681 | K18: -3715.021062 | M18: ='Rec2 1589 Class B'!D10 -> -543695.8168 | N18: -73223.22767 | P18: ='Rec2 1589 Class B'!J10 -> 466660.3355 | Q18: 97.23256017 | S18: March | T18: =81.05/1000 -> 0.08105 | U18: =75.75/1000 -> 0.07575 | V18: =80.41/1000 -> 0.08041
B19: April | C19: ='I1a ER Summary'!AP8 -> 5133564.101 | F19: =C19-D19+E19 -> 5133564.101 | G19: 0.08129 | H19: =F19*G19 -> 417307.4258 | I19: 0.12333 | J19: =F19*I19 -> 633122.4606 | K19: 215815.0348 | M19: ='Rec2 1589 Class B'!D11 -> -359948.3019 | N19: 57359.12384 | P19: ='Rec2 1589 Class B'!J11 -> 634382.1869 | Q19: =J19-P19 -> -1259.726349 | S19: April | T19: =81.29/1000 -> 0.08129 | U19: =124.88/1000 -> 0.12488 | V19: =123.33/1000 -> 0.12333
B20: May | C20: ='I1a ER Summary'!AP9 -> 5067709.286 | F20: 5067709.286 | G20: 0.1286 | H20: 651707.4141 | I20: 0.12604 | J20: =F20*I20 -> 638734.0784 | K20: =J20-H20 -> -12973.33577 | M20: ='Rec2 1589 Class B'!D12 -> -634269.5367 | N20: 17437.87745 | P20: ='Rec2 1589 Class B'!J12 -> 639518.0264 | Q20: =J20-P20 -> -783.9480815 | S20: May | T20: =128.6/1000 -> 0.1286 | U20: =130.49/1000 -> 0.13049 | V20: =126.04/1000 -> 0.12604
B21: June | C21: ='I1a ER Summary'!AP10 -> 5042546.357 | F21: 5042546.357 | G21: 0.12444 | H21: 627494.4687 | I21: 0.13728 | J21: 692240.7639 | K21: 64746.29523 | M21: ='Rec2 1589 Class B'!D13 -> -629750.4943 | N21: -2256.025621 | P21: ='Rec2 1589 Class B'!J13 -> 674896.6476 | Q21: 17344.11638 | S21: June | T21: =124.44/1000 -> 0.12444 | U21: =147.72/1000 -> 0.14772 | V21: =137.28/1000 -> 0.13728
B22: July | C22: ='I1a ER Summary'!AP11 -> 6372066.298 | F22: 6372066.298 | G22: 0.13527 | H22: 861949.4081 | I22: 0.09645 | J22: 614585.7945 | K22: -247363.6137 | M22: ='Rec2 1589 Class B'!D14 -> -835990.4988 | N22: 25958.90936 | P22: ='Rec2 1589 Class B'!J14 -> 632269.9158 | Q22: -17684.1213 | S22: July | T22: =135.27/1000 -> 0.13527 | U22: =88.54/1000 -> 0.08854 | V22: =96.45/1000 -> 0.09645
B23: August | C23: ='I1a ER Summary'!AP12 -> 5751497.076 | F23: 5751497.076 | G23: 0.07211 | H23: 414740.4542 | I23: 0.12607 | J23: 725091.2364 | K23: 310350.7822 | M23: ='Rec2 1589 Class B'!D15 -> -445580.5383 | N23: -30840.08416 | P23: ='Rec2 1589 Class B'!J15 -> 745877.5141 | Q23: -20786.27772 | S23: August | T23: =72.11/1000 -> 0.07211 | U23: =109.74/1000 -> 0.10974 | V23: =126.07/1000 -> 0.12607
B24: September | C24: ='I1a ER Summary'!AP13 -> 5679555.6 | F24: 5679555.6 | G24: 0.12934 | H24: 734593.7213 | I24: 0.12263 | J24: 696483.9032 | K24: -38109.81807 | M24: ='Rec2 1589 Class B'!D16 -> -731626.6389 | N24: 2967.082421 | P24: ='Rec2 1589 Class B'!J16 -> 689272.6398 | Q24: 7211.26341 | S24: September | T24: =129.34/1000 -> 0.12934 | U24: =163.92/1000 -> 0.16392 | V24: =122.63/1000 -> 0.12263
B25: October | C25: ='I1a ER Summary'!AP14 -> 5791493.412 | F25: 5791493.412 | G25: 0.17878 | H25: 1035403.192 | I25: 0.1368 | J25: 792276.2987 | K25: -243126.8934 | M25: ='Rec2 1589 Class B'!D17 -> -996643.7148 | N25: 38759.47732 | P25: ='Rec2 1589 Class B'!J17 -> 783036.9787 | Q25: 9239.320003 | S25: October | T25: =178.78/1000 -> 0.17878 | U25: =118.86/1000 -> 0.11886 | V25: =136.8/1000 -> 0.1368
B26: November | C26: ='I1a ER Summary'!AP15 -> 7703681.919 | F26: 7703681.919 | G26: 0.10727 | H26: 826373.9594 | I26: 0.09953 | J26: 766747.4613 | K26: -59626.49805 | M26: ='Rec2 1589 Class B'!D18 -> -652960.1662 | N26: 173413.7932 | P26: ='Rec2 1589 Class B'!J18 -> 598034.2218 | Q26: 168713.2395 | S26: November | T26: =107.27/1000 -> 0.10727 | U26: =101.09/1000 -> 0.10109 | V26: =99.53/1000 -> 0.09953
B27: December | C27: ='I1a ER Summary'!AP16 -> 7668305.84 | F27: 7668305.84 | G27: 0.08569 | H27: 657097.1275 | I27: 0.09321 | J27: 714762.7874 | K27: 57665.65992 | M27: ='Rec2 1589 Class B'!D19 -> -513256.4493 | N27: 143840.6781 | P27: ='Rec2 1589 Class B'!J19 -> 561240.8192 | Q27: 153521.9682 | S27: December | T27: =85.69/1000 -> 0.08569 | U27: =90.66/1000 -> 0.09066 | V27: =93.21/1000 -> 0.09321
B29: Net Change in Expected GA Balance in the Year (i.e. Transactions in the Year) | C29: =SUM(C16:C27) -> 71119049.94 | D29: 0 | E29: 0 | F29: =SUM(F16:F27) -> 71119049.94 | H29: =SUM(H16:H27) -> 7600571.039 | J29: =SUM(J16:J27) -> 7677581.765 | K29: =SUM(K16:K27) -> 77010.72611 | M29: =SUM(M16:M28) -> -7249374.914 | N29: =SUM(N16:N28) -> 351196.125 | P29: =SUM(P16:P28) -> 7375271.372 | Q29: =SUM(Q16:Q28) -> 302310.393
C36: Annual Non-RPP Class B Wholesale kWh * | D36: Annual Non-RPP Class B Retail billed kWh | E36: Annual Unaccounted for Energy Loss kWh | F36: Weighted Average GA Actual Rate Paid ($/kWh)** | G36: Expected GA Volume Variance ($)
C37: O | D37: P | E37: Q=O-P | F37: R | G37: P= Q*R
C38: =(Rev1UFE!C19-H7)*'Rev3 GA Analysis '!H8/(H5+H8) -> 71591890.17 | D38: =F29 -> 71119049.94 | E38: =C38-D38 -> 472840.2342 | F38: =H29/F29 -> 0.1068710992 | G38: =E38*F38 -> 50532.95556 | I38: =D38/C38 -> 0.993395338
C39: *Equal to (AQEW - Class A + embedded generation kWh)*(Non-RPP Class B retail kwh/Total retail Class B kWh)
C40: **Equal to annual Non-RPP Class B $ GA paid (i.e. non-RPP portion of CT 148 on IESO invoice) divided by Non-RPP Class B Wholesale kWh (as quantified in column O in the table above)
F41: Total Expected GA Variance | G41: =K29+G38 -> 127543.6817
A48: Note 5 | B48: Reconciling Items
B50: Item | C50: Applicability of Reconciling Item (Y/N) | D50: Amount (Quantify if it is a significant reconciling item) | E50: Explanation
A51: Net Change in Principal Balance in the GL (i.e. Transactions in the Year) | D51: =M29+P29 -> 125896.4581
A52: 1a | B52: Remove impacts to GA from prior year RPP Settlement true up process that are booked in current year | C52: N
A53: 1b | B53: Add impacts to GA from current year RPP Settlement true up process that are booked in subsequent year | C53: N
A54: 2a | B54: Remove prior year end unbilled to actual revenue differences | C54: N
A55: 2b | B55: Add current year end unbilled to actual revenue differences | C55: N
A56: 3a | B56: Remove difference between prior year accrual to forecast from long term load transfers | C56: N
A57: 3b | B57: Add difference between current year accrual to forecast from long term load transfers | C57: N
A58: 4 | B58: Remove GA balances pertaining to Class A customers | C58: N
A59: 5 | B59: Significant prior period billing adjustments included in current year GL balance but would not be included in the billing consumption used in the GA Analysis | C59: N
A60: 6 | B60: Differences in GA IESO posted rate and rate charged on IESO invoice | C60: N
A61: 7 | D61: 0
A62: 9
A63: 10
A64: Note 6 | B64: Adjusted Net Change in Principal Balance in the GL | D64: =SUM(D51:D63) -> 125896.4581
B65: Net Change in Expected GA Balance in the Year Per Analysis | D65: =G41 -> 127543.6817
B66: Unresolved Difference | D66: =D64-D65 -> -1647.223619
B67: Unresolved Difference as % of Expected GA Payments to IESO | D67: =IF(ISERROR(D66/J29),0,D66/J29) -> -0.0002145497983 | E67: =IF(AND(D67<0.01,D67>-0.01),"","Unresolved differences of greater than + or - 1% should be explained") -> 
A70: Note 7 | B70: Summary of GA (if multiple years requested for disposition)
B72: Year | C72: Annual Net Change in Expected GA Balance from GA Analysis (cell K59) | D72: Net Change in Principal Balance in the GL (cell D65) | E72: Reconciling Items (sum of cells D66 to D78) | F72: Adjusted Net Change in Principal Balance in the GL | G72: Unresolved Difference | H72: Payments to IESO (cell J59) | I72: Unresolved Difference as % of Expected GA Payments to IESO
B73: 2023 | C73: =G41 -> 127543.6817 | D73: =D51 -> 125896.4581 | E73: =SUM(D52:D63) -> 0 | F73: =SUM(D73:E73) -> 125896.4581 | G73: =F73-C73 -> -1647.223619 | H73: =J29 -> 7677581.765 | I73: =IF(ISERROR(G73/H73),0,G73/H73) -> -0.0002145497983
F74: =SUM(D74:E74) -> 0 | G74: =F74-C74 -> 0 | I74: =IF(ISERROR(G74/H74),0,G74/H74) -> 0
F75: =SUM(D75:E75) -> 0 | G75: =F75-C75 -> 0 | I75: =IF(ISERROR(G75/H75),0,G75/H75) -> 0
F76: =SUM(D76:E76) -> 0 | G76: =F76-C76 -> 0 | I76: =IF(ISERROR(G76/H76),0,G76/H76) -> 0
B77: Cumulative Balance | C77: =SUM(C73:C76) -> 127543.6817 | D77: 125896.4581 | E77: 0 | F77: 125896.4581 | G77: =SUM(G73:G76) -> -1647.223619 | H77: 7677581.765 | I77: N/A
B80: Additional Notes and Comments
B95: Account 1588 Reasonability Test
C97: Account 1588 - RSVA Power | F97: Account 4705 - Power Purchased | G97: Account 1588 as % of Account 4705
B98: Year | C98: Transactions1 | D98: Principal Adjustments1 | E98: Total Activity in Calendar Year
B99: 2023 | D99: ='Rec1 1588 Commodity'!L20 -> 91274.824 | E99: =SUM(C99:D99) -> 91274.824 | F99: ='Rec1 1588 Commodity'!K20 -> 13101743.89 | G99: =IFERROR(E99/F99,0) -> 0.006966616409
B102: Notes
B103: 1) The transactions should equal the "Transaction" column in the DVA Continuity Schedule. This is also expected to equal the transactions in the general ledger (excluding transactions relating to the removal of approved disposition amounts as that is shown in a separate column in the DVA Continuity Schedule)
B104: 2) Principal adjustments should equal the "Principal Adjustments" column in the DVA Continuity Schedule. Principal adjustments adjust the transactions in the general ledger to the amount that should be requested for disposition.
